Workbook

Sheet 条件付き書式データ
A1: ルール（関数） | B1: 適用先 | C1: 書式 | D1: 意味
A2: =TEXT($B7,"aaa")="土" | B2: =$B$7:$B$37 | C2: 文字青 | D2: 適応先のセルが土曜日なら文字色を青にする
A3: =TEXT($B7,"aaa")="日" | B3: =$B$7:$B$37 | C3: 文字赤 | D3: 適応先のセルが日曜日なら文字色を赤にする
A4: =OR(TEXT($B7,"aaa")="土",TEXT($B7,"aaa")="日") | B4: =$A$7:$AK$37 | C4: オレンジ塗りつぶし | D4: 適応先のセルが土曜日か日曜日なら背景をオレンジ色にする
A5: =COUNTIF(各種設定!$A$4:$A$22,$B7)=1 | B5: =$A$7:$AK$37 | C5: オレンジ塗りつぶし | D5: 適応先のセルが「各種設定」シートの祝日リストにある日付なら背景をオレンジ色にする
A6: =COUNTIF(各種設定!$A$4:$A$22,$B7)=1 | B6: =$B$7:$B$37 | C6: 文字赤太字 | D6: 適応先のセルが「各種設定」シートの祝日リストにある日付なら文字色を赤にする

Sheet 関数データ保管
B1: 出勤表 | O1: 作業計画
A2: ① | B2: 人時 | C2: =@SWITCH($I9,"A",$X$3,"B",$Y$3,"C",$Z$3,"D",$AA$3,"E",$AB$3) | N2: ① | O2: 必要人時 | P2: =IFERROR(H7+J7+L7+N7+P7+R7+T7+V7+X7+Z7+AB7+AD7+AG7+AI7,"")
A3: ② | B3: 出勤数 | C3: =NETWORKDAYS($O$3,$O$4,各種設定!$A$4:$A$22)-COUNTIF(M9:AQ9,">0") | N3: ② | O3: 過不足人時 | P3: =IFERROR(D7-E7,"")
A4: ③ | B4: 氏名と日付交差セル | C4: =IF(M$7="","",IF(COUNTIF($AS9:$BW9,M$7)>0,$J9,"")) | N4: ③ | O4: ★数量 | P4: =@SWITCH($C7,"月",$AQ$1,"火",$AQ$2,"水",$AQ$3,"木",$AQ$4,"金",$AQ$5,"土","","日","")
A5: ④ | B5: アルファベットカウント | C5: =IF(COUNTA(M$9:M$58)=0,"",COUNTIF(M$9:M$58,$L59)) | N5: ④ | O5: ★人時 | P5: =IFERROR(G7/30,"")
A6: ⑤ | B6: 休暇人時 | C6: =($L$59*M59)+($L$60*M60)+($L$61*M61)+($L$62*M62)+($L$63*M63) | N6: ⑤ | O6: ★★数量 | P6: =@SWITCH($C7,"月",$AS$1,"火",$AS$2,"水",$AS$3,"木",$AS$4,"金",$AS$5,"土","","日","")
A7: ⑥ | B7: 休暇希望日 | C7: =IF(休暇希望!E4="","",DATE($M$2,$P$2,休暇希望!E4)) | N7: ⑥ | O7: ★★人時 | P7: =IFERROR(I7/30,"")
A8: ⑦ | B8: 月初 | C8: =DATE(M2,P2,1) | N8: ⑦ | O8: 月初 | P8: =DATE(D1,G1,1)
A9: ⑧ | B9: 月末 | C9: =EOMONTH(O3,0) | N9: ⑧ | O9: 月末 | P9: =EOMONTH(F2,0)

Sheet 各種設定
A1: 祝日リスト | L1: 勤務時間計算表
A3: ↓日付は必ずA4から貼付すること | D3: ※ネットで検索して情報を持ってきてください。おススメは以下（内閣府HP）
A4: 2025-01-01 | B4: 元日 | D4: → https://www8.cao.go.jp/chosei/shukujitsu/gaiyou.html | L4: カテゴリ | M4: 出勤時間 | N4: 退勤時間 | O4: 休憩時間 | P4: 労働時間
A5: 2025-01-13 | B5: 成人の日 | D5: ※更新する時は西暦表示にすること（年に注意！） | L5: A | M5: 09:00:00 | N5: 16:00:00 | O5: 1 | P5: =(N5-M5)*24-O5 -> 6
A6: 2025-02-11 | B6: 建国記念の日 | D6: ※日付は必ず「短い日付表示」で設定してください | L6: B | M6: 09:00:00 | N6: 17:00:00 | O6: 1 | P6: =(N6-M6)*24-O6 -> 7
A7: 2025-02-23 | B7: 天皇誕生日 | D7: ※指定場所に貼付しないと条件付き書式が機能しません！ | L7: C | M7: 09:00:00 | N7: 17:30:00 | O7: 1 | P7: =(N7-M7)*24-O7 -> 7.5
A8: 2025-02-24 | B8: 休日 | L8: D | M8: 10:45:00 | N8: 17:00:00 | O8: 1 | P8: =(N8-M8)*24-O8 -> 5.25
A9: 2025-03-20 | B9: 春分の日 | L9: E | M9: 13:00:00 | N9: 17:00:00 | O9: 0 | P9: 4
A10: 2025-04-29 | B10: 昭和の日
A11: 2025-05-03 | B11: 憲法記念日
A12: 2025-05-04 | B12: みどりの日
A13: 2025-05-05 | B13: こどもの日
A14: 2025-05-06 | B14: 休日
A15: 2025-07-21 | B15: 海の日
A16: 2025-08-11 | B16: 山の日
A17: 2025-09-15 | B17: 敬老の日
A18: 2025-09-23 | B18: 秋分の日
A19: 2025-10-13 | B19: スポーツの日
A20: 2025-11-03 | B20: 文化の日
A21: 2025-11-23 | B21: 勤労感謝の日
A22: 2025-11-24 | B22: 休日

Sheet 休暇希望
E2: 休暇希望入力欄（左詰めでOK。順番関係なし） | AK2: カテゴリ | AL2: 出勤時間 | AM2: 退勤時間 | AN2: 休憩時間 | AO2: 労働時間
A3: 人数 | B3: カテゴリ | C3: 氏名 | AK3: =各種設定!L5 -> A | AL3: =各種設定!M5 -> 09:00:00 | AM3: =各種設定!N5 -> 16:00:00 | AN3: =各種設定!O5 -> 1 | AO3: =各種設定!P5 -> 6
A4: =ROW()-3 -> 1 | B4: A | C4: 1 | E4: 2 | F4: 3 | G4: 6 | H4: 7 | I4: 8 | J4: 9 | K4: 10 | L4: 14 | M4: 15 | N4: 16 | O4: 17 | P4: 20 | Q4: 21 | R4: 22 | S4: 23 | T4: 24 | U4: 27 | V4: 28 | W4: 29 | X4: 30 | Y4: 31 | AK4: =各種設定!L6 -> B | AL4: =各種設定!M6 -> 09:00:00 | AM4: =各種設定!N6 -> 17:00:00 | AN4: =各種設定!O6 -> 1 | AO4: =各種設定!P6 -> 7
A5: =ROW()-3 -> 2 | B5: A | C5: 2 | E5: 14 | F5: 15 | G5: 17 | H5: 16 | I5: 23 | J5: 22 | K5: 20 | L5: 21 | M5: 29 | N5: 24 | O5: 27 | P5: 28 | Q5: 31 | R5: 30 | S5: 10 | T5: 9 | U5: 8 | V5: 7 | W5: 6 | X5: 3 | Y5: 2 | AK5: =各種設定!L7 -> C | AL5: =各種設定!M7 -> 09:00:00 | AM5: =各種設定!N7 -> 17:30:00 | AN5: =各種設定!O7 -> 1 | AO5: =各種設定!P7 -> 7.5
A6: 3 | B6: A | C6: 3 | AK6: =各種設定!L8 -> D | AL6: =各種設定!M8 -> 10:45:00 | AM6: =各種設定!N8 -> 17:00:00 | AN6: =各種設定!O8 -> 1 | AO6: =各種設定!P8 -> 5.25
A7: 4 | B7: A | C7: 4 | AK7: =各種設定!L9 -> E | AL7: =各種設定!M9 -> 13:00:00 | AM7: =各種設定!N9 -> 17:00:00 | AN7: =各種設定!O9 -> 0 | AO7: =各種設定!P9 -> 4
A8: 5 | B8: A | C8: 5
A9: 6 | B9: B | C9: 6
A10: 7 | B10: B | C10: 7
A11: 8 | B11: B | C11: 8
A12: 9 | B12: B | C12: 9
A13: 10 | B13: B | C13: 10
A14: 11 | B14: C | C14: 11
A15: 12 | B15: C | C15: 12
A16: 13 | B16: C | C16: 13
A17: 14 | B17: C | C17: 14
A18: 15 | B18: C | C18: 15
A19: 16 | B19: D | C19: 16
A20: 17 | B20: D | C20: 17
A21: 18 | B21: D | C21: 18
A22: 19 | B22: D | C22: 19
A23: 20 | B23: D | C23: 20
A24: 21 | B24: E | C24: 21
A25: 22 | B25: E | C25: 22
A26: 23 | B26: E | C26: 23
A27: 24 | B27: E | C27: 24
A28: 25 | B28: E | C28: 25
A29: 26 | B29: E | C29: 26
A30: 27 | B30: E | C30: 27
A31: 28 | B31: E | C31: 28
A32: 29 | B32: E | C32: 29
A33: 30 | B33: E | C33: 30
A34: 31 | B34: E | C34: 31
A35: 32 | B35: E | C35: 32
A36: 33 | B36: E | C36: 33
A37: 34 | B37: E | C37: 34
A38: 35 | B38: E | C38: 35
A39: 36 | B39: E | C39: 36
A40: 37 | B40: E | C40: 37
A41: 38 | B41: E | C41: 38
A42: 39 | B42: E | C42: 39
A43: =ROW()-3 -> 40 | B43: E | C43: 40
A44: 41 | B44: E | C44: 41
A45: 42 | B45: E | C45: 42
A46: 43 | B46: E | C46: 43
A47: 44 | B47: E | C47: 44
A48: 45 | B48: E | C48: 45
A49: 46 | B49: E | C49: 46
A50: 47 | B50: E | C50: 47
A51: 48 | B51: E | C51: 48
A52: 49 | B52: E | C52: 49
A53: 50 | B53: E | C53: 50

Sheet 出勤表
M2: 2025 | O2: 年 | P2: 1 | Q2: 月 | V2: カテゴリー | X2: A | Y2: B | Z2: C | AA2: D | AB2: E
N3: 月初 | O3: =DATE(M2,P2,1) -> 2025-01-01 | V3: 実労働時間 | X3: =各種設定!P5 -> 6 | Y3: =各種設定!P6 -> 7 | Z3: =各種設定!P7 -> 7.5 | AA3: =各種設定!P8 -> 5.25 | AB3: =各種設定!P9 -> 4
N4: 月末 | O4: =EOMONTH(O3,0) -> 2025-01-31 | V4: 出勤時間 | X4: =各種設定!M5 -> 09:00:00 | Y4: =各種設定!M6 -> 09:00:00 | Z4: =各種設定!M7 -> 09:00:00 | AA4: =各種設定!M8 -> 10:45:00 | AB4: =各種設定!M9 -> 13:00:00
V5: 退勤時間 | X5: =各種設定!N5 -> 16:00:00 | Y5: =各種設定!N6 -> 17:00:00 | Z5: =各種設定!N7 -> 17:30:00 | AA5: =各種設定!N8 -> 17:00:00 | AB5: =各種設定!N9 -> 17:00:00
A7: 扶養枠 勤務可能時間計算（簡易） | I7: カテゴリー | J7: 人時 | K7: 氏名 | L7: 出勤数 | M7: =O3 -> 2025-01-01 | N7: =IF(M7=$O$4,"",IF(M7="","",IF(M7<>$O$4,M7+1,""))) -> 2025-01-02 | O7: =IF(N7=$O$4,"",IF(N7="","",IF(N7<>$O$4,N7+1,""))) -> 2025-01-03 | P7: 2025-01-04 | Q7: 2025-01-05 | R7: 2025-01-06 | S7: 2025-01-07 | T7: 2025-01-08 | U7: 2025-01-09 | V7: 2025-01-10 | W7: 2025-01-11 | X7: 2025-01-12 | Y7: 2025-01-13 | Z7: 2025-01-14 | AA7: 2025-01-15 | AB7: 2025-01-16 | AC7: 2025-01-17 | AD7: 2025-01-18 | AE7: 2025-01-19 | AF7: 2025-01-20 | AG7: 2025-01-21 | AH7: 2025-01-22 | AI7: 2025-01-23 | AJ7: 2025-01-24 | AK7: 2025-01-25 | AL7: 2025-01-26 | AM7: 2025-01-27 | AN7: 2025-01-28 | AO7: 2025-01-29 | AP7: 2025-01-30 | AQ7: 2025-01-31 | AS7: 休暇希望日
A8: 人時 | B8: 出勤数 | C8: 労働時間 | D8: M金額 | E8: 時給 | F8: 労上限 | G8: 残時間 | M8: =M7 -> 45658 | N8: =N7 -> 45659 | O8: 45660 | P8: 45661 | Q8: 45662 | R8: 45663 | S8: 45664 | T8: 45665 | U8: 45666 | V8: 45667 | W8: 45668 | X8: 45669 | Y8: 45670 | Z8: 45671 | AA8: 45672 | AB8: 45673 | AC8: 45674 | AD8: 45675 | AE8: 45676 | AF8: 45677 | AG8: 45678 | AH8: 45679 | AI8: 45680 | AJ8: 45681 | AK8: 45682 | AL8: 45683 | AM8: 45684 | AN8: 45685 | AO8: 45686 | AP8: 45687 | AQ8: 45688
A9: =TEXT($J9,"@") -> 6 | B9: =TEXT($L9,"@") -> 0 | C9: =$A9*$B9 -> 0 | D9: 88000 | E9: 1000 | F9: =IFERROR(D9/E9,"") -> 88 | G9: =IFERROR(-($C9-F9),"") -> 88 | I9: A | J9: =_xlfn.SWITCH($I9,"A",$X$3,"B",$Y$3,"C",$Z$3,"D",$AA$3,"E",$AB$3) -> 6 | K9: 1 | L9: =NETWORKDAYS($O$3,$O$4,各種設定!$A$4:$A$22)-COUNTIF(M9:AQ9,">0") -> 00:00:00 | M9: =IF(M$7="","",IF(COUNTIF($AS9:$BW9,M$7)>0,$J9,"")) ->  | N9: =IF(N$7="","",IF(COUNTIF($AS9:$BW9,N$7)>0,$J9,"")) -> 6 | O9: =IF(O$7="","",IF(COUNTIF($AS9:$BW9,O$7)>0,$J9,"")) -> 6 | R9: 6 | S9: 6 | T9: 6 | U9: 6 | V9: 6 | W9: =IF(W$7="","",IF(COUNTIF($AS9:$BW9,W$7)>0,$J9,"")) ->  | Z9: 6 | AA9: 6 | AB9: 6 | AC9: 6 | AF9: 6 | AG9: =IF(AG$7="","",IF(COUNTIF($AS9:$BW9,AG$7)>0,$J9,"")) -> 6 | AH9: 6 | AI9: 6 | AJ9: 6 | AM9: 6 | AN9: 6 | AO9: 6 | AP9: 6 | AQ9: 6 | AS9: =IF(休暇希望!E4="","",DATE($M$2,$P$2,休暇希望!E4)) -> 2025-01-02 | AT9: =IF(休暇希望!F4="","",DATE($M$2,$P$2,休暇希望!F4)) -> 2025-01-03 | AU9: =IF(休暇希望!G4="","",DATE($M$2,$P$2,休暇希望!G4)) -> 2025-01-06 | AV9: =IF(休暇希望!H4="","",DATE($M$2,$P$2,休暇希望!H4)) -> 2025-01-07 | AW9: =IF(休暇希望!I4="","",DATE($M$2,$P$2,休暇希望!I4)) -> 2025-01-08 | AX9: =IF(休暇希望!J4="","",DATE($M$2,$P$2,休暇希望!J4)) -> 2025-01-09 | AY9: =IF(休暇希望!K4="","",DATE($M$2,$P$2,休暇希望!K4)) -> 2025-01-10 | AZ9: =IF(休暇希望!L4="","",DATE($M$2,$P$2,休暇希望!L4)) -> 2025-01-14 | BA9: =IF(休暇希望!M4="","",DATE($M$2,$P$2,休暇希望!M4)) -> 2025-01-15 | BB9: =IF(休暇希望!N4="","",DATE($M$2,$P$2,休暇希望!N4)) -> 2025-01-16 | BC9: =IF(休暇希望!O4="","",DATE($M$2,$P$2,休暇希望!O4)) -> 2025-01-17 | BD9: =IF(休暇希望!P4="","",DATE($M$2,$P$2,休暇希望!P4)) -> 2025-01-20 | BE9: =IF(休暇希望!Q4="","",DATE($M$2,$P$2,休暇希望!Q4)) -> 2025-01-21 | BF9: =IF(休暇希望!R4="","",DATE($M$2,$P$2,休暇希望!R4)) -> 2025-01-22 | BG9: =IF(休暇希望!S4="","",DATE($M$2,$P$2,休暇希望!S4)) -> 2025-01-23 | BH9: =IF(休暇希望!T4="","",DATE($M$2,$P$2,休暇希望!T4)) -> 2025-01-24 | BI9: =IF(休暇希望!U4="","",DATE($M$2,$P$2,休暇希望!U4)) -> 2025-01-27 | BJ9: =IF(休暇希望!V4="","",DATE($M$2,$P$2,休暇希望!V4)) -> 2025-01-28 | BK9: =IF(休暇希望!W4="","",DATE($M$2,$P$2,休暇希望!W4)) -> 2025-01-29 | BL9: =IF(休暇希望!X4="","",DATE($M$2,$P$2,休暇希望!X4)) -> 2025-01-30 | BM9: =IF(休暇希望!Y4="","",DATE($M$2,$P$2,休暇希望!Y4)) -> 2025-01-31 | BN9: =IF(休暇希望!Z4="","",DATE($M$2,$P$2,休暇希望!Z4)) ->  | BO9: =IF(休暇希望!AA4="","",DATE($M$2,$P$2,休暇希望!AA4)) ->  | BP9: =IF(休暇希望!AB4="","",DATE($M$2,$P$2,休暇希望!AB4)) ->  | BQ9: =IF(休暇希望!AC4="","",DATE($M$2,$P$2,休暇希望!AC4)) ->  | BR9: =IF(休暇希望!AD4="","",DATE($M$2,$P$2,休暇希望!AD4)) ->  | BS9: =IF(休暇希望!AE4="","",DATE($M$2,$P$2,休暇希望!AE4)) ->  | BT9: =IF(休暇希望!AF4="","",DATE($M$2,$P$2,休暇希望!AF4)) ->  | BU9: =IF(休暇希望!AG4="","",DATE($M$2,$P$2,休暇希望!AG4)) ->  | BV9: =IF(休暇希望!AH4="","",DATE($M$2,$P$2,休暇希望!AH4)) ->  | BW9: =IF(休暇希望!AI4="","",DATE($M$2,$P$2,休暇希望!AI4)) ->  | BY9: =M66 -> 248.75
A10: =TEXT($J10,"@") -> 6 | B10: =TEXT($L10,"@") -> 0 | C10: =$A10*$B10 -> 0 | G10: =IFERROR(-($C10-F10),"") ->  | I10: A | J10: =_xlfn.SWITCH($I10,"A",$X$3,"B",$Y$3,"C",$Z$3,"D",$AA$3,"E",$AB$3,) -> 6 | K10: 2 | L10: =NETWORKDAYS($O$3,$O$4,各種設定!$A$4:$A$22)-COUNTIF(M10:AQ10,">0") -> 00:00:00 | N10: 6 | O10: 6 | R10: 6 | S10: 6 | T10: 6 | U10: 6 | V10: 6 | Z10: 6 | AA10: 6 | AB10: 6 | AC10: 6 | AF10: 6 | AG10: 6 | AH10: 6 | AI10: 6 | AJ10: 6 | AM10: 6 | AN10: 6 | AO10: 6 | AP10: 6 | AQ10: 6 | AS10: =IF(休暇希望!E5="","",DATE($M$2,$P$2,休暇希望!E5)) -> 2025-01-14 | AT10: =IF(休暇希望!F5="","",DATE($M$2,$P$2,休暇希望!F5)) -> 2025-01-15 | AU10: =IF(休暇希望!G5="","",DATE($M$2,$P$2,休暇希望!G5)) -> 2025-01-17 | AV10: =IF(休暇希望!H5="","",DATE($M$2,$P$2,休暇希望!H5)) -> 2025-01-16 | AW10: =IF(休暇希望!I5="","",DATE($M$2,$P$2,休暇希望!I5)) -> 2025-01-23 | AX10: =IF(休暇希望!J5="","",DATE($M$2,$P$2,休暇希望!J5)) -> 2025-01-22 | AY10: =IF(休暇希望!K5="","",DATE($M$2,$P$2,休暇希望!K5)) -> 2025-01-20 | AZ10: =IF(休暇希望!L5="","",DATE($M$2,$P$2,休暇希望!L5)) -> 2025-01-21 | BA10: =IF(休暇希望!M5="","",DATE($M$2,$P$2,休暇希望!M5)) -> 2025-01-29 | BB10: =IF(休暇希望!N5="","",DATE($M$2,$P$2,休暇希望!N5)) -> 2025-01-24 | BC10: =IF(休暇希望!O5="","",DATE($M$2,$P$2,休暇希望!O5)) -> 2025-01-27 | BD10: =IF(休暇希望!P5="","",DATE($M$2,$P$2,休暇希望!P5)) -> 2025-01-28 | BE10: =IF(休暇希望!Q5="","",DATE($M$2,$P$2,休暇希望!Q5)) -> 2025-01-31 | BF10: =IF(休暇希望!R5="","",DATE($M$2,$P$2,休暇希望!R5)) -> 2025-01-30 | BG10: =IF(休暇希望!S5="","",DATE($M$2,$P$2,休暇希望!S5)) -> 2025-01-10 | BH10: =IF(休暇希望!T5="","",DATE($M$2,$P$2,休暇希望!T5)) -> 2025-01-09 | BI10: =IF(休暇希望!U5="","",DATE($M$2,$P$2,休暇希望!U5)) -> 2025-01-08 | BJ10: =IF(休暇希望!V5="","",DATE($M$2,$P$2,休暇希望!V5)) -> 2025-01-07 | BK10: =IF(休暇希望!W5="","",DATE($M$2,$P$2,休暇希望!W5)) -> 2025-01-06 | BL10: =IF(休暇希望!X5="","",DATE($M$2,$P$2,休暇希望!X5)) -> 2025-01-03 | BM10: =IF(休暇希望!Y5="","",DATE($M$2,$P$2,休暇希望!Y5)) -> 2025-01-02 | BN10: =IF(休暇希望!Z5="","",DATE($M$2,$P$2,休暇希望!Z5)) ->  | BO10: =IF(休暇希望!AA5="","",DATE($M$2,$P$2,休暇希望!AA5)) ->  | BP10: =IF(休暇希望!AB5="","",DATE($M$2,$P$2,休暇希望!AB5)) ->  | BQ10: =IF(休暇希望!AC5="","",DATE($M$2,$P$2,休暇希望!AC5)) ->  | BR10: =IF(休暇希望!AD5="","",DATE($M$2,$P$2,休暇希望!AD5)) ->  | BS10: =IF(休暇希望!AE5="","",DATE($M$2,$P$2,休暇希望!AE5)) ->  | BT10: =IF(休暇希望!AF5="","",DATE($M$2,$P$2,休暇希望!AF5)) ->  | BU10: =IF(休暇希望!AG5="","",DATE($M$2,$P$2,休暇希望!AG5)) ->  | BV10: =IF(休暇希望!AH5="","",DATE($M$2,$P$2,休暇希望!AH5)) ->  | BW10: =IF(休暇希望!AI5="","",DATE($M$2,$P$2,休暇希望!AI5)) ->  | BY10: =N66 -> 236.75
A11: 6 | B11: 21 | C11: 126 | I11: A | J11: =_xlfn.SWITCH($I11,"A",$X$3,"B",$Y$3,"C",$Z$3,"D",$AA$3,"E",$AB$3,) -> 6 | K11: 3 | L11: =NETWORKDAYS($O$3,$O$4,各種設定!$A$4:$A$22)-COUNTIF(M11:AQ11,">0") -> 1900-01-21 | AS11: =IF(休暇希望!E6="","",DATE($M$2,$P$2,休暇希望!E6)) ->  | AT11: =IF(休暇希望!F6="","",DATE($M$2,$P$2,休暇希望!F6)) ->  | AU11: =IF(休暇希望!G6="","",DATE($M$2,$P$2,休暇希望!G6)) ->  | AV11: =IF(休暇希望!H6="","",DATE($M$2,$P$2,休暇希望!H6)) ->  | AW11: =IF(休暇希望!I6="","",DATE($M$2,$P$2,休暇希望!I6)) ->  | AX11: =IF(休暇希望!J6="","",DATE($M$2,$P$2,休暇希望!J6)) ->  | AY11: =IF(休暇希望!K6="","",DATE($M$2,$P$2,休暇希望!K6)) ->  | AZ11: =IF(休暇希望!L6="","",DATE($M$2,$P$2,休暇希望!L6)) ->  | BA11: =IF(休暇希望!M6="","",DATE($M$2,$P$2,休暇希望!M6)) ->  | BB11: =IF(休暇希望!N6="","",DATE($M$2,$P$2,休暇希望!N6)) ->  | BC11: =IF(休暇希望!O6="","",DATE($M$2,$P$2,休暇希望!O6)) ->  | BD11: =IF(休暇希望!P6="","",DATE($M$2,$P$2,休暇希望!P6)) ->  | BE11: =IF(休暇希望!Q6="","",DATE($M$2,$P$2,休暇希望!Q6)) ->  | BF11: =IF(休暇希望!R6="","",DATE($M$2,$P$2,休暇希望!R6)) ->  | BG11: =IF(休暇希望!S6="","",DATE($M$2,$P$2,休暇希望!S6)) ->  | BH11: =IF(休暇希望!T6="","",DATE($M$2,$P$2,休暇希望!T6)) ->  | BI11: =IF(休暇希望!U6="","",DATE($M$2,$P$2,休暇希望!U6)) ->  | BJ11: =IF(休暇希望!V6="","",DATE($M$2,$P$2,休暇希望!V6)) ->  | BK11: =IF(休暇希望!W6="","",DATE($M$2,$P$2,休暇希望!W6)) ->  | BL11: =IF(休暇希望!X6="","",DATE($M$2,$P$2,休暇希望!X6)) ->  | BM11: =IF(休暇希望!Y6="","",DATE($M$2,$P$2,休暇希望!Y6)) ->  | BN11: =IF(休暇希望!Z6="","",DATE($M$2,$P$2,休暇希望!Z6)) ->  | BO11: =IF(休暇希望!AA6="","",DATE($M$2,$P$2,休暇希望!AA6)) ->  | BP11: =IF(休暇希望!AB6="","",DATE($M$2,$P$2,休暇希望!AB6)) ->  | BQ11: =IF(休暇希望!AC6="","",DATE($M$2,$P$2,休暇希望!AC6)) ->  | BR11: =IF(休暇希望!AD6="","",DATE($M$2,$P$2,休暇希望!AD6)) ->  | BS11: =IF(休暇希望!AE6="","",DATE($M$2,$P$2,休暇希望!AE6)) ->  | BT11: =IF(休暇希望!AF6="","",DATE($M$2,$P$2,休暇希望!AF6)) ->  | BU11: =IF(休暇希望!AG6="","",DATE($M$2,$P$2,休暇希望!AG6)) ->  | BV11: =IF(休暇希望!AH6="","",DATE($M$2,$P$2,休暇希望!AH6)) ->  | BW11: =IF(休暇希望!AI6="","",DATE($M$2,$P$2,休暇希望!AI6)) ->  | BY11: =O66 -> 236.75
A12: 6 | B12: 21 | C12: 126 | D12: 88000 | E12: 1000 | F12: =IFERROR(D12/E12,"") -> 88 | G12: -38 | I12: A | J12: =_xlfn.SWITCH($I12,"A",$X$3,"B",$Y$3,"C",$Z$3,"D",$AA$3,"E",$AB$3,) -> 6 | K12: 4 | L12: =NETWORKDAYS($O$3,$O$4,各種設定!$A$4:$A$22)-COUNTIF(M12:AQ12,">0") -> 1900-01-21 | AS12: =IF(休暇希望!E7="","",DATE($M$2,$P$2,休暇希望!E7)) ->  | AT12: =IF(休暇希望!F7="","",DATE($M$2,$P$2,休暇希望!F7)) ->  | AU12: =IF(休暇希望!G7="","",DATE($M$2,$P$2,休暇希望!G7)) ->  | AV12: =IF(休暇希望!H7="","",DATE($M$2,$P$2,休暇希望!H7)) ->  | AW12: =IF(休暇希望!I7="","",DATE($M$2,$P$2,休暇希望!I7)) ->  | AX12: =IF(休暇希望!J7="","",DATE($M$2,$P$2,休暇希望!J7)) ->  | AY12: =IF(休暇希望!K7="","",DATE($M$2,$P$2,休暇希望!K7)) ->  | AZ12: =IF(休暇希望!L7="","",DATE($M$2,$P$2,休暇希望!L7)) ->  | BA12: =IF(休暇希望!M7="","",DATE($M$2,$P$2,休暇希望!M7)) ->  | BB12: =IF(休暇希望!N7="","",DATE($M$2,$P$2,休暇希望!N7)) ->  | BC12: =IF(休暇希望!O7="","",DATE($M$2,$P$2,休暇希望!O7)) ->  | BD12: =IF(休暇希望!P7="","",DATE($M$2,$P$2,休暇希望!P7)) ->  | BE12: =IF(休暇希望!Q7="","",DATE($M$2,$P$2,休暇希望!Q7)) ->  | BF12: =IF(休暇希望!R7="","",DATE($M$2,$P$2,休暇希望!R7)) ->  | BG12: =IF(休暇希望!S7="","",DATE($M$2,$P$2,休暇希望!S7)) ->  | BH12: =IF(休暇希望!T7="","",DATE($M$2,$P$2,休暇希望!T7)) ->  | BI12: =IF(休暇希望!U7="","",DATE($M$2,$P$2,休暇希望!U7)) ->  | BJ12: =IF(休暇希望!V7="","",DATE($M$2,$P$2,休暇希望!V7)) ->  | BK12: =IF(休暇希望!W7="","",DATE($M$2,$P$2,休暇希望!W7)) ->  | BL12: =IF(休暇希望!X7="","",DATE($M$2,$P$2,休暇希望!X7)) ->  | BM12: =IF(休暇希望!Y7="","",DATE($M$2,$P$2,休暇希望!Y7)) ->  | BN12: =IF(休暇希望!Z7="","",DATE($M$2,$P$2,休暇希望!Z7)) ->  | BO12: =IF(休暇希望!AA7="","",DATE($M$2,$P$2,休暇希望!AA7)) ->  | BP12: =IF(休暇希望!AB7="","",DATE($M$2,$P$2,休暇希望!AB7)) ->  | BQ12: =IF(休暇希望!AC7="","",DATE($M$2,$P$2,休暇希望!AC7)) ->  | BR12: =IF(休暇希望!AD7="","",DATE($M$2,$P$2,休暇希望!AD7)) ->  | BS12: =IF(休暇希望!AE7="","",DATE($M$2,$P$2,休暇希望!AE7)) ->  | BT12: =IF(休暇希望!AF7="","",DATE($M$2,$P$2,休暇希望!AF7)) ->  | BU12: =IF(休暇希望!AG7="","",DATE($M$2,$P$2,休暇希望!AG7)) ->  | BV12: =IF(休暇希望!AH7="","",DATE($M$2,$P$2,休暇希望!AH7)) ->  | BW12: =IF(休暇希望!AI7="","",DATE($M$2,$P$2,休暇希望!AI7)) ->  | BY12: =P66 -> 248.75
A13: 6 | B13: 21 | C13: 126 | F13: =IFERROR(D13/E13,"") ->  | I13: A | J13: 6 | K13: 5 | L13: =NETWORKDAYS($O$3,$O$4,各種設定!$A$4:$A$22)-COUNTIF(M13:AQ13,">0") -> 1900-01-21 | AS13: =IF(休暇希望!E8="","",DATE($M$2,$P$2,休暇希望!E8)) ->  | AT13: =IF(休暇希望!F8="","",DATE($M$2,$P$2,休暇希望!F8)) ->  | AU13: =IF(休暇希望!G8="","",DATE($M$2,$P$2,休暇希望!G8)) ->  | AV13: =IF(休暇希望!H8="","",DATE($M$2,$P$2,休暇希望!H8)) ->  | AW13: =IF(休暇希望!I8="","",DATE($M$2,$P$2,休暇希望!I8)) ->  | AX13: =IF(休暇希望!J8="","",DATE($M$2,$P$2,休暇希望!J8)) ->  | AY13: =IF(休暇希望!K8="","",DATE($M$2,$P$2,休暇希望!K8)) ->  | AZ13: =IF(休暇希望!L8="","",DATE($M$2,$P$2,休暇希望!L8)) ->  | BA13: =IF(休暇希望!M8="","",DATE($M$2,$P$2,休暇希望!M8)) ->  | BB13: =IF(休暇希望!N8="","",DATE($M$2,$P$2,休暇希望!N8)) ->  | BC13: =IF(休暇希望!O8="","",DATE($M$2,$P$2,休暇希望!O8)) ->  | BD13: =IF(休暇希望!P8="","",DATE($M$2,$P$2,休暇希望!P8)) ->  | BE13: =IF(休暇希望!Q8="","",DATE($M$2,$P$2,休暇希望!Q8)) ->  | BF13: =IF(休暇希望!R8="","",DATE($M$2,$P$2,休暇希望!R8)) ->  | BG13: =IF(休暇希望!S8="","",DATE($M$2,$P$2,休暇希望!S8)) ->  | BH13: =IF(休暇希望!T8="","",DATE($M$2,$P$2,休暇希望!T8)) ->  | BI13: =IF(休暇希望!U8="","",DATE($M$2,$P$2,休暇希望!U8)) ->  | BJ13: =IF(休暇希望!V8="","",DATE($M$2,$P$2,休暇希望!V8)) ->  | BK13: =IF(休暇希望!W8="","",DATE($M$2,$P$2,休暇希望!W8)) ->  | BL13: =IF(休暇希望!X8="","",DATE($M$2,$P$2,休暇希望!X8)) ->  | BM13: =IF(休暇希望!Y8="","",DATE($M$2,$P$2,休暇希望!Y8)) ->  | BN13: =IF(休暇希望!Z8="","",DATE($M$2,$P$2,休暇希望!Z8)) ->  | BO13: =IF(休暇希望!AA8="","",DATE($M$2,$P$2,休暇希望!AA8)) ->  | BP13: =IF(休暇希望!AB8="","",DATE($M$2,$P$2,休暇希望!AB8)) ->  | BQ13: =IF(休暇希望!AC8="","",DATE($M$2,$P$2,休暇希望!AC8)) ->  | BR13: =IF(休暇希望!AD8="","",DATE($M$2,$P$2,休暇希望!AD8)) ->  | BS13: =IF(休暇希望!AE8="","",DATE($M$2,$P$2,休暇希望!AE8)) ->  | BT13: =IF(休暇希望!AF8="","",DATE($M$2,$P$2,休暇希望!AF8)) ->  | BU13: =IF(休暇希望!AG8="","",DATE($M$2,$P$2,休暇希望!AG8)) ->  | BV13: =IF(休暇希望!AH8="","",DATE($M$2,$P$2,休暇希望!AH8)) ->  | BW13: =IF(休暇希望!AI8="","",DATE($M$2,$P$2,休暇希望!AI8)) ->  | BY13: =Q66 -> 248.75
A14: 7 | B14: 21 | C14: 147 | I14: B | J14: 7 | K14: 6 | L14: =NETWORKDAYS($O$3,$O$4,各種設定!$A$4:$A$22)-COUNTIF(M14:AQ14,">0") -> 1900-01-21 | AS14: =IF(休暇希望!E9="","",DATE($M$2,$P$2,休暇希望!E9)) ->  | AT14: =IF(休暇希望!F9="","",DATE($M$2,$P$2,休暇希望!F9)) ->  | AU14: =IF(休暇希望!G9="","",DATE($M$2,$P$2,休暇希望!G9)) ->  | AV14: =IF(休暇希望!H9="","",DATE($M$2,$P$2,休暇希望!H9)) ->  | AW14: =IF(休暇希望!I9="","",DATE($M$2,$P$2,休暇希望!I9)) ->  | AX14: =IF(休暇希望!J9="","",DATE($M$2,$P$2,休暇希望!J9)) ->  | AY14: =IF(休暇希望!K9="","",DATE($M$2,$P$2,休暇希望!K9)) ->  | AZ14: =IF(休暇希望!L9="","",DATE($M$2,$P$2,休暇希望!L9)) ->  | BA14: =IF(休暇希望!M9="","",DATE($M$2,$P$2,休暇希望!M9)) ->  | BB14: =IF(休暇希望!N9="","",DATE($M$2,$P$2,休暇希望!N9)) ->  | BC14: =IF(休暇希望!O9="","",DATE($M$2,$P$2,休暇希望!O9)) ->  | BD14: =IF(休暇希望!P9="","",DATE($M$2,$P$2,休暇希望!P9)) ->  | BE14: =IF(休暇希望!Q9="","",DATE($M$2,$P$2,休暇希望!Q9)) ->  | BF14: =IF(休暇希望!R9="","",DATE($M$2,$P$2,休暇希望!R9)) ->  | BG14: =IF(休暇希望!S9="","",DATE($M$2,$P$2,休暇希望!S9)) ->  | BH14: =IF(休暇希望!T9="","",DATE($M$2,$P$2,休暇希望!T9)) ->  | BI14: =IF(休暇希望!U9="","",DATE($M$2,$P$2,休暇希望!U9)) ->  | BJ14: =IF(休暇希望!V9="","",DATE($M$2,$P$2,休暇希望!V9)) ->  | BK14: =IF(休暇希望!W9="","",DATE($M$2,$P$2,休暇希望!W9)) ->  | BL14: =IF(休暇希望!X9="","",DATE($M$2,$P$2,休暇希望!X9)) ->  | BM14: =IF(休暇希望!Y9="","",DATE($M$2,$P$2,休暇希望!Y9)) ->  | BN14: =IF(休暇希望!Z9="","",DATE($M$2,$P$2,休暇希望!Z9)) ->  | BO14: =IF(休暇希望!AA9="","",DATE($M$2,$P$2,休暇希望!AA9)) ->  | BP14: =IF(休暇希望!AB9="","",DATE($M$2,$P$2,休暇希望!AB9)) ->  | BQ14: =IF(休暇希望!AC9="","",DATE($M$2,$P$2,休暇希望!AC9)) ->  | BR14: =IF(休暇希望!AD9="","",DATE($M$2,$P$2,休暇希望!AD9)) ->  | BS14: =IF(休暇希望!AE9="","",DATE($M$2,$P$2,休暇希望!AE9)) ->  | BT14: =IF(休暇希望!AF9="","",DATE($M$2,$P$2,休暇希望!AF9)) ->  | BU14: =IF(休暇希望!AG9="","",DATE($M$2,$P$2,休暇希望!AG9)) ->  | BV14: =IF(休暇希望!AH9="","",DATE($M$2,$P$2,休暇希望!AH9)) ->  | BW14: =IF(休暇希望!AI9="","",DATE($M$2,$P$2,休暇希望!AI9)) ->  | BY14: =R66 -> 236.75
A15: 7 | B15: 21 | C15: 147 | I15: B | J15: 7 | K15: 7 | L15: =NETWORKDAYS($O$3,$O$4,各種設定!$A$4:$A$22)-COUNTIF(M15:AQ15,">0") -> 1900-01-21 | AS15: =IF(休暇希望!E10="","",DATE($M$2,$P$2,休暇希望!E10)) ->  | AT15: =IF(休暇希望!F10="","",DATE($M$2,$P$2,休暇希望!F10)) ->  | AU15: =IF(休暇希望!G10="","",DATE($M$2,$P$2,休暇希望!G10)) ->  | AV15: =IF(休暇希望!H10="","",DATE($M$2,$P$2,休暇希望!H10)) ->  | AW15: =IF(休暇希望!I10="","",DATE($M$2,$P$2,休暇希望!I10)) ->  | AX15: =IF(休暇希望!J10="","",DATE($M$2,$P$2,休暇希望!J10)) ->  | AY15: =IF(休暇希望!K10="","",DATE($M$2,$P$2,休暇希望!K10)) ->  | AZ15: =IF(休暇希望!L10="","",DATE($M$2,$P$2,休暇希望!L10)) ->  | BA15: =IF(休暇希望!M10="","",DATE($M$2,$P$2,休暇希望!M10)) ->  | BB15: =IF(休暇希望!N10="","",DATE($M$2,$P$2,休暇希望!N10)) ->  | BC15: =IF(休暇希望!O10="","",DATE($M$2,$P$2,休暇希望!O10)) ->  | BD15: =IF(休暇希望!P10="","",DATE($M$2,$P$2,休暇希望!P10)) ->  | BE15: =IF(休暇希望!Q10="","",DATE($M$2,$P$2,休暇希望!Q10)) ->  | BF15: =IF(休暇希望!R10="","",DATE($M$2,$P$2,休暇希望!R10)) ->  | BG15: =IF(休暇希望!S10="","",DATE($M$2,$P$2,休暇希望!S10)) ->  | BH15: =IF(休暇希望!T10="","",DATE($M$2,$P$2,休暇希望!T10)) ->  | BI15: =IF(休暇希望!U10="","",DATE($M$2,$P$2,休暇希望!U10)) ->  | BJ15: =IF(休暇希望!V10="","",DATE($M$2,$P$2,休暇希望!V10)) ->  | BK15: =IF(休暇希望!W10="","",DATE($M$2,$P$2,休暇希望!W10)) ->  | BL15: =IF(休暇希望!X10="","",DATE($M$2,$P$2,休暇希望!X10)) ->  | BM15: =IF(休暇希望!Y10="","",DATE($M$2,$P$2,休暇希望!Y10)) ->  | BN15: =IF(休暇希望!Z10="","",DATE($M$2,$P$2,休暇希望!Z10)) ->  | BO15: =IF(休暇希望!AA10="","",DATE($M$2,$P$2,休暇希望!AA10)) ->  | BP15: =IF(休暇希望!AB10="","",DATE($M$2,$P$2,休暇希望!AB10)) ->  | BQ15: =IF(休暇希望!AC10="","",DATE($M$2,$P$2,休暇希望!AC10)) ->  | BR15: =IF(休暇希望!AD10="","",DATE($M$2,$P$2,休暇希望!AD10)) ->  | BS15: =IF(休暇希望!AE10="","",DATE($M$2,$P$2,休暇希望!AE10)) ->  | BT15: =IF(休暇希望!AF10="","",DATE($M$2,$P$2,休暇希望!AF10)) ->  | BU15: =IF(休暇希望!AG10="","",DATE($M$2,$P$2,休暇希望!AG10)) ->  | BV15: =IF(休暇希望!AH10="","",DATE($M$2,$P$2,休暇希望!AH10)) ->  | BW15: =IF(休暇希望!AI10="","",DATE($M$2,$P$2,休暇希望!AI10)) ->  | BY15: =S66 -> 236.75
A16: 7 | B16: 21 | C16: 147 | I16: B | J16: 7 | K16: 8 | L16: =NETWORKDAYS($O$3,$O$4,各種設定!$A$4:$A$22)-COUNTIF(M16:AQ16,">0") -> 1900-01-21 | AS16: =IF(休暇希望!E11="","",DATE($M$2,$P$2,休暇希望!E11)) ->  | AT16: =IF(休暇希望!F11="","",DATE($M$2,$P$2,休暇希望!F11)) ->  | AU16: =IF(休暇希望!G11="","",DATE($M$2,$P$2,休暇希望!G11)) ->  | AV16: =IF(休暇希望!H11="","",DATE($M$2,$P$2,休暇希望!H11)) ->  | AW16: =IF(休暇希望!I11="","",DATE($M$2,$P$2,休暇希望!I11)) ->  | AX16: =IF(休暇希望!J11="","",DATE($M$2,$P$2,休暇希望!J11)) ->  | AY16: =IF(休暇希望!K11="","",DATE($M$2,$P$2,休暇希望!K11)) ->  | AZ16: =IF(休暇希望!L11="","",DATE($M$2,$P$2,休暇希望!L11)) ->  | BA16: =IF(休暇希望!M11="","",DATE($M$2,$P$2,休暇希望!M11)) ->  | BB16: =IF(休暇希望!N11="","",DATE($M$2,$P$2,休暇希望!N11)) ->  | BC16: =IF(休暇希望!O11="","",DATE($M$2,$P$2,休暇希望!O11)) ->  | BD16: =IF(休暇希望!P11="","",DATE($M$2,$P$2,休暇希望!P11)) ->  | BE16: =IF(休暇希望!Q11="","",DATE($M$2,$P$2,休暇希望!Q11)) ->  | BF16: =IF(休暇希望!R11="","",DATE($M$2,$P$2,休暇希望!R11)) ->  | BG16: =IF(休暇希望!S11="","",DATE($M$2,$P$2,休暇希望!S11)) ->  | BH16: =IF(休暇希望!T11="","",DATE($M$2,$P$2,休暇希望!T11)) ->  | BI16: =IF(休暇希望!U11="","",DATE($M$2,$P$2,休暇希望!U11)) ->  | BJ16: =IF(休暇希望!V11="","",DATE($M$2,$P$2,休暇希望!V11)) ->  | BK16: =IF(休暇希望!W11="","",DATE($M$2,$P$2,休暇希望!W11)) ->  | BL16: =IF(休暇希望!X11="","",DATE($M$2,$P$2,休暇希望!X11)) ->  | BM16: =IF(休暇希望!Y11="","",DATE($M$2,$P$2,休暇希望!Y11)) ->  | BN16: =IF(休暇希望!Z11="","",DATE($M$2,$P$2,休暇希望!Z11)) ->  | BO16: =IF(休暇希望!AA11="","",DATE($M$2,$P$2,休暇希望!AA11)) ->  | BP16: =IF(休暇希望!AB11="","",DATE($M$2,$P$2,休暇希望!AB11)) ->  | BQ16: =IF(休暇希望!AC11="","",DATE($M$2,$P$2,休暇希望!AC11)) ->  | BR16: =IF(休暇希望!AD11="","",DATE($M$2,$P$2,休暇希望!AD11)) ->  | BS16: =IF(休暇希望!AE11="","",DATE($M$2,$P$2,休暇希望!AE11)) ->  | BT16: =IF(休暇希望!AF11="","",DATE($M$2,$P$2,休暇希望!AF11)) ->  | BU16: =IF(休暇希望!AG11="","",DATE($M$2,$P$2,休暇希望!AG11)) ->  | BV16: =IF(休暇希望!AH11="","",DATE($M$2,$P$2,休暇希望!AH11)) ->  | BW16: =IF(休暇希望!AI11="","",DATE($M$2,$P$2,休暇希望!AI11)) ->  | BY16: =T66 -> 236.75
A17: 7 | B17: 21 | C17: 147 | I17: B | J17: 7 | K17: 9 | L17: =NETWORKDAYS($O$3,$O$4,各種設定!$A$4:$A$22)-COUNTIF(M17:AQ17,">0") -> 1900-01-21 | AS17: =IF(休暇希望!E12="","",DATE($M$2,$P$2,休暇希望!E12)) ->  | AT17: =IF(休暇希望!F12="","",DATE($M$2,$P$2,休暇希望!F12)) ->  | AU17: =IF(休暇希望!G12="","",DATE($M$2,$P$2,休暇希望!G12)) ->  | AV17: =IF(休暇希望!H12="","",DATE($M$2,$P$2,休暇希望!H12)) ->  | AW17: =IF(休暇希望!I12="","",DATE($M$2,$P$2,休暇希望!I12)) ->  | AX17: =IF(休暇希望!J12="","",DATE($M$2,$P$2,休暇希望!J12)) ->  | AY17: =IF(休暇希望!K12="","",DATE($M$2,$P$2,休暇希望!K12)) ->  | AZ17: =IF(休暇希望!L12="","",DATE($M$2,$P$2,休暇希望!L12)) ->  | BA17: =IF(休暇希望!M12="","",DATE($M$2,$P$2,休暇希望!M12)) ->  | BB17: =IF(休暇希望!N12="","",DATE($M$2,$P$2,休暇希望!N12)) ->  | BC17: =IF(休暇希望!O12="","",DATE($M$2,$P$2,休暇希望!O12)) ->  | BD17: =IF(休暇希望!P12="","",DATE($M$2,$P$2,休暇希望!P12)) ->  | BE17: =IF(休暇希望!Q12="","",DATE($M$2,$P$2,休暇希望!Q12)) ->  | BF17: =IF(休暇希望!R12="","",DATE($M$2,$P$2,休暇希望!R12)) ->  | BG17: =IF(休暇希望!S12="","",DATE($M$2,$P$2,休暇希望!S12)) ->  | BH17: =IF(休暇希望!T12="","",DATE($M$2,$P$2,休暇希望!T12)) ->  | BI17: =IF(休暇希望!U12="","",DATE($M$2,$P$2,休暇希望!U12)) ->  | BJ17: =IF(休暇希望!V12="","",DATE($M$2,$P$2,休暇希望!V12)) ->  | BK17: =IF(休暇希望!W12="","",DATE($M$2,$P$2,休暇希望!W12)) ->  | BL17: =IF(休暇希望!X12="","",DATE($M$2,$P$2,休暇希望!X12)) ->  | BM17: =IF(休暇希望!Y12="","",DATE($M$2,$P$2,休暇希望!Y12)) ->  | BN17: =IF(休暇希望!Z12="","",DATE($M$2,$P$2,休暇希望!Z12)) ->  | BO17: =IF(休暇希望!AA12="","",DATE($M$2,$P$2,休暇希望!AA12)) ->  | BP17: =IF(休暇希望!AB12="","",DATE($M$2,$P$2,休暇希望!AB12)) ->  | BQ17: =IF(休暇希望!AC12="","",DATE($M$2,$P$2,休暇希望!AC12)) ->  | BR17: =IF(休暇希望!AD12="","",DATE($M$2,$P$2,休暇希望!AD12)) ->  | BS17: =IF(休暇希望!AE12="","",DATE($M$2,$P$2,休暇希望!AE12)) ->  | BT17: =IF(休暇希望!AF12="","",DATE($M$2,$P$2,休暇希望!AF12)) ->  | BU17: =IF(休暇希望!AG12="","",DATE($M$2,$P$2,休暇希望!AG12)) ->  | BV17: =IF(休暇希望!AH12="","",DATE($M$2,$P$2,休暇希望!AH12)) ->  | BW17: =IF(休暇希望!AI12="","",DATE($M$2,$P$2,休暇希望!AI12)) ->  | BY17: =U66 -> 236.75
A18: 7 | B18: 21 | C18: 147 | I18: B | J18: 7 | K18: 10 | L18: =NETWORKDAYS($O$3,$O$4,各種設定!$A$4:$A$22)-COUNTIF(M18:AQ18,">0") -> 1900-01-21 | AS18: =IF(休暇希望!E13="","",DATE($M$2,$P$2,休暇希望!E13)) ->  | AT18: =IF(休暇希望!F13="","",DATE($M$2,$P$2,休暇希望!F13)) ->  | AU18: =IF(休暇希望!G13="","",DATE($M$2,$P$2,休暇希望!G13)) ->  | AV18: =IF(休暇希望!H13="","",DATE($M$2,$P$2,休暇希望!H13)) ->  | AW18: =IF(休暇希望!I13="","",DATE($M$2,$P$2,休暇希望!I13)) ->  | AX18: =IF(休暇希望!J13="","",DATE($M$2,$P$2,休暇希望!J13)) ->  | AY18: =IF(休暇希望!K13="","",DATE($M$2,$P$2,休暇希望!K13)) ->  | AZ18: =IF(休暇希望!L13="","",DATE($M$2,$P$2,休暇希望!L13)) ->  | BA18: =IF(休暇希望!M13="","",DATE($M$2,$P$2,休暇希望!M13)) ->  | BB18: =IF(休暇希望!N13="","",DATE($M$2,$P$2,休暇希望!N13)) ->  | BC18: =IF(休暇希望!O13="","",DATE($M$2,$P$2,休暇希望!O13)) ->  | BD18: =IF(休暇希望!P13="","",DATE($M$2,$P$2,休暇希望!P13)) ->  | BE18: =IF(休暇希望!Q13="","",DATE($M$2,$P$2,休暇希望!Q13)) ->  | BF18: =IF(休暇希望!R13="","",DATE($M$2,$P$2,休暇希望!R13)) ->  | BG18: =IF(休暇希望!S13="","",DATE($M$2,$P$2,休暇希望!S13)) ->  | BH18: =IF(休暇希望!T13="","",DATE($M$2,$P$2,休暇希望!T13)) ->  | BI18: =IF(休暇希望!U13="","",DATE($M$2,$P$2,休暇希望!U13)) ->  | BJ18: =IF(休暇希望!V13="","",DATE($M$2,$P$2,休暇希望!V13)) ->  | BK18: =IF(休暇希望!W13="","",DATE($M$2,$P$2,休暇希望!W13)) ->  | BL18: =IF(休暇希望!X13="","",DATE($M$2,$P$2,休暇希望!X13)) ->  | BM18: =IF(休暇希望!Y13="","",DATE($M$2,$P$2,休暇希望!Y13)) ->  | BN18: =IF(休暇希望!Z13="","",DATE($M$2,$P$2,休暇希望!Z13)) ->  | BO18: =IF(休暇希望!AA13="","",DATE($M$2,$P$2,休暇希望!AA13)) ->  | BP18: =IF(休暇希望!AB13="","",DATE($M$2,$P$2,休暇希望!AB13)) ->  | BQ18: =IF(休暇希望!AC13="","",DATE($M$2,$P$2,休暇希望!AC13)) ->  | BR18: =IF(休暇希望!AD13="","",DATE($M$2,$P$2,休暇希望!AD13)) ->  | BS18: =IF(休暇希望!AE13="","",DATE($M$2,$P$2,休暇希望!AE13)) ->  | BT18: =IF(休暇希望!AF13="","",DATE($M$2,$P$2,休暇希望!AF13)) ->  | BU18: =IF(休暇希望!AG13="","",DATE($M$2,$P$2,休暇希望!AG13)) ->  | BV18: =IF(休暇希望!AH13="","",DATE($M$2,$P$2,休暇希望!AH13)) ->  | BW18: =IF(休暇希望!AI13="","",DATE($M$2,$P$2,休暇希望!AI13)) ->  | BY18: =V66 -> 236.75
A19: 7.5 | B19: 21 | C19: 157.5 | I19: C | J19: 7.5 | K19: 11 | L19: =NETWORKDAYS($O$3,$O$4,各種設定!$A$4:$A$22)-COUNTIF(M19:AQ19,">0") -> 1900-01-21 | M19: =IF(M$7="","",IF(COUNTIF($AS19:$BW19,M$7)>0,$J19,"")) ->  | W19: =IF(W$7="","",IF(COUNTIF($AS19:$BW19,W$7)>0,$J19,"")) ->  | AG19: =IF(AG$7="","",IF(COUNTIF($AS19:$BW19,AG$7)>0,$J19,"")) ->  | AS19: =IF(休暇希望!E14="","",DATE($M$2,$P$2,休暇希望!E14)) ->  | AT19: =IF(休暇希望!F14="","",DATE($M$2,$P$2,休暇希望!F14)) ->  | AU19: =IF(休暇希望!G14="","",DATE($M$2,$P$2,休暇希望!G14)) ->  | AV19: =IF(休暇希望!H14="","",DATE($M$2,$P$2,休暇希望!H14)) ->  | AW19: =IF(休暇希望!I14="","",DATE($M$2,$P$2,休暇希望!I14)) ->  | AX19: =IF(休暇希望!J14="","",DATE($M$2,$P$2,休暇希望!J14)) ->  | AY19: =IF(休暇希望!K14="","",DATE($M$2,$P$2,休暇希望!K14)) ->  | AZ19: =IF(休暇希望!L14="","",DATE($M$2,$P$2,休暇希望!L14)) ->  | BA19: =IF(休暇希望!M14="","",DATE($M$2,$P$2,休暇希望!M14)) ->  | BB19: =IF(休暇希望!N14="","",DATE($M$2,$P$2,休暇希望!N14)) ->  | BC19: =IF(休暇希望!O14="","",DATE($M$2,$P$2,休暇希望!O14)) ->  | BD19: =IF(休暇希望!P14="","",DATE($M$2,$P$2,休暇希望!P14)) ->  | BE19: =IF(休暇希望!Q14="","",DATE($M$2,$P$2,休暇希望!Q14)) ->  | BF19: =IF(休暇希望!R14="","",DATE($M$2,$P$2,休暇希望!R14)) ->  | BG19: =IF(休暇希望!S14="","",DATE($M$2,$P$2,休暇希望!S14)) ->  | BH19: =IF(休暇希望!T14="","",DATE($M$2,$P$2,休暇希望!T14)) ->  | BI19: =IF(休暇希望!U14="","",DATE($M$2,$P$2,休暇希望!U14)) ->  | BJ19: =IF(休暇希望!V14="","",DATE($M$2,$P$2,休暇希望!V14)) ->  | BK19: =IF(休暇希望!W14="","",DATE($M$2,$P$2,休暇希望!W14)) ->  | BL19: =IF(休暇希望!X14="","",DATE($M$2,$P$2,休暇希望!X14)) ->  | BM19: =IF(休暇希望!Y14="","",DATE($M$2,$P$2,休暇希望!Y14)) ->  | BN19: =IF(休暇希望!Z14="","",DATE($M$2,$P$2,休暇希望!Z14)) ->  | BO19: =IF(休暇希望!AA14="","",DATE($M$2,$P$2,休暇希望!AA14)) ->  | BP19: =IF(休暇希望!AB14="","",DATE($M$2,$P$2,休暇希望!AB14)) ->  | BQ19: =IF(休暇希望!AC14="","",DATE($M$2,$P$2,休暇希望!AC14)) ->  | BR19: =IF(休暇希望!AD14="","",DATE($M$2,$P$2,休暇希望!AD14)) ->  | BS19: =IF(休暇希望!AE14="","",DATE($M$2,$P$2,休暇希望!AE14)) ->  | BT19: =IF(休暇希望!AF14="","",DATE($M$2,$P$2,休暇希望!AF14)) ->  | BU19: =IF(休暇希望!AG14="","",DATE($M$2,$P$2,休暇希望!AG14)) ->  | BV19: =IF(休暇希望!AH14="","",DATE($M$2,$P$2,休暇希望!AH14)) ->  | BW19: =IF(休暇希望!AI14="","",DATE($M$2,$P$2,休暇希望!AI14)) ->  | BY19: =W66 -> 248.75
A20: 7.5 | B20: 21 | C20: 157.5 | I20: C | J20: 7.5 | K20: 12 | L20: =NETWORKDAYS($O$3,$O$4,各種設定!$A$4:$A$22)-COUNTIF(M20:AQ20,">0") -> 1900-01-21 | AS20: =IF(休暇希望!E15="","",DATE($M$2,$P$2,休暇希望!E15)) ->  | AT20: =IF(休暇希望!F15="","",DATE($M$2,$P$2,休暇希望!F15)) ->  | AU20: =IF(休暇希望!G15="","",DATE($M$2,$P$2,休暇希望!G15)) ->  | AV20: =IF(休暇希望!H15="","",DATE($M$2,$P$2,休暇希望!H15)) ->  | AW20: =IF(休暇希望!I15="","",DATE($M$2,$P$2,休暇希望!I15)) ->  | AX20: =IF(休暇希望!J15="","",DATE($M$2,$P$2,休暇希望!J15)) ->  | AY20: =IF(休暇希望!K15="","",DATE($M$2,$P$2,休暇希望!K15)) ->  | AZ20: =IF(休暇希望!L15="","",DATE($M$2,$P$2,休暇希望!L15)) ->  | BA20: =IF(休暇希望!M15="","",DATE($M$2,$P$2,休暇希望!M15)) ->  | BB20: =IF(休暇希望!N15="","",DATE($M$2,$P$2,休暇希望!N15)) ->  | BC20: =IF(休暇希望!O15="","",DATE($M$2,$P$2,休暇希望!O15)) ->  | BD20: =IF(休暇希望!P15="","",DATE($M$2,$P$2,休暇希望!P15)) ->  | BE20: =IF(休暇希望!Q15="","",DATE($M$2,$P$2,休暇希望!Q15)) ->  | BF20: =IF(休暇希望!R15="","",DATE($M$2,$P$2,休暇希望!R15)) ->  | BG20: =IF(休暇希望!S15="","",DATE($M$2,$P$2,休暇希望!S15)) ->  | BH20: =IF(休暇希望!T15="","",DATE($M$2,$P$2,休暇希望!T15)) ->  | BI20: =IF(休暇希望!U15="","",DATE($M$2,$P$2,休暇希望!U15)) ->  | BJ20: =IF(休暇希望!V15="","",DATE($M$2,$P$2,休暇希望!V15)) ->  | BK20: =IF(休暇希望!W15="","",DATE($M$2,$P$2,休暇希望!W15)) ->  | BL20: =IF(休暇希望!X15="","",DATE($M$2,$P$2,休暇希望!X15)) ->  | BM20: =IF(休暇希望!Y15="","",DATE($M$2,$P$2,休暇希望!Y15)) ->  | BN20: =IF(休暇希望!Z15="","",DATE($M$2,$P$2,休暇希望!Z15)) ->  | BO20: =IF(休暇希望!AA15="","",DATE($M$2,$P$2,休暇希望!AA15)) ->  | BP20: =IF(休暇希望!AB15="","",DATE($M$2,$P$2,休暇希望!AB15)) ->  | BQ20: =IF(休暇希望!AC15="","",DATE($M$2,$P$2,休暇希望!AC15)) ->  | BR20: =IF(休暇希望!AD15="","",DATE($M$2,$P$2,休暇希望!AD15)) ->  | BS20: =IF(休暇希望!AE15="","",DATE($M$2,$P$2,休暇希望!AE15)) ->  | BT20: =IF(休暇希望!AF15="","",DATE($M$2,$P$2,休暇希望!AF15)) ->  | BU20: =IF(休暇希望!AG15="","",DATE($M$2,$P$2,休暇希望!AG15)) ->  | BV20: =IF(休暇希望!AH15="","",DATE($M$2,$P$2,休暇希望!AH15)) ->  | BW20: =IF(休暇希望!AI15="","",DATE($M$2,$P$2,休暇希望!AI15)) ->  | BY20: =X66 -> 248.75
A21: 7.5 | B21: 21 | C21: 157.5 | I21: C | J21: 7.5 | K21: 13 | L21: =NETWORKDAYS($O$3,$O$4,各種設定!$A$4:$A$22)-COUNTIF(M21:AQ21,">0") -> 1900-01-21 | AS21: =IF(休暇希望!E16="","",DATE($M$2,$P$2,休暇希望!E16)) ->  | AT21: =IF(休暇希望!F16="","",DATE($M$2,$P$2,休暇希望!F16)) ->  | AU21: =IF(休暇希望!G16="","",DATE($M$2,$P$2,休暇希望!G16)) ->  | AV21: =IF(休暇希望!H16="","",DATE($M$2,$P$2,休暇希望!H16)) ->  | AW21: =IF(休暇希望!I16="","",DATE($M$2,$P$2,休暇希望!I16)) ->  | AX21: =IF(休暇希望!J16="","",DATE($M$2,$P$2,休暇希望!J16)) ->  | AY21: =IF(休暇希望!K16="","",DATE($M$2,$P$2,休暇希望!K16)) ->  | AZ21: =IF(休暇希望!L16="","",DATE($M$2,$P$2,休暇希望!L16)) ->  | BA21: =IF(休暇希望!M16="","",DATE($M$2,$P$2,休暇希望!M16)) ->  | BB21: =IF(休暇希望!N16="","",DATE($M$2,$P$2,休暇希望!N16)) ->  | BC21: =IF(休暇希望!O16="","",DATE($M$2,$P$2,休暇希望!O16)) ->  | BD21: =IF(休暇希望!P16="","",DATE($M$2,$P$2,休暇希望!P16)) ->  | BE21: =IF(休暇希望!Q16="","",DATE($M$2,$P$2,休暇希望!Q16)) ->  | BF21: =IF(休暇希望!R16="","",DATE($M$2,$P$2,休暇希望!R16)) ->  | BG21: =IF(休暇希望!S16="","",DATE($M$2,$P$2,休暇希望!S16)) ->  | BH21: =IF(休暇希望!T16="","",DATE($M$2,$P$2,休暇希望!T16)) ->  | BI21: =IF(休暇希望!U16="","",DATE($M$2,$P$2,休暇希望!U16)) ->  | BJ21: =IF(休暇希望!V16="","",DATE($M$2,$P$2,休暇希望!V16)) ->  | BK21: =IF(休暇希望!W16="","",DATE($M$2,$P$2,休暇希望!W16)) ->  | BL21: =IF(休暇希望!X16="","",DATE($M$2,$P$2,休暇希望!X16)) ->  | BM21: =IF(休暇希望!Y16="","",DATE($M$2,$P$2,休暇希望!Y16)) ->  | BN21: =IF(休暇希望!Z16="","",DATE($M$2,$P$2,休暇希望!Z16)) ->  | BO21: =IF(休暇希望!AA16="","",DATE($M$2,$P$2,休暇希望!AA16)) ->  | BP21: =IF(休暇希望!AB16="","",DATE($M$2,$P$2,休暇希望!AB16)) ->  | BQ21: =IF(休暇希望!AC16="","",DATE($M$2,$P$2,休暇希望!AC16)) ->  | BR21: =IF(休暇希望!AD16="","",DATE($M$2,$P$2,休暇希望!AD16)) ->  | BS21: =IF(休暇希望!AE16="","",DATE($M$2,$P$2,休暇希望!AE16)) ->  | BT21: =IF(休暇希望!AF16="","",DATE($M$2,$P$2,休暇希望!AF16)) ->  | BU21: =IF(休暇希望!AG16="","",DATE($M$2,$P$2,休暇希望!AG16)) ->  | BV21: =IF(休暇希望!AH16="","",DATE($M$2,$P$2,休暇希望!AH16)) ->  | BW21: =IF(休暇希望!AI16="","",DATE($M$2,$P$2,休暇希望!AI16)) ->  | BY21: =Y66 -> 248.75
A22: 7.5 | B22: 21 | C22: 157.5 | I22: C | J22: 7.5 | K22: 14 | L22: =NETWORKDAYS($O$3,$O$4,各種設定!$A$4:$A$22)-COUNTIF(M22:AQ22,">0") -> 1900-01-21 | AS22: =IF(休暇希望!E17="","",DATE($M$2,$P$2,休暇希望!E17)) ->  | AT22: =IF(休暇希望!F17="","",DATE($M$2,$P$2,休暇希望!F17)) ->  | AU22: =IF(休暇希望!G17="","",DATE($M$2,$P$2,休暇希望!G17)) ->  | AV22: =IF(休暇希望!H17="","",DATE($M$2,$P$2,休暇希望!H17)) ->  | AW22: =IF(休暇希望!I17="","",DATE($M$2,$P$2,休暇希望!I17)) ->  | AX22: =IF(休暇希望!J17="","",DATE($M$2,$P$2,休暇希望!J17)) ->  | AY22: =IF(休暇希望!K17="","",DATE($M$2,$P$2,休暇希望!K17)) ->  | AZ22: =IF(休暇希望!L17="","",DATE($M$2,$P$2,休暇希望!L17)) ->  | BA22: =IF(休暇希望!M17="","",DATE($M$2,$P$2,休暇希望!M17)) ->  | BB22: =IF(休暇希望!N17="","",DATE($M$2,$P$2,休暇希望!N17)) ->  | BC22: =IF(休暇希望!O17="","",DATE($M$2,$P$2,休暇希望!O17)) ->  | BD22: =IF(休暇希望!P17="","",DATE($M$2,$P$2,休暇希望!P17)) ->  | BE22: =IF(休暇希望!Q17="","",DATE($M$2,$P$2,休暇希望!Q17)) ->  | BF22: =IF(休暇希望!R17="","",DATE($M$2,$P$2,休暇希望!R17)) ->  | BG22: =IF(休暇希望!S17="","",DATE($M$2,$P$2,休暇希望!S17)) ->  | BH22: =IF(休暇希望!T17="","",DATE($M$2,$P$2,休暇希望!T17)) ->  | BI22: =IF(休暇希望!U17="","",DATE($M$2,$P$2,休暇希望!U17)) ->  | BJ22: =IF(休暇希望!V17="","",DATE($M$2,$P$2,休暇希望!V17)) ->  | BK22: =IF(休暇希望!W17="","",DATE($M$2,$P$2,休暇希望!W17)) ->  | BL22: =IF(休暇希望!X17="","",DATE($M$2,$P$2,休暇希望!X17)) ->  | BM22: =IF(休暇希望!Y17="","",DATE($M$2,$P$2,休暇希望!Y17)) ->  | BN22: =IF(休暇希望!Z17="","",DATE($M$2,$P$2,休暇希望!Z17)) ->  | BO22: =IF(休暇希望!AA17="","",DATE($M$2,$P$2,休暇希望!AA17)) ->  | BP22: =IF(休暇希望!AB17="","",DATE($M$2,$P$2,休暇希望!AB17)) ->  | BQ22: =IF(休暇希望!AC17="","",DATE($M$2,$P$2,休暇希望!AC17)) ->  | BR22: =IF(休暇希望!AD17="","",DATE($M$2,$P$2,休暇希望!AD17)) ->  | BS22: =IF(休暇希望!AE17="","",DATE($M$2,$P$2,休暇希望!AE17)) ->  | BT22: =IF(休暇希望!AF17="","",DATE($M$2,$P$2,休暇希望!AF17)) ->  | BU22: =IF(休暇希望!AG17="","",DATE($M$2,$P$2,休暇希望!AG17)) ->  | BV22: =IF(休暇希望!AH17="","",DATE($M$2,$P$2,休暇希望!AH17)) ->  | BW22: =IF(休暇希望!AI17="","",DATE($M$2,$P$2,休暇希望!AI17)) ->  | BY22: =Z66 -> 236.75
A23: 7.5 | B23: 21 | C23: 157.5 | I23: C | J23: 7.5 | K23: 15 | L23: =NETWORKDAYS($O$3,$O$4,各種設定!$A$4:$A$22)-COUNTIF(M23:AQ23,">0") -> 1900-01-21 | AS23: =IF(休暇希望!E18="","",DATE($M$2,$P$2,休暇希望!E18)) ->  | AT23: =IF(休暇希望!F18="","",DATE($M$2,$P$2,休暇希望!F18)) ->  | AU23: =IF(休暇希望!G18="","",DATE($M$2,$P$2,休暇希望!G18)) ->  | AV23: =IF(休暇希望!H18="","",DATE($M$2,$P$2,休暇希望!H18)) ->  | AW23: =IF(休暇希望!I18="","",DATE($M$2,$P$2,休暇希望!I18)) ->  | AX23: =IF(休暇希望!J18="","",DATE($M$2,$P$2,休暇希望!J18)) ->  | AY23: =IF(休暇希望!K18="","",DATE($M$2,$P$2,休暇希望!K18)) ->  | AZ23: =IF(休暇希望!L18="","",DATE($M$2,$P$2,休暇希望!L18)) ->  | BA23: =IF(休暇希望!M18="","",DATE($M$2,$P$2,休暇希望!M18)) ->  | BB23: =IF(休暇希望!N18="","",DATE($M$2,$P$2,休暇希望!N18)) ->  | BC23: =IF(休暇希望!O18="","",DATE($M$2,$P$2,休暇希望!O18)) ->  | BD23: =IF(休暇希望!P18="","",DATE($M$2,$P$2,休暇希望!P18)) ->  | BE23: =IF(休暇希望!Q18="","",DATE($M$2,$P$2,休暇希望!Q18)) ->  | BF23: =IF(休暇希望!R18="","",DATE($M$2,$P$2,休暇希望!R18)) ->  | BG23: =IF(休暇希望!S18="","",DATE($M$2,$P$2,休暇希望!S18)) ->  | BH23: =IF(休暇希望!T18="","",DATE($M$2,$P$2,休暇希望!T18)) ->  | BI23: =IF(休暇希望!U18="","",DATE($M$2,$P$2,休暇希望!U18)) ->  | BJ23: =IF(休暇希望!V18="","",DATE($M$2,$P$2,休暇希望!V18)) ->  | BK23: =IF(休暇希望!W18="","",DATE($M$2,$P$2,休暇希望!W18)) ->  | BL23: =IF(休暇希望!X18="","",DATE($M$2,$P$2,休暇希望!X18)) ->  | BM23: =IF(休暇希望!Y18="","",DATE($M$2,$P$2,休暇希望!Y18)) ->  | BN23: =IF(休暇希望!Z18="","",DATE($M$2,$P$2,休暇希望!Z18)) ->  | BO23: =IF(休暇希望!AA18="","",DATE($M$2,$P$2,休暇希望!AA18)) ->  | BP23: =IF(休暇希望!AB18="","",DATE($M$2,$P$2,休暇希望!AB18)) ->  | BQ23: =IF(休暇希望!AC18="","",DATE($M$2,$P$2,休暇希望!AC18)) ->  | BR23: =IF(休暇希望!AD18="","",DATE($M$2,$P$2,休暇希望!AD18)) ->  | BS23: =IF(休暇希望!AE18="","",DATE($M$2,$P$2,休暇希望!AE18)) ->  | BT23: =IF(休暇希望!AF18="","",DATE($M$2,$P$2,休暇希望!AF18)) ->  | BU23: =IF(休暇希望!AG18="","",DATE($M$2,$P$2,休暇希望!AG18)) ->  | BV23: =IF(休暇希望!AH18="","",DATE($M$2,$P$2,休暇希望!AH18)) ->  | BW23: =IF(休暇希望!AI18="","",DATE($M$2,$P$2,休暇希望!AI18)) ->  | BY23: =AA66 -> 236.75
A24: 5.25 | B24: 21 | C24: 110.25 | I24: D | J24: =_xlfn.SWITCH($I24,"A",$X$3,"B",$Y$3,"C",$Z$3,"D",$AA$3,"E",$AB$3,) -> 5.25 | K24: 16 | L24: =NETWORKDAYS($O$3,$O$4,各種設定!$A$4:$A$22)-COUNTIF(M24:AQ24,">0") -> 1900-01-21 | AS24: =IF(休暇希望!E19="","",DATE($M$2,$P$2,休暇希望!E19)) ->  | AT24: =IF(休暇希望!F19="","",DATE($M$2,$P$2,休暇希望!F19)) ->  | AU24: =IF(休暇希望!G19="","",DATE($M$2,$P$2,休暇希望!G19)) ->  | AV24: =IF(休暇希望!H19="","",DATE($M$2,$P$2,休暇希望!H19)) ->  | AW24: =IF(休暇希望!I19="","",DATE($M$2,$P$2,休暇希望!I19)) ->  | AX24: =IF(休暇希望!J19="","",DATE($M$2,$P$2,休暇希望!J19)) ->  | AY24: =IF(休暇希望!K19="","",DATE($M$2,$P$2,休暇希望!K19)) ->  | AZ24: =IF(休暇希望!L19="","",DATE($M$2,$P$2,休暇希望!L19)) ->  | BA24: =IF(休暇希望!M19="","",DATE($M$2,$P$2,休暇希望!M19)) ->  | BB24: =IF(休暇希望!N19="","",DATE($M$2,$P$2,休暇希望!N19)) ->  | BC24: =IF(休暇希望!O19="","",DATE($M$2,$P$2,休暇希望!O19)) ->  | BD24: =IF(休暇希望!P19="","",DATE($M$2,$P$2,休暇希望!P19)) ->  | BE24: =IF(休暇希望!Q19="","",DATE($M$2,$P$2,休暇希望!Q19)) ->  | BF24: =IF(休暇希望!R19="","",DATE($M$2,$P$2,休暇希望!R19)) ->  | BG24: =IF(休暇希望!S19="","",DATE($M$2,$P$2,休暇希望!S19)) ->  | BH24: =IF(休暇希望!T19="","",DATE($M$2,$P$2,休暇希望!T19)) ->  | BI24: =IF(休暇希望!U19="","",DATE($M$2,$P$2,休暇希望!U19)) ->  | BJ24: =IF(休暇希望!V19="","",DATE($M$2,$P$2,休暇希望!V19)) ->  | BK24: =IF(休暇希望!W19="","",DATE($M$2,$P$2,休暇希望!W19)) ->  | BL24: =IF(休暇希望!X19="","",DATE($M$2,$P$2,休暇希望!X19)) ->  | BM24: =IF(休暇希望!Y19="","",DATE($M$2,$P$2,休暇希望!Y19)) ->  | BN24: =IF(休暇希望!Z19="","",DATE($M$2,$P$2,休暇希望!Z19)) ->  | BO24: =IF(休暇希望!AA19="","",DATE($M$2,$P$2,休暇希望!AA19)) ->  | BP24: =IF(休暇希望!AB19="","",DATE($M$2,$P$2,休暇希望!AB19)) ->  | BQ24: =IF(休暇希望!AC19="","",DATE($M$2,$P$2,休暇希望!AC19)) ->  | BR24: =IF(休暇希望!AD19="","",DATE($M$2,$P$2,休暇希望!AD19)) ->  | BS24: =IF(休暇希望!AE19="","",DATE($M$2,$P$2,休暇希望!AE19)) ->  | BT24: =IF(休暇希望!AF19="","",DATE($M$2,$P$2,休暇希望!AF19)) ->  | BU24: =IF(休暇希望!AG19="","",DATE($M$2,$P$2,休暇希望!AG19)) ->  | BV24: =IF(休暇希望!AH19="","",DATE($M$2,$P$2,休暇希望!AH19)) ->  | BW24: =IF(休暇希望!AI19="","",DATE($M$2,$P$2,休暇希望!AI19)) ->  | BY24: =AB66 -> 236.75
A25: 5.25 | B25: 21 | C25: 110.25 | I25: D | J25: =_xlfn.SWITCH($I25,"A",$X$3,"B",$Y$3,"C",$Z$3,"D",$AA$3,"E",$AB$3,) -> 5.25 | K25: 17 | L25: =NETWORKDAYS($O$3,$O$4,各種設定!$A$4:$A$22)-COUNTIF(M25:AQ25,">0") -> 1900-01-21 | AS25: =IF(休暇希望!E20="","",DATE($M$2,$P$2,休暇希望!E20)) ->  | AT25: =IF(休暇希望!F20="","",DATE($M$2,$P$2,休暇希望!F20)) ->  | AU25: =IF(休暇希望!G20="","",DATE($M$2,$P$2,休暇希望!G20)) ->  | AV25: =IF(休暇希望!H20="","",DATE($M$2,$P$2,休暇希望!H20)) ->  | AW25: =IF(休暇希望!I20="","",DATE($M$2,$P$2,休暇希望!I20)) ->  | AX25: =IF(休暇希望!J20="","",DATE($M$2,$P$2,休暇希望!J20)) ->  | AY25: =IF(休暇希望!K20="","",DATE($M$2,$P$2,休暇希望!K20)) ->  | AZ25: =IF(休暇希望!L20="","",DATE($M$2,$P$2,休暇希望!L20)) ->  | BA25: =IF(休暇希望!M20="","",DATE($M$2,$P$2,休暇希望!M20)) ->  | BB25: =IF(休暇希望!N20="","",DATE($M$2,$P$2,休暇希望!N20)) ->  | BC25: =IF(休暇希望!O20="","",DATE($M$2,$P$2,休暇希望!O20)) ->  | BD25: =IF(休暇希望!P20="","",DATE($M$2,$P$2,休暇希望!P20)) ->  | BE25: =IF(休暇希望!Q20="","",DATE($M$2,$P$2,休暇希望!Q20)) ->  | BF25: =IF(休暇希望!R20="","",DATE($M$2,$P$2,休暇希望!R20)) ->  | BG25: =IF(休暇希望!S20="","",DATE($M$2,$P$2,休暇希望!S20)) ->  | BH25: =IF(休暇希望!T20="","",DATE($M$2,$P$2,休暇希望!T20)) ->  | BI25: =IF(休暇希望!U20="","",DATE($M$2,$P$2,休暇希望!U20)) ->  | BJ25: =IF(休暇希望!V20="","",DATE($M$2,$P$2,休暇希望!V20)) ->  | BK25: =IF(休暇希望!W20="","",DATE($M$2,$P$2,休暇希望!W20)) ->  | BL25: =IF(休暇希望!X20="","",DATE($M$2,$P$2,休暇希望!X20)) ->  | BM25: =IF(休暇希望!Y20="","",DATE($M$2,$P$2,休暇希望!Y20)) ->  | BN25: =IF(休暇希望!Z20="","",DATE($M$2,$P$2,休暇希望!Z20)) ->  | BO25: =IF(休暇希望!AA20="","",DATE($M$2,$P$2,休暇希望!AA20)) ->  | BP25: =IF(休暇希望!AB20="","",DATE($M$2,$P$2,休暇希望!AB20)) ->  | BQ25: =IF(休暇希望!AC20="","",DATE($M$2,$P$2,休暇希望!AC20)) ->  | BR25: =IF(休暇希望!AD20="","",DATE($M$2,$P$2,休暇希望!AD20)) ->  | BS25: =IF(休暇希望!AE20="","",DATE($M$2,$P$2,休暇希望!AE20)) ->  | BT25: =IF(休暇希望!AF20="","",DATE($M$2,$P$2,休暇希望!AF20)) ->  | BU25: =IF(休暇希望!AG20="","",DATE($M$2,$P$2,休暇希望!AG20)) ->  | BV25: =IF(休暇希望!AH20="","",DATE($M$2,$P$2,休暇希望!AH20)) ->  | BW25: =IF(休暇希望!AI20="","",DATE($M$2,$P$2,休暇希望!AI20)) ->  | BY25: =AC66 -> 236.75
A26: 5.25 | B26: 21 | C26: 110.25 | I26: D | J26: =_xlfn.SWITCH($I26,"A",$X$3,"B",$Y$3,"C",$Z$3,"D",$AA$3,"E",$AB$3,) -> 5.25 | K26: 18 | L26: =NETWORKDAYS($O$3,$O$4,各種設定!$A$4:$A$22)-COUNTIF(M26:AQ26,">0") -> 1900-01-21 | AS26: =IF(休暇希望!E21="","",DATE($M$2,$P$2,休暇希望!E21)) ->  | AT26: =IF(休暇希望!F21="","",DATE($M$2,$P$2,休暇希望!F21)) ->  | AU26: =IF(休暇希望!G21="","",DATE($M$2,$P$2,休暇希望!G21)) ->  | AV26: =IF(休暇希望!H21="","",DATE($M$2,$P$2,休暇希望!H21)) ->  | AW26: =IF(休暇希望!I21="","",DATE($M$2,$P$2,休暇希望!I21)) ->  | AX26: =IF(休暇希望!J21="","",DATE($M$2,$P$2,休暇希望!J21)) ->  | AY26: =IF(休暇希望!K21="","",DATE($M$2,$P$2,休暇希望!K21)) ->  | AZ26: =IF(休暇希望!L21="","",DATE($M$2,$P$2,休暇希望!L21)) ->  | BA26: =IF(休暇希望!M21="","",DATE($M$2,$P$2,休暇希望!M21)) ->  | BB26: =IF(休暇希望!N21="","",DATE($M$2,$P$2,休暇希望!N21)) ->  | BC26: =IF(休暇希望!O21="","",DATE($M$2,$P$2,休暇希望!O21)) ->  | BD26: =IF(休暇希望!P21="","",DATE($M$2,$P$2,休暇希望!P21)) ->  | BE26: =IF(休暇希望!Q21="","",DATE($M$2,$P$2,休暇希望!Q21)) ->  | BF26: =IF(休暇希望!R21="","",DATE($M$2,$P$2,休暇希望!R21)) ->  | BG26: =IF(休暇希望!S21="","",DATE($M$2,$P$2,休暇希望!S21)) ->  | BH26: =IF(休暇希望!T21="","",DATE($M$2,$P$2,休暇希望!T21)) ->  | BI26: =IF(休暇希望!U21="","",DATE($M$2,$P$2,休暇希望!U21)) ->  | BJ26: =IF(休暇希望!V21="","",DATE($M$2,$P$2,休暇希望!V21)) ->  | BK26: =IF(休暇希望!W21="","",DATE($M$2,$P$2,休暇希望!W21)) ->  | BL26: =IF(休暇希望!X21="","",DATE($M$2,$P$2,休暇希望!X21)) ->  | BM26: =IF(休暇希望!Y21="","",DATE($M$2,$P$2,休暇希望!Y21)) ->  | BN26: =IF(休暇希望!Z21="","",DATE($M$2,$P$2,休暇希望!Z21)) ->  | BO26: =IF(休暇希望!AA21="","",DATE($M$2,$P$2,休暇希望!AA21)) ->  | BP26: =IF(休暇希望!AB21="","",DATE($M$2,$P$2,休暇希望!AB21)) ->  | BQ26: =IF(休暇希望!AC21="","",DATE($M$2,$P$2,休暇希望!AC21)) ->  | BR26: =IF(休暇希望!AD21="","",DATE($M$2,$P$2,休暇希望!AD21)) ->  | BS26: =IF(休暇希望!AE21="","",DATE($M$2,$P$2,休暇希望!AE21)) ->  | BT26: =IF(休暇希望!AF21="","",DATE($M$2,$P$2,休暇希望!AF21)) ->  | BU26: =IF(休暇希望!AG21="","",DATE($M$2,$P$2,休暇希望!AG21)) ->  | BV26: =IF(休暇希望!AH21="","",DATE($M$2,$P$2,休暇希望!AH21)) ->  | BW26: =IF(休暇希望!AI21="","",DATE($M$2,$P$2,休暇希望!AI21)) ->  | BY26: =AD66 -> 248.75
A27: 5.25 | B27: 21 | C27: 110.25 | I27: D | J27: 5.25 | K27: 19 | L27: =NETWORKDAYS($O$3,$O$4,各種設定!$A$4:$A$22)-COUNTIF(M27:AQ27,">0") -> 1900-01-21 | AS27: =IF(休暇希望!E22="","",DATE($M$2,$P$2,休暇希望!E22)) ->  | AT27: =IF(休暇希望!F22="","",DATE($M$2,$P$2,休暇希望!F22)) ->  | AU27: =IF(休暇希望!G22="","",DATE($M$2,$P$2,休暇希望!G22)) ->  | AV27: =IF(休暇希望!H22="","",DATE($M$2,$P$2,休暇希望!H22)) ->  | AW27: =IF(休暇希望!I22="","",DATE($M$2,$P$2,休暇希望!I22)) ->  | AX27: =IF(休暇希望!J22="","",DATE($M$2,$P$2,休暇希望!J22)) ->  | AY27: =IF(休暇希望!K22="","",DATE($M$2,$P$2,休暇希望!K22)) ->  | AZ27: =IF(休暇希望!L22="","",DATE($M$2,$P$2,休暇希望!L22)) ->  | BA27: =IF(休暇希望!M22="","",DATE($M$2,$P$2,休暇希望!M22)) ->  | BB27: =IF(休暇希望!N22="","",DATE($M$2,$P$2,休暇希望!N22)) ->  | BC27: =IF(休暇希望!O22="","",DATE($M$2,$P$2,休暇希望!O22)) ->  | BD27: =IF(休暇希望!P22="","",DATE($M$2,$P$2,休暇希望!P22)) ->  | BE27: =IF(休暇希望!Q22="","",DATE($M$2,$P$2,休暇希望!Q22)) ->  | BF27: =IF(休暇希望!R22="","",DATE($M$2,$P$2,休暇希望!R22)) ->  | BG27: =IF(休暇希望!S22="","",DATE($M$2,$P$2,休暇希望!S22)) ->  | BH27: =IF(休暇希望!T22="","",DATE($M$2,$P$2,休暇希望!T22)) ->  | BI27: =IF(休暇希望!U22="","",DATE($M$2,$P$2,休暇希望!U22)) ->  | BJ27: =IF(休暇希望!V22="","",DATE($M$2,$P$2,休暇希望!V22)) ->  | BK27: =IF(休暇希望!W22="","",DATE($M$2,$P$2,休暇希望!W22)) ->  | BL27: =IF(休暇希望!X22="","",DATE($M$2,$P$2,休暇希望!X22)) ->  | BM27: =IF(休暇希望!Y22="","",DATE($M$2,$P$2,休暇希望!Y22)) ->  | BN27: =IF(休暇希望!Z22="","",DATE($M$2,$P$2,休暇希望!Z22)) ->  | BO27: =IF(休暇希望!AA22="","",DATE($M$2,$P$2,休暇希望!AA22)) ->  | BP27: =IF(休暇希望!AB22="","",DATE($M$2,$P$2,休暇希望!AB22)) ->  | BQ27: =IF(休暇希望!AC22="","",DATE($M$2,$P$2,休暇希望!AC22)) ->  | BR27: =IF(休暇希望!AD22="","",DATE($M$2,$P$2,休暇希望!AD22)) ->  | BS27: =IF(休暇希望!AE22="","",DATE($M$2,$P$2,休暇希望!AE22)) ->  | BT27: =IF(休暇希望!AF22="","",DATE($M$2,$P$2,休暇希望!AF22)) ->  | BU27: =IF(休暇希望!AG22="","",DATE($M$2,$P$2,休暇希望!AG22)) ->  | BV27: =IF(休暇希望!AH22="","",DATE($M$2,$P$2,休暇希望!AH22)) ->  | BW27: =IF(休暇希望!AI22="","",DATE($M$2,$P$2,休暇希望!AI22)) ->  | BY27: =AE66 -> 248.75
A28: 5.25 | B28: 21 | C28: 110.25 | I28: D | J28: 5.25 | K28: 20 | L28: =NETWORKDAYS($O$3,$O$4,各種設定!$A$4:$A$22)-COUNTIF(M28:AQ28,">0") -> 1900-01-21 | AS28: =IF(休暇希望!E23="","",DATE($M$2,$P$2,休暇希望!E23)) ->  | AT28: =IF(休暇希望!F23="","",DATE($M$2,$P$2,休暇希望!F23)) ->  | AU28: =IF(休暇希望!G23="","",DATE($M$2,$P$2,休暇希望!G23)) ->  | AV28: =IF(休暇希望!H23="","",DATE($M$2,$P$2,休暇希望!H23)) ->  | AW28: =IF(休暇希望!I23="","",DATE($M$2,$P$2,休暇希望!I23)) ->  | AX28: =IF(休暇希望!J23="","",DATE($M$2,$P$2,休暇希望!J23)) ->  | AY28: =IF(休暇希望!K23="","",DATE($M$2,$P$2,休暇希望!K23)) ->  | AZ28: =IF(休暇希望!L23="","",DATE($M$2,$P$2,休暇希望!L23)) ->  | BA28: =IF(休暇希望!M23="","",DATE($M$2,$P$2,休暇希望!M23)) ->  | BB28: =IF(休暇希望!N23="","",DATE($M$2,$P$2,休暇希望!N23)) ->  | BC28: =IF(休暇希望!O23="","",DATE($M$2,$P$2,休暇希望!O23)) ->  | BD28: =IF(休暇希望!P23="","",DATE($M$2,$P$2,休暇希望!P23)) ->  | BE28: =IF(休暇希望!Q23="","",DATE($M$2,$P$2,休暇希望!Q23)) ->  | BF28: =IF(休暇希望!R23="","",DATE($M$2,$P$2,休暇希望!R23)) ->  | BG28: =IF(休暇希望!S23="","",DATE($M$2,$P$2,休暇希望!S23)) ->  | BH28: =IF(休暇希望!T23="","",DATE($M$2,$P$2,休暇希望!T23)) ->  | BI28: =IF(休暇希望!U23="","",DATE($M$2,$P$2,休暇希望!U23)) ->  | BJ28: =IF(休暇希望!V23="","",DATE($M$2,$P$2,休暇希望!V23)) ->  | BK28: =IF(休暇希望!W23="","",DATE($M$2,$P$2,休暇希望!W23)) ->  | BL28: =IF(休暇希望!X23="","",DATE($M$2,$P$2,休暇希望!X23)) ->  | BM28: =IF(休暇希望!Y23="","",DATE($M$2,$P$2,休暇希望!Y23)) ->  | BN28: =IF(休暇希望!Z23="","",DATE($M$2,$P$2,休暇希望!Z23)) ->  | BO28: =IF(休暇希望!AA23="","",DATE($M$2,$P$2,休暇希望!AA23)) ->  | BP28: =IF(休暇希望!AB23="","",DATE($M$2,$P$2,休暇希望!AB23)) ->  | BQ28: =IF(休暇希望!AC23="","",DATE($M$2,$P$2,休暇希望!AC23)) ->  | BR28: =IF(休暇希望!AD23="","",DATE($M$2,$P$2,休暇希望!AD23)) ->  | BS28: =IF(休暇希望!AE23="","",DATE($M$2,$P$2,休暇希望!AE23)) ->  | BT28: =IF(休暇希望!AF23="","",DATE($M$2,$P$2,休暇希望!AF23)) ->  | BU28: =IF(休暇希望!AG23="","",DATE($M$2,$P$2,休暇希望!AG23)) ->  | BV28: =IF(休暇希望!AH23="","",DATE($M$2,$P$2,休暇希望!AH23)) ->  | BW28: =IF(休暇希望!AI23="","",DATE($M$2,$P$2,休暇希望!AI23)) ->  | BY28: =AF66 -> 236.75
A29: 4 | B29: 21 | C29: 84 | I29: E | J29: 4 | K29: 21 | L29: =NETWORKDAYS($O$3,$O$4,各種設定!$A$4:$A$22)-COUNTIF(M29:AQ29,">0") -> 1900-01-21 | M29: =IF(M$7="","",IF(COUNTIF($AS29:$BW29,M$7)>0,$J29,"")) ->  | W29: =IF(W$7="","",IF(COUNTIF($AS29:$BW29,W$7)>0,$J29,"")) ->  | AG29: =IF(AG$7="","",IF(COUNTIF($AS29:$BW29,AG$7)>0,$J29,"")) ->  | AS29: =IF(休暇希望!E24="","",DATE($M$2,$P$2,休暇希望!E24)) ->  | AT29: =IF(休暇希望!F24="","",DATE($M$2,$P$2,休暇希望!F24)) ->  | AU29: =IF(休暇希望!G24="","",DATE($M$2,$P$2,休暇希望!G24)) ->  | AV29: =IF(休暇希望!H24="","",DATE($M$2,$P$2,休暇希望!H24)) ->  | AW29: =IF(休暇希望!I24="","",DATE($M$2,$P$2,休暇希望!I24)) ->  | AX29: =IF(休暇希望!J24="","",DATE($M$2,$P$2,休暇希望!J24)) ->  | AY29: =IF(休暇希望!K24="","",DATE($M$2,$P$2,休暇希望!K24)) ->  | AZ29: =IF(休暇希望!L24="","",DATE($M$2,$P$2,休暇希望!L24)) ->  | BA29: =IF(休暇希望!M24="","",DATE($M$2,$P$2,休暇希望!M24)) ->  | BB29: =IF(休暇希望!N24="","",DATE($M$2,$P$2,休暇希望!N24)) ->  | BC29: =IF(休暇希望!O24="","",DATE($M$2,$P$2,休暇希望!O24)) ->  | BD29: =IF(休暇希望!P24="","",DATE($M$2,$P$2,休暇希望!P24)) ->  | BE29: =IF(休暇希望!Q24="","",DATE($M$2,$P$2,休暇希望!Q24)) ->  | BF29: =IF(休暇希望!R24="","",DATE($M$2,$P$2,休暇希望!R24)) ->  | BG29: =IF(休暇希望!S24="","",DATE($M$2,$P$2,休暇希望!S24)) ->  | BH29: =IF(休暇希望!T24="","",DATE($M$2,$P$2,休暇希望!T24)) ->  | BI29: =IF(休暇希望!U24="","",DATE($M$2,$P$2,休暇希望!U24)) ->  | BJ29: =IF(休暇希望!V24="","",DATE($M$2,$P$2,休暇希望!V24)) ->  | BK29: =IF(休暇希望!W24="","",DATE($M$2,$P$2,休暇希望!W24)) ->  | BL29: =IF(休暇希望!X24="","",DATE($M$2,$P$2,休暇希望!X24)) ->  | BM29: =IF(休暇希望!Y24="","",DATE($M$2,$P$2,休暇希望!Y24)) ->  | BN29: =IF(休暇希望!Z24="","",DATE($M$2,$P$2,休暇希望!Z24)) ->  | BO29: =IF(休暇希望!AA24="","",DATE($M$2,$P$2,休暇希望!AA24)) ->  | BP29: =IF(休暇希望!AB24="","",DATE($M$2,$P$2,休暇希望!AB24)) ->  | BQ29: =IF(休暇希望!AC24="","",DATE($M$2,$P$2,休暇希望!AC24)) ->  | BR29: =IF(休暇希望!AD24="","",DATE($M$2,$P$2,休暇希望!AD24)) ->  | BS29: =IF(休暇希望!AE24="","",DATE($M$2,$P$2,休暇希望!AE24)) ->  | BT29: =IF(休暇希望!AF24="","",DATE($M$2,$P$2,休暇希望!AF24)) ->  | BU29: =IF(休暇希望!AG24="","",DATE($M$2,$P$2,休暇希望!AG24)) ->  | BV29: =IF(休暇希望!AH24="","",DATE($M$2,$P$2,休暇希望!AH24)) ->  | BW29: =IF(休暇希望!AI24="","",DATE($M$2,$P$2,休暇希望!AI24)) ->  | BY29: =AG66 -> 236.75
A30: 4 | B30: 21 | C30: 84 | I30: E | J30: 4 | K30: 22 | L30: =NETWORKDAYS($O$3,$O$4,各種設定!$A$4:$A$22)-COUNTIF(M30:AQ30,">0") -> 1900-01-21 | AS30: =IF(休暇希望!E25="","",DATE($M$2,$P$2,休暇希望!E25)) ->  | AT30: =IF(休暇希望!F25="","",DATE($M$2,$P$2,休暇希望!F25)) ->  | AU30: =IF(休暇希望!G25="","",DATE($M$2,$P$2,休暇希望!G25)) ->  | AV30: =IF(休暇希望!H25="","",DATE($M$2,$P$2,休暇希望!H25)) ->  | AW30: =IF(休暇希望!I25="","",DATE($M$2,$P$2,休暇希望!I25)) ->  | AX30: =IF(休暇希望!J25="","",DATE($M$2,$P$2,休暇希望!J25)) ->  | AY30: =IF(休暇希望!K25="","",DATE($M$2,$P$2,休暇希望!K25)) ->  | AZ30: =IF(休暇希望!L25="","",DATE($M$2,$P$2,休暇希望!L25)) ->  | BA30: =IF(休暇希望!M25="","",DATE($M$2,$P$2,休暇希望!M25)) ->  | BB30: =IF(休暇希望!N25="","",DATE($M$2,$P$2,休暇希望!N25)) ->  | BC30: =IF(休暇希望!O25="","",DATE($M$2,$P$2,休暇希望!O25)) ->  | BD30: =IF(休暇希望!P25="","",DATE($M$2,$P$2,休暇希望!P25)) ->  | BE30: =IF(休暇希望!Q25="","",DATE($M$2,$P$2,休暇希望!Q25)) ->  | BF30: =IF(休暇希望!R25="","",DATE($M$2,$P$2,休暇希望!R25)) ->  | BG30: =IF(休暇希望!S25="","",DATE($M$2,$P$2,休暇希望!S25)) ->  | BH30: =IF(休暇希望!T25="","",DATE($M$2,$P$2,休暇希望!T25)) ->  | BI30: =IF(休暇希望!U25="","",DATE($M$2,$P$2,休暇希望!U25)) ->  | BJ30: =IF(休暇希望!V25="","",DATE($M$2,$P$2,休暇希望!V25)) ->  | BK30: =IF(休暇希望!W25="","",DATE($M$2,$P$2,休暇希望!W25)) ->  | BL30: =IF(休暇希望!X25="","",DATE($M$2,$P$2,休暇希望!X25)) ->  | BM30: =IF(休暇希望!Y25="","",DATE($M$2,$P$2,休暇希望!Y25)) ->  | BN30: =IF(休暇希望!Z25="","",DATE($M$2,$P$2,休暇希望!Z25)) ->  | BO30: =IF(休暇希望!AA25="","",DATE($M$2,$P$2,休暇希望!AA25)) ->  | BP30: =IF(休暇希望!AB25="","",DATE($M$2,$P$2,休暇希望!AB25)) ->  | BQ30: =IF(休暇希望!AC25="","",DATE($M$2,$P$2,休暇希望!AC25)) ->  | BR30: =IF(休暇希望!AD25="","",DATE($M$2,$P$2,休暇希望!AD25)) ->  | BS30: =IF(休暇希望!AE25="","",DATE($M$2,$P$2,休暇希望!AE25)) ->  | BT30: =IF(休暇希望!AF25="","",DATE($M$2,$P$2,休暇希望!AF25)) ->  | BU30: =IF(休暇希望!AG25="","",DATE($M$2,$P$2,休暇希望!AG25)) ->  | BV30: =IF(休暇希望!AH25="","",DATE($M$2,$P$2,休暇希望!AH25)) ->  | BW30: =IF(休暇希望!AI25="","",DATE($M$2,$P$2,休暇希望!AI25)) ->  | BY30: =AH66 -> 236.75
A31: 4 | B31: 21 | C31: 84 | I31: E | J31: 4 | K31: 23 | L31: =NETWORKDAYS($O$3,$O$4,各種設定!$A$4:$A$22)-COUNTIF(M31:AQ31,">0") -> 1900-01-21 | AS31: =IF(休暇希望!E26="","",DATE($M$2,$P$2,休暇希望!E26)) ->  | AT31: =IF(休暇希望!F26="","",DATE($M$2,$P$2,休暇希望!F26)) ->  | AU31: =IF(休暇希望!G26="","",DATE($M$2,$P$2,休暇希望!G26)) ->  | AV31: =IF(休暇希望!H26="","",DATE($M$2,$P$2,休暇希望!H26)) ->  | AW31: =IF(休暇希望!I26="","",DATE($M$2,$P$2,休暇希望!I26)) ->  | AX31: =IF(休暇希望!J26="","",DATE($M$2,$P$2,休暇希望!J26)) ->  | AY31: =IF(休暇希望!K26="","",DATE($M$2,$P$2,休暇希望!K26)) ->  | AZ31: =IF(休暇希望!L26="","",DATE($M$2,$P$2,休暇希望!L26)) ->  | BA31: =IF(休暇希望!M26="","",DATE($M$2,$P$2,休暇希望!M26)) ->  | BB31: =IF(休暇希望!N26="","",DATE($M$2,$P$2,休暇希望!N26)) ->  | BC31: =IF(休暇希望!O26="","",DATE($M$2,$P$2,休暇希望!O26)) ->  | BD31: =IF(休暇希望!P26="","",DATE($M$2,$P$2,休暇希望!P26)) ->  | BE31: =IF(休暇希望!Q26="","",DATE($M$2,$P$2,休暇希望!Q26)) ->  | BF31: =IF(休暇希望!R26="","",DATE($M$2,$P$2,休暇希望!R26)) ->  | BG31: =IF(休暇希望!S26="","",DATE($M$2,$P$2,休暇希望!S26)) ->  | BH31: =IF(休暇希望!T26="","",DATE($M$2,$P$2,休暇希望!T26)) ->  | BI31: =IF(休暇希望!U26="","",DATE($M$2,$P$2,休暇希望!U26)) ->  | BJ31: =IF(休暇希望!V26="","",DATE($M$2,$P$2,休暇希望!V26)) ->  | BK31: =IF(休暇希望!W26="","",DATE($M$2,$P$2,休暇希望!W26)) ->  | BL31: =IF(休暇希望!X26="","",DATE($M$2,$P$2,休暇希望!X26)) ->  | BM31: =IF(休暇希望!Y26="","",DATE($M$2,$P$2,休暇希望!Y26)) ->  | BN31: =IF(休暇希望!Z26="","",DATE($M$2,$P$2,休暇希望!Z26)) ->  | BO31: =IF(休暇希望!AA26="","",DATE($M$2,$P$2,休暇希望!AA26)) ->  | BP31: =IF(休暇希望!AB26="","",DATE($M$2,$P$2,休暇希望!AB26)) ->  | BQ31: =IF(休暇希望!AC26="","",DATE($M$2,$P$2,休暇希望!AC26)) ->  | BR31: =IF(休暇希望!AD26="","",DATE($M$2,$P$2,休暇希望!AD26)) ->  | BS31: =IF(休暇希望!AE26="","",DATE($M$2,$P$2,休暇希望!AE26)) ->  | BT31: =IF(休暇希望!AF26="","",DATE($M$2,$P$2,休暇希望!AF26)) ->  | BU31: =IF(休暇希望!AG26="","",DATE($M$2,$P$2,休暇希望!AG26)) ->  | BV31: =IF(休暇希望!AH26="","",DATE($M$2,$P$2,休暇希望!AH26)) ->  | BW31: =IF(休暇希望!AI26="","",DATE($M$2,$P$2,休暇希望!AI26)) ->  | BY31: =AI66 -> 236.75
A32: 4 | B32: 21 | C32: 84 | I32: E | J32: 4 | K32: 24 | L32: =NETWORKDAYS($O$3,$O$4,各種設定!$A$4:$A$22)-COUNTIF(M32:AQ32,">0") -> 1900-01-21 | AS32: =IF(休暇希望!E27="","",DATE($M$2,$P$2,休暇希望!E27)) ->  | AT32: =IF(休暇希望!F27="","",DATE($M$2,$P$2,休暇希望!F27)) ->  | AU32: =IF(休暇希望!G27="","",DATE($M$2,$P$2,休暇希望!G27)) ->  | AV32: =IF(休暇希望!H27="","",DATE($M$2,$P$2,休暇希望!H27)) ->  | AW32: =IF(休暇希望!I27="","",DATE($M$2,$P$2,休暇希望!I27)) ->  | AX32: =IF(休暇希望!J27="","",DATE($M$2,$P$2,休暇希望!J27)) ->  | AY32: =IF(休暇希望!K27="","",DATE($M$2,$P$2,休暇希望!K27)) ->  | AZ32: =IF(休暇希望!L27="","",DATE($M$2,$P$2,休暇希望!L27)) ->  | BA32: =IF(休暇希望!M27="","",DATE($M$2,$P$2,休暇希望!M27)) ->  | BB32: =IF(休暇希望!N27="","",DATE($M$2,$P$2,休暇希望!N27)) ->  | BC32: =IF(休暇希望!O27="","",DATE($M$2,$P$2,休暇希望!O27)) ->  | BD32: =IF(休暇希望!P27="","",DATE($M$2,$P$2,休暇希望!P27)) ->  | BE32: =IF(休暇希望!Q27="","",DATE($M$2,$P$2,休暇希望!Q27)) ->  | BF32: =IF(休暇希望!R27="","",DATE($M$2,$P$2,休暇希望!R27)) ->  | BG32: =IF(休暇希望!S27="","",DATE($M$2,$P$2,休暇希望!S27)) ->  | BH32: =IF(休暇希望!T27="","",DATE($M$2,$P$2,休暇希望!T27)) ->  | BI32: =IF(休暇希望!U27="","",DATE($M$2,$P$2,休暇希望!U27)) ->  | BJ32: =IF(休暇希望!V27="","",DATE($M$2,$P$2,休暇希望!V27)) ->  | BK32: =IF(休暇希望!W27="","",DATE($M$2,$P$2,休暇希望!W27)) ->  | BL32: =IF(休暇希望!X27="","",DATE($M$2,$P$2,休暇希望!X27)) ->  | BM32: =IF(休暇希望!Y27="","",DATE($M$2,$P$2,休暇希望!Y27)) ->  | BN32: =IF(休暇希望!Z27="","",DATE($M$2,$P$2,休暇希望!Z27)) ->  | BO32: =IF(休暇希望!AA27="","",DATE($M$2,$P$2,休暇希望!AA27)) ->  | BP32: =IF(休暇希望!AB27="","",DATE($M$2,$P$2,休暇希望!AB27)) ->  | BQ32: =IF(休暇希望!AC27="","",DATE($M$2,$P$2,休暇希望!AC27)) ->  | BR32: =IF(休暇希望!AD27="","",DATE($M$2,$P$2,休暇希望!AD27)) ->  | BS32: =IF(休暇希望!AE27="","",DATE($M$2,$P$2,休暇希望!AE27)) ->  | BT32: =IF(休暇希望!AF27="","",DATE($M$2,$P$2,休暇希望!AF27)) ->  | BU32: =IF(休暇希望!AG27="","",DATE($M$2,$P$2,休暇希望!AG27)) ->  | BV32: =IF(休暇希望!AH27="","",DATE($M$2,$P$2,休暇希望!AH27)) ->  | BW32: =IF(休暇希望!AI27="","",DATE($M$2,$P$2,休暇希望!AI27)) ->  | BY32: =AJ66 -> 236.75
A33: 4 | B33: 21 | C33: 84 | I33: E | J33: 4 | K33: 25 | L33: =NETWORKDAYS($O$3,$O$4,各種設定!$A$4:$A$22)-COUNTIF(M33:AQ33,">0") -> 1900-01-21 | AS33: =IF(休暇希望!E28="","",DATE($M$2,$P$2,休暇希望!E28)) ->  | AT33: =IF(休暇希望!F28="","",DATE($M$2,$P$2,休暇希望!F28)) ->  | AU33: =IF(休暇希望!G28="","",DATE($M$2,$P$2,休暇希望!G28)) ->  | AV33: =IF(休暇希望!H28="","",DATE($M$2,$P$2,休暇希望!H28)) ->  | AW33: =IF(休暇希望!I28="","",DATE($M$2,$P$2,休暇希望!I28)) ->  | AX33: =IF(休暇希望!J28="","",DATE($M$2,$P$2,休暇希望!J28)) ->  | AY33: =IF(休暇希望!K28="","",DATE($M$2,$P$2,休暇希望!K28)) ->  | AZ33: =IF(休暇希望!L28="","",DATE($M$2,$P$2,休暇希望!L28)) ->  | BA33: =IF(休暇希望!M28="","",DATE($M$2,$P$2,休暇希望!M28)) ->  | BB33: =IF(休暇希望!N28="","",DATE($M$2,$P$2,休暇希望!N28)) ->  | BC33: =IF(休暇希望!O28="","",DATE($M$2,$P$2,休暇希望!O28)) ->  | BD33: =IF(休暇希望!P28="","",DATE($M$2,$P$2,休暇希望!P28)) ->  | BE33: =IF(休暇希望!Q28="","",DATE($M$2,$P$2,休暇希望!Q28)) ->  | BF33: =IF(休暇希望!R28="","",DATE($M$2,$P$2,休暇希望!R28)) ->  | BG33: =IF(休暇希望!S28="","",DATE($M$2,$P$2,休暇希望!S28)) ->  | BH33: =IF(休暇希望!T28="","",DATE($M$2,$P$2,休暇希望!T28)) ->  | BI33: =IF(休暇希望!U28="","",DATE($M$2,$P$2,休暇希望!U28)) ->  | BJ33: =IF(休暇希望!V28="","",DATE($M$2,$P$2,休暇希望!V28)) ->  | BK33: =IF(休暇希望!W28="","",DATE($M$2,$P$2,休暇希望!W28)) ->  | BL33: =IF(休暇希望!X28="","",DATE($M$2,$P$2,休暇希望!X28)) ->  | BM33: =IF(休暇希望!Y28="","",DATE($M$2,$P$2,休暇希望!Y28)) ->  | BN33: =IF(休暇希望!Z28="","",DATE($M$2,$P$2,休暇希望!Z28)) ->  | BO33: =IF(休暇希望!AA28="","",DATE($M$2,$P$2,休暇希望!AA28)) ->  | BP33: =IF(休暇希望!AB28="","",DATE($M$2,$P$2,休暇希望!AB28)) ->  | BQ33: =IF(休暇希望!AC28="","",DATE($M$2,$P$2,休暇希望!AC28)) ->  | BR33: =IF(休暇希望!AD28="","",DATE($M$2,$P$2,休暇希望!AD28)) ->  | BS33: =IF(休暇希望!AE28="","",DATE($M$2,$P$2,休暇希望!AE28)) ->  | BT33: =IF(休暇希望!AF28="","",DATE($M$2,$P$2,休暇希望!AF28)) ->  | BU33: =IF(休暇希望!AG28="","",DATE($M$2,$P$2,休暇希望!AG28)) ->  | BV33: =IF(休暇希望!AH28="","",DATE($M$2,$P$2,休暇希望!AH28)) ->  | BW33: =IF(休暇希望!AI28="","",DATE($M$2,$P$2,休暇希望!AI28)) ->  | BY33: =AK66 -> 248.75
A34: 4 | B34: 21 | C34: 84 | I34: E | J34: 4 | K34: 26 | L34: =NETWORKDAYS($O$3,$O$4,各種設定!$A$4:$A$22)-COUNTIF(M34:AQ34,">0") -> 1900-01-21 | AS34: =IF(休暇希望!E29="","",DATE($M$2,$P$2,休暇希望!E29)) ->  | AT34: =IF(休暇希望!F29="","",DATE($M$2,$P$2,休暇希望!F29)) ->  | AU34: =IF(休暇希望!G29="","",DATE($M$2,$P$2,休暇希望!G29)) ->  | AV34: =IF(休暇希望!H29="","",DATE($M$2,$P$2,休暇希望!H29)) ->  | AW34: =IF(休暇希望!I29="","",DATE($M$2,$P$2,休暇希望!I29)) ->  | AX34: =IF(休暇希望!J29="","",DATE($M$2,$P$2,休暇希望!J29)) ->  | AY34: =IF(休暇希望!K29="","",DATE($M$2,$P$2,休暇希望!K29)) ->  | AZ34: =IF(休暇希望!L29="","",DATE($M$2,$P$2,休暇希望!L29)) ->  | BA34: =IF(休暇希望!M29="","",DATE($M$2,$P$2,休暇希望!M29)) ->  | BB34: =IF(休暇希望!N29="","",DATE($M$2,$P$2,休暇希望!N29)) ->  | BC34: =IF(休暇希望!O29="","",DATE($M$2,$P$2,休暇希望!O29)) ->  | BD34: =IF(休暇希望!P29="","",DATE($M$2,$P$2,休暇希望!P29)) ->  | BE34: =IF(休暇希望!Q29="","",DATE($M$2,$P$2,休暇希望!Q29)) ->  | BF34: =IF(休暇希望!R29="","",DATE($M$2,$P$2,休暇希望!R29)) ->  | BG34: =IF(休暇希望!S29="","",DATE($M$2,$P$2,休暇希望!S29)) ->  | BH34: =IF(休暇希望!T29="","",DATE($M$2,$P$2,休暇希望!T29)) ->  | BI34: =IF(休暇希望!U29="","",DATE($M$2,$P$2,休暇希望!U29)) ->  | BJ34: =IF(休暇希望!V29="","",DATE($M$2,$P$2,休暇希望!V29)) ->  | BK34: =IF(休暇希望!W29="","",DATE($M$2,$P$2,休暇希望!W29)) ->  | BL34: =IF(休暇希望!X29="","",DATE($M$2,$P$2,休暇希望!X29)) ->  | BM34: =IF(休暇希望!Y29="","",DATE($M$2,$P$2,休暇希望!Y29)) ->  | BN34: =IF(休暇希望!Z29="","",DATE($M$2,$P$2,休暇希望!Z29)) ->  | BO34: =IF(休暇希望!AA29="","",DATE($M$2,$P$2,休暇希望!AA29)) ->  | BP34: =IF(休暇希望!AB29="","",DATE($M$2,$P$2,休暇希望!AB29)) ->  | BQ34: =IF(休暇希望!AC29="","",DATE($M$2,$P$2,休暇希望!AC29)) ->  | BR34: =IF(休暇希望!AD29="","",DATE($M$2,$P$2,休暇希望!AD29)) ->  | BS34: =IF(休暇希望!AE29="","",DATE($M$2,$P$2,休暇希望!AE29)) ->  | BT34: =IF(休暇希望!AF29="","",DATE($M$2,$P$2,休暇希望!AF29)) ->  | BU34: =IF(休暇希望!AG29="","",DATE($M$2,$P$2,休暇希望!AG29)) ->  | BV34: =IF(休暇希望!AH29="","",DATE($M$2,$P$2,休暇希望!AH29)) ->  | BW34: =IF(休暇希望!AI29="","",DATE($M$2,$P$2,休暇希望!AI29)) ->  | BY34: =AL66 -> 248.75
A35: 4 | B35: 21 | C35: 84 | I35: E | J35: 4 | K35: 27 | L35: =NETWORKDAYS($O$3,$O$4,各種設定!$A$4:$A$22)-COUNTIF(M35:AQ35,">0") -> 1900-01-21 | AS35: =IF(休暇希望!E30="","",DATE($M$2,$P$2,休暇希望!E30)) ->  | AT35: =IF(休暇希望!F30="","",DATE($M$2,$P$2,休暇希望!F30)) ->  | AU35: =IF(休暇希望!G30="","",DATE($M$2,$P$2,休暇希望!G30)) ->  | AV35: =IF(休暇希望!H30="","",DATE($M$2,$P$2,休暇希望!H30)) ->  | AW35: =IF(休暇希望!I30="","",DATE($M$2,$P$2,休暇希望!I30)) ->  | AX35: =IF(休暇希望!J30="","",DATE($M$2,$P$2,休暇希望!J30)) ->  | AY35: =IF(休暇希望!K30="","",DATE($M$2,$P$2,休暇希望!K30)) ->  | AZ35: =IF(休暇希望!L30="","",DATE($M$2,$P$2,休暇希望!L30)) ->  | BA35: =IF(休暇希望!M30="","",DATE($M$2,$P$2,休暇希望!M30)) ->  | BB35: =IF(休暇希望!N30="","",DATE($M$2,$P$2,休暇希望!N30)) ->  | BC35: =IF(休暇希望!O30="","",DATE($M$2,$P$2,休暇希望!O30)) ->  | BD35: =IF(休暇希望!P30="","",DATE($M$2,$P$2,休暇希望!P30)) ->  | BE35: =IF(休暇希望!Q30="","",DATE($M$2,$P$2,休暇希望!Q30)) ->  | BF35: =IF(休暇希望!R30="","",DATE($M$2,$P$2,休暇希望!R30)) ->  | BG35: =IF(休暇希望!S30="","",DATE($M$2,$P$2,休暇希望!S30)) ->  | BH35: =IF(休暇希望!T30="","",DATE($M$2,$P$2,休暇希望!T30)) ->  | BI35: =IF(休暇希望!U30="","",DATE($M$2,$P$2,休暇希望!U30)) ->  | BJ35: =IF(休暇希望!V30="","",DATE($M$2,$P$2,休暇希望!V30)) ->  | BK35: =IF(休暇希望!W30="","",DATE($M$2,$P$2,休暇希望!W30)) ->  | BL35: =IF(休暇希望!X30="","",DATE($M$2,$P$2,休暇希望!X30)) ->  | BM35: =IF(休暇希望!Y30="","",DATE($M$2,$P$2,休暇希望!Y30)) ->  | BN35: =IF(休暇希望!Z30="","",DATE($M$2,$P$2,休暇希望!Z30)) ->  | BO35: =IF(休暇希望!AA30="","",DATE($M$2,$P$2,休暇希望!AA30)) ->  | BP35: =IF(休暇希望!AB30="","",DATE($M$2,$P$2,休暇希望!AB30)) ->  | BQ35: =IF(休暇希望!AC30="","",DATE($M$2,$P$2,休暇希望!AC30)) ->  | BR35: =IF(休暇希望!AD30="","",DATE($M$2,$P$2,休暇希望!AD30)) ->  | BS35: =IF(休暇希望!AE30="","",DATE($M$2,$P$2,休暇希望!AE30)) ->  | BT35: =IF(休暇希望!AF30="","",DATE($M$2,$P$2,休暇希望!AF30)) ->  | BU35: =IF(休暇希望!AG30="","",DATE($M$2,$P$2,休暇希望!AG30)) ->  | BV35: =IF(休暇希望!AH30="","",DATE($M$2,$P$2,休暇希望!AH30)) ->  | BW35: =IF(休暇希望!AI30="","",DATE($M$2,$P$2,休暇希望!AI30)) ->  | BY35: =AM66 -> 236.75
A36: 4 | B36: 21 | C36: 84 | I36: E | J36: 4 | K36: 28 | L36: =NETWORKDAYS($O$3,$O$4,各種設定!$A$4:$A$22)-COUNTIF(M36:AQ36,">0") -> 1900-01-21 | AS36: =IF(休暇希望!E31="","",DATE($M$2,$P$2,休暇希望!E31)) ->  | AT36: =IF(休暇希望!F31="","",DATE($M$2,$P$2,休暇希望!F31)) ->  | AU36: =IF(休暇希望!G31="","",DATE($M$2,$P$2,休暇希望!G31)) ->  | AV36: =IF(休暇希望!H31="","",DATE($M$2,$P$2,休暇希望!H31)) ->  | AW36: =IF(休暇希望!I31="","",DATE($M$2,$P$2,休暇希望!I31)) ->  | AX36: =IF(休暇希望!J31="","",DATE($M$2,$P$2,休暇希望!J31)) ->  | AY36: =IF(休暇希望!K31="","",DATE($M$2,$P$2,休暇希望!K31)) ->  | AZ36: =IF(休暇希望!L31="","",DATE($M$2,$P$2,休暇希望!L31)) ->  | BA36: =IF(休暇希望!M31="","",DATE($M$2,$P$2,休暇希望!M31)) ->  | BB36: =IF(休暇希望!N31="","",DATE($M$2,$P$2,休暇希望!N31)) ->  | BC36: =IF(休暇希望!O31="","",DATE($M$2,$P$2,休暇希望!O31)) ->  | BD36: =IF(休暇希望!P31="","",DATE($M$2,$P$2,休暇希望!P31)) ->  | BE36: =IF(休暇希望!Q31="","",DATE($M$2,$P$2,休暇希望!Q31)) ->  | BF36: =IF(休暇希望!R31="","",DATE($M$2,$P$2,休暇希望!R31)) ->  | BG36: =IF(休暇希望!S31="","",DATE($M$2,$P$2,休暇希望!S31)) ->  | BH36: =IF(休暇希望!T31="","",DATE($M$2,$P$2,休暇希望!T31)) ->  | BI36: =IF(休暇希望!U31="","",DATE($M$2,$P$2,休暇希望!U31)) ->  | BJ36: =IF(休暇希望!V31="","",DATE($M$2,$P$2,休暇希望!V31)) ->  | BK36: =IF(休暇希望!W31="","",DATE($M$2,$P$2,休暇希望!W31)) ->  | BL36: =IF(休暇希望!X31="","",DATE($M$2,$P$2,休暇希望!X31)) ->  | BM36: =IF(休暇希望!Y31="","",DATE($M$2,$P$2,休暇希望!Y31)) ->  | BN36: =IF(休暇希望!Z31="","",DATE($M$2,$P$2,休暇希望!Z31)) ->  | BO36: =IF(休暇希望!AA31="","",DATE($M$2,$P$2,休暇希望!AA31)) ->  | BP36: =IF(休暇希望!AB31="","",DATE($M$2,$P$2,休暇希望!AB31)) ->  | BQ36: =IF(休暇希望!AC31="","",DATE($M$2,$P$2,休暇希望!AC31)) ->  | BR36: =IF(休暇希望!AD31="","",DATE($M$2,$P$2,休暇希望!AD31)) ->  | BS36: =IF(休暇希望!AE31="","",DATE($M$2,$P$2,休暇希望!AE31)) ->  | BT36: =IF(休暇希望!AF31="","",DATE($M$2,$P$2,休暇希望!AF31)) ->  | BU36: =IF(休暇希望!AG31="","",DATE($M$2,$P$2,休暇希望!AG31)) ->  | BV36: =IF(休暇希望!AH31="","",DATE($M$2,$P$2,休暇希望!AH31)) ->  | BW36: =IF(休暇希望!AI31="","",DATE($M$2,$P$2,休暇希望!AI31)) ->  | BY36: =AN66 -> 236.75
A37: 4 | B37: 21 | C37: 84 | F37: =IFERROR(D37/E37,"") ->  | I37: E | J37: 4 | K37: 29 | L37: =NETWORKDAYS($O$3,$O$4,各種設定!$A$4:$A$22)-COUNTIF(M37:AQ37,">0") -> 1900-01-21 | AS37: =IF(休暇希望!E32="","",DATE($M$2,$P$2,休暇希望!E32)) ->  | AT37: =IF(休暇希望!F32="","",DATE($M$2,$P$2,休暇希望!F32)) ->  | AU37: =IF(休暇希望!G32="","",DATE($M$2,$P$2,休暇希望!G32)) ->  | AV37: =IF(休暇希望!H32="","",DATE($M$2,$P$2,休暇希望!H32)) ->  | AW37: =IF(休暇希望!I32="","",DATE($M$2,$P$2,休暇希望!I32)) ->  | AX37: =IF(休暇希望!J32="","",DATE($M$2,$P$2,休暇希望!J32)) ->  | AY37: =IF(休暇希望!K32="","",DATE($M$2,$P$2,休暇希望!K32)) ->  | AZ37: =IF(休暇希望!L32="","",DATE($M$2,$P$2,休暇希望!L32)) ->  | BA37: =IF(休暇希望!M32="","",DATE($M$2,$P$2,休暇希望!M32)) ->  | BB37: =IF(休暇希望!N32="","",DATE($M$2,$P$2,休暇希望!N32)) ->  | BC37: =IF(休暇希望!O32="","",DATE($M$2,$P$2,休暇希望!O32)) ->  | BD37: =IF(休暇希望!P32="","",DATE($M$2,$P$2,休暇希望!P32)) ->  | BE37: =IF(休暇希望!Q32="","",DATE($M$2,$P$2,休暇希望!Q32)) ->  | BF37: =IF(休暇希望!R32="","",DATE($M$2,$P$2,休暇希望!R32)) ->  | BG37: =IF(休暇希望!S32="","",DATE($M$2,$P$2,休暇希望!S32)) ->  | BH37: =IF(休暇希望!T32="","",DATE($M$2,$P$2,休暇希望!T32)) ->  | BI37: =IF(休暇希望!U32="","",DATE($M$2,$P$2,休暇希望!U32)) ->  | BJ37: =IF(休暇希望!V32="","",DATE($M$2,$P$2,休暇希望!V32)) ->  | BK37: =IF(休暇希望!W32="","",DATE($M$2,$P$2,休暇希望!W32)) ->  | BL37: =IF(休暇希望!X32="","",DATE($M$2,$P$2,休暇希望!X32)) ->  | BM37: =IF(休暇希望!Y32="","",DATE($M$2,$P$2,休暇希望!Y32)) ->  | BN37: =IF(休暇希望!Z32="","",DATE($M$2,$P$2,休暇希望!Z32)) ->  | BO37: =IF(休暇希望!AA32="","",DATE($M$2,$P$2,休暇希望!AA32)) ->  | BP37: =IF(休暇希望!AB32="","",DATE($M$2,$P$2,休暇希望!AB32)) ->  | BQ37: =IF(休暇希望!AC32="","",DATE($M$2,$P$2,休暇希望!AC32)) ->  | BR37: =IF(休暇希望!AD32="","",DATE($M$2,$P$2,休暇希望!AD32)) ->  | BS37: =IF(休暇希望!AE32="","",DATE($M$2,$P$2,休暇希望!AE32)) ->  | BT37: =IF(休暇希望!AF32="","",DATE($M$2,$P$2,休暇希望!AF32)) ->  | BU37: =IF(休暇希望!AG32="","",DATE($M$2,$P$2,休暇希望!AG32)) ->  | BV37: =IF(休暇希望!AH32="","",DATE($M$2,$P$2,休暇希望!AH32)) ->  | BW37: =IF(休暇希望!AI32="","",DATE($M$2,$P$2,休暇希望!AI32)) ->  | BY37: =AO66 -> 236.75
A38: 4 | B38: 21 | C38: 84 | I38: E | J38: 4 | K38: 30 | L38: =NETWORKDAYS($O$3,$O$4,各種設定!$A$4:$A$22)-COUNTIF(M38:AQ38,">0") -> 1900-01-21 | AS38: =IF(休暇希望!E33="","",DATE($M$2,$P$2,休暇希望!E33)) ->  | AT38: =IF(休暇希望!F33="","",DATE($M$2,$P$2,休暇希望!F33)) ->  | AU38: =IF(休暇希望!G33="","",DATE($M$2,$P$2,休暇希望!G33)) ->  | AV38: =IF(休暇希望!H33="","",DATE($M$2,$P$2,休暇希望!H33)) ->  | AW38: =IF(休暇希望!I33="","",DATE($M$2,$P$2,休暇希望!I33)) ->  | AX38: =IF(休暇希望!J33="","",DATE($M$2,$P$2,休暇希望!J33)) ->  | AY38: =IF(休暇希望!K33="","",DATE($M$2,$P$2,休暇希望!K33)) ->  | AZ38: =IF(休暇希望!L33="","",DATE($M$2,$P$2,休暇希望!L33)) ->  | BA38: =IF(休暇希望!M33="","",DATE($M$2,$P$2,休暇希望!M33)) ->  | BB38: =IF(休暇希望!N33="","",DATE($M$2,$P$2,休暇希望!N33)) ->  | BC38: =IF(休暇希望!O33="","",DATE($M$2,$P$2,休暇希望!O33)) ->  | BD38: =IF(休暇希望!P33="","",DATE($M$2,$P$2,休暇希望!P33)) ->  | BE38: =IF(休暇希望!Q33="","",DATE($M$2,$P$2,休暇希望!Q33)) ->  | BF38: =IF(休暇希望!R33="","",DATE($M$2,$P$2,休暇希望!R33)) ->  | BG38: =IF(休暇希望!S33="","",DATE($M$2,$P$2,休暇希望!S33)) ->  | BH38: =IF(休暇希望!T33="","",DATE($M$2,$P$2,休暇希望!T33)) ->  | BI38: =IF(休暇希望!U33="","",DATE($M$2,$P$2,休暇希望!U33)) ->  | BJ38: =IF(休暇希望!V33="","",DATE($M$2,$P$2,休暇希望!V33)) ->  | BK38: =IF(休暇希望!W33="","",DATE($M$2,$P$2,休暇希望!W33)) ->  | BL38: =IF(休暇希望!X33="","",DATE($M$2,$P$2,休暇希望!X33)) ->  | BM38: =IF(休暇希望!Y33="","",DATE($M$2,$P$2,休暇希望!Y33)) ->  | BN38: =IF(休暇希望!Z33="","",DATE($M$2,$P$2,休暇希望!Z33)) ->  | BO38: =IF(休暇希望!AA33="","",DATE($M$2,$P$2,休暇希望!AA33)) ->  | BP38: =IF(休暇希望!AB33="","",DATE($M$2,$P$2,休暇希望!AB33)) ->  | BQ38: =IF(休暇希望!AC33="","",DATE($M$2,$P$2,休暇希望!AC33)) ->  | BR38: =IF(休暇希望!AD33="","",DATE($M$2,$P$2,休暇希望!AD33)) ->  | BS38: =IF(休暇希望!AE33="","",DATE($M$2,$P$2,休暇希望!AE33)) ->  | BT38: =IF(休暇希望!AF33="","",DATE($M$2,$P$2,休暇希望!AF33)) ->  | BU38: =IF(休暇希望!AG33="","",DATE($M$2,$P$2,休暇希望!AG33)) ->  | BV38: =IF(休暇希望!AH33="","",DATE($M$2,$P$2,休暇希望!AH33)) ->  | BW38: =IF(休暇希望!AI33="","",DATE($M$2,$P$2,休暇希望!AI33)) ->  | BY38: =AP66 -> 236.75
A39: 4 | B39: 21 | C39: 84 | I39: E | J39: 4 | K39: 31 | L39: =NETWORKDAYS($O$3,$O$4,各種設定!$A$4:$A$22)-COUNTIF(M39:AQ39,">0") -> 1900-01-21 | AS39: =IF(休暇希望!E34="","",DATE($M$2,$P$2,休暇希望!E34)) ->  | AT39: =IF(休暇希望!F34="","",DATE($M$2,$P$2,休暇希望!F34)) ->  | AU39: =IF(休暇希望!G34="","",DATE($M$2,$P$2,休暇希望!G34)) ->  | AV39: =IF(休暇希望!H34="","",DATE($M$2,$P$2,休暇希望!H34)) ->  | AW39: =IF(休暇希望!I34="","",DATE($M$2,$P$2,休暇希望!I34)) ->  | AX39: =IF(休暇希望!J34="","",DATE($M$2,$P$2,休暇希望!J34)) ->  | AY39: =IF(休暇希望!K34="","",DATE($M$2,$P$2,休暇希望!K34)) ->  | AZ39: =IF(休暇希望!L34="","",DATE($M$2,$P$2,休暇希望!L34)) ->  | BA39: =IF(休暇希望!M34="","",DATE($M$2,$P$2,休暇希望!M34)) ->  | BB39: =IF(休暇希望!N34="","",DATE($M$2,$P$2,休暇希望!N34)) ->  | BC39: =IF(休暇希望!O34="","",DATE($M$2,$P$2,休暇希望!O34)) ->  | BD39: =IF(休暇希望!P34="","",DATE($M$2,$P$2,休暇希望!P34)) ->  | BE39: =IF(休暇希望!Q34="","",DATE($M$2,$P$2,休暇希望!Q34)) ->  | BF39: =IF(休暇希望!R34="","",DATE($M$2,$P$2,休暇希望!R34)) ->  | BG39: =IF(休暇希望!S34="","",DATE($M$2,$P$2,休暇希望!S34)) ->  | BH39: =IF(休暇希望!T34="","",DATE($M$2,$P$2,休暇希望!T34)) ->  | BI39: =IF(休暇希望!U34="","",DATE($M$2,$P$2,休暇希望!U34)) ->  | BJ39: =IF(休暇希望!V34="","",DATE($M$2,$P$2,休暇希望!V34)) ->  | BK39: =IF(休暇希望!W34="","",DATE($M$2,$P$2,休暇希望!W34)) ->  | BL39: =IF(休暇希望!X34="","",DATE($M$2,$P$2,休暇希望!X34)) ->  | BM39: =IF(休暇希望!Y34="","",DATE($M$2,$P$2,休暇希望!Y34)) ->  | BN39: =IF(休暇希望!Z34="","",DATE($M$2,$P$2,休暇希望!Z34)) ->  | BO39: =IF(休暇希望!AA34="","",DATE($M$2,$P$2,休暇希望!AA34)) ->  | BP39: =IF(休暇希望!AB34="","",DATE($M$2,$P$2,休暇希望!AB34)) ->  | BQ39: =IF(休暇希望!AC34="","",DATE($M$2,$P$2,休暇希望!AC34)) ->  | BR39: =IF(休暇希望!AD34="","",DATE($M$2,$P$2,休暇希望!AD34)) ->  | BS39: =IF(休暇希望!AE34="","",DATE($M$2,$P$2,休暇希望!AE34)) ->  | BT39: =IF(休暇希望!AF34="","",DATE($M$2,$P$2,休暇希望!AF34)) ->  | BU39: =IF(休暇希望!AG34="","",DATE($M$2,$P$2,休暇希望!AG34)) ->  | BV39: =IF(休暇希望!AH34="","",DATE($M$2,$P$2,休暇希望!AH34)) ->  | BW39: =IF(休暇希望!AI34="","",DATE($M$2,$P$2,休暇希望!AI34)) ->  | BY39: =AQ66 -> 236.75
A40: 4 | B40: 21 | C40: 84 | I40: E | J40: 4 | K40: 32 | L40: =NETWORKDAYS($O$3,$O$4,各種設定!$A$4:$A$22)-COUNTIF(M40:AQ40,">0") -> 1900-01-21 | AS40: =IF(休暇希望!E35="","",DATE($M$2,$P$2,休暇希望!E35)) ->  | AT40: =IF(休暇希望!F35="","",DATE($M$2,$P$2,休暇希望!F35)) ->  | AU40: =IF(休暇希望!G35="","",DATE($M$2,$P$2,休暇希望!G35)) ->  | AV40: =IF(休暇希望!H35="","",DATE($M$2,$P$2,休暇希望!H35)) ->  | AW40: =IF(休暇希望!I35="","",DATE($M$2,$P$2,休暇希望!I35)) ->  | AX40: =IF(休暇希望!J35="","",DATE($M$2,$P$2,休暇希望!J35)) ->  | AY40: =IF(休暇希望!K35="","",DATE($M$2,$P$2,休暇希望!K35)) ->  | AZ40: =IF(休暇希望!L35="","",DATE($M$2,$P$2,休暇希望!L35)) ->  | BA40: =IF(休暇希望!M35="","",DATE($M$2,$P$2,休暇希望!M35)) ->  | BB40: =IF(休暇希望!N35="","",DATE($M$2,$P$2,休暇希望!N35)) ->  | BC40: =IF(休暇希望!O35="","",DATE($M$2,$P$2,休暇希望!O35)) ->  | BD40: =IF(休暇希望!P35="","",DATE($M$2,$P$2,休暇希望!P35)) ->  | BE40: =IF(休暇希望!Q35="","",DATE($M$2,$P$2,休暇希望!Q35)) ->  | BF40: =IF(休暇希望!R35="","",DATE($M$2,$P$2,休暇希望!R35)) ->  | BG40: =IF(休暇希望!S35="","",DATE($M$2,$P$2,休暇希望!S35)) ->  | BH40: =IF(休暇希望!T35="","",DATE($M$2,$P$2,休暇希望!T35)) ->  | BI40: =IF(休暇希望!U35="","",DATE($M$2,$P$2,休暇希望!U35)) ->  | BJ40: =IF(休暇希望!V35="","",DATE($M$2,$P$2,休暇希望!V35)) ->  | BK40: =IF(休暇希望!W35="","",DATE($M$2,$P$2,休暇希望!W35)) ->  | BL40: =IF(休暇希望!X35="","",DATE($M$2,$P$2,休暇希望!X35)) ->  | BM40: =IF(休暇希望!Y35="","",DATE($M$2,$P$2,休暇希望!Y35)) ->  | BN40: =IF(休暇希望!Z35="","",DATE($M$2,$P$2,休暇希望!Z35)) ->  | BO40: =IF(休暇希望!AA35="","",DATE($M$2,$P$2,休暇希望!AA35)) ->  | BP40: =IF(休暇希望!AB35="","",DATE($M$2,$P$2,休暇希望!AB35)) ->  | BQ40: =IF(休暇希望!AC35="","",DATE($M$2,$P$2,休暇希望!AC35)) ->  | BR40: =IF(休暇希望!AD35="","",DATE($M$2,$P$2,休暇希望!AD35)) ->  | BS40: =IF(休暇希望!AE35="","",DATE($M$2,$P$2,休暇希望!AE35)) ->  | BT40: =IF(休暇希望!AF35="","",DATE($M$2,$P$2,休暇希望!AF35)) ->  | BU40: =IF(休暇希望!AG35="","",DATE($M$2,$P$2,休暇希望!AG35)) ->  | BV40: =IF(休暇希望!AH35="","",DATE($M$2,$P$2,休暇希望!AH35)) ->  | BW40: =IF(休暇希望!AI35="","",DATE($M$2,$P$2,休暇希望!AI35)) -> 
A41: 4 | B41: 21 | C41: 84 | I41: E | J41: 4 | K41: 33 | L41: =NETWORKDAYS($O$3,$O$4,各種設定!$A$4:$A$22)-COUNTIF(M41:AQ41,">0") -> 1900-01-21 | AS41: =IF(休暇希望!E36="","",DATE($M$2,$P$2,休暇希望!E36)) ->  | AT41: =IF(休暇希望!F36="","",DATE($M$2,$P$2,休暇希望!F36)) ->  | AU41: =IF(休暇希望!G36="","",DATE($M$2,$P$2,休暇希望!G36)) ->  | AV41: =IF(休暇希望!H36="","",DATE($M$2,$P$2,休暇希望!H36)) ->  | AW41: =IF(休暇希望!I36="","",DATE($M$2,$P$2,休暇希望!I36)) ->  | AX41: =IF(休暇希望!J36="","",DATE($M$2,$P$2,休暇希望!J36)) ->  | AY41: =IF(休暇希望!K36="","",DATE($M$2,$P$2,休暇希望!K36)) ->  | AZ41: =IF(休暇希望!L36="","",DATE($M$2,$P$2,休暇希望!L36)) ->  | BA41: =IF(休暇希望!M36="","",DATE($M$2,$P$2,休暇希望!M36)) ->  | BB41: =IF(休暇希望!N36="","",DATE($M$2,$P$2,休暇希望!N36)) ->  | BC41: =IF(休暇希望!O36="","",DATE($M$2,$P$2,休暇希望!O36)) ->  | BD41: =IF(休暇希望!P36="","",DATE($M$2,$P$2,休暇希望!P36)) ->  | BE41: =IF(休暇希望!Q36="","",DATE($M$2,$P$2,休暇希望!Q36)) ->  | BF41: =IF(休暇希望!R36="","",DATE($M$2,$P$2,休暇希望!R36)) ->  | BG41: =IF(休暇希望!S36="","",DATE($M$2,$P$2,休暇希望!S36)) ->  | BH41: =IF(休暇希望!T36="","",DATE($M$2,$P$2,休暇希望!T36)) ->  | BI41: =IF(休暇希望!U36="","",DATE($M$2,$P$2,休暇希望!U36)) ->  | BJ41: =IF(休暇希望!V36="","",DATE($M$2,$P$2,休暇希望!V36)) ->  | BK41: =IF(休暇希望!W36="","",DATE($M$2,$P$2,休暇希望!W36)) ->  | BL41: =IF(休暇希望!X36="","",DATE($M$2,$P$2,休暇希望!X36)) ->  | BM41: =IF(休暇希望!Y36="","",DATE($M$2,$P$2,休暇希望!Y36)) ->  | BN41: =IF(休暇希望!Z36="","",DATE($M$2,$P$2,休暇希望!Z36)) ->  | BO41: =IF(休暇希望!AA36="","",DATE($M$2,$P$2,休暇希望!AA36)) ->  | BP41: =IF(休暇希望!AB36="","",DATE($M$2,$P$2,休暇希望!AB36)) ->  | BQ41: =IF(休暇希望!AC36="","",DATE($M$2,$P$2,休暇希望!AC36)) ->  | BR41: =IF(休暇希望!AD36="","",DATE($M$2,$P$2,休暇希望!AD36)) ->  | BS41: =IF(休暇希望!AE36="","",DATE($M$2,$P$2,休暇希望!AE36)) ->  | BT41: =IF(休暇希望!AF36="","",DATE($M$2,$P$2,休暇希望!AF36)) ->  | BU41: =IF(休暇希望!AG36="","",DATE($M$2,$P$2,休暇希望!AG36)) ->  | BV41: =IF(休暇希望!AH36="","",DATE($M$2,$P$2,休暇希望!AH36)) ->  | BW41: =IF(休暇希望!AI36="","",DATE($M$2,$P$2,休暇希望!AI36)) -> 
A42: 4 | B42: 21 | C42: 84 | I42: E | J42: 4 | K42: 34 | L42: =NETWORKDAYS($O$3,$O$4,各種設定!$A$4:$A$22)-COUNTIF(M42:AQ42,">0") -> 1900-01-21 | AS42: =IF(休暇希望!E37="","",DATE($M$2,$P$2,休暇希望!E37)) ->  | AT42: =IF(休暇希望!F37="","",DATE($M$2,$P$2,休暇希望!F37)) ->  | AU42: =IF(休暇希望!G37="","",DATE($M$2,$P$2,休暇希望!G37)) ->  | AV42: =IF(休暇希望!H37="","",DATE($M$2,$P$2,休暇希望!H37)) ->  | AW42: =IF(休暇希望!I37="","",DATE($M$2,$P$2,休暇希望!I37)) ->  | AX42: =IF(休暇希望!J37="","",DATE($M$2,$P$2,休暇希望!J37)) ->  | AY42: =IF(休暇希望!K37="","",DATE($M$2,$P$2,休暇希望!K37)) ->  | AZ42: =IF(休暇希望!L37="","",DATE($M$2,$P$2,休暇希望!L37)) ->  | BA42: =IF(休暇希望!M37="","",DATE($M$2,$P$2,休暇希望!M37)) ->  | BB42: =IF(休暇希望!N37="","",DATE($M$2,$P$2,休暇希望!N37)) ->  | BC42: =IF(休暇希望!O37="","",DATE($M$2,$P$2,休暇希望!O37)) ->  | BD42: =IF(休暇希望!P37="","",DATE($M$2,$P$2,休暇希望!P37)) ->  | BE42: =IF(休暇希望!Q37="","",DATE($M$2,$P$2,休暇希望!Q37)) ->  | BF42: =IF(休暇希望!R37="","",DATE($M$2,$P$2,休暇希望!R37)) ->  | BG42: =IF(休暇希望!S37="","",DATE($M$2,$P$2,休暇希望!S37)) ->  | BH42: =IF(休暇希望!T37="","",DATE($M$2,$P$2,休暇希望!T37)) ->  | BI42: =IF(休暇希望!U37="","",DATE($M$2,$P$2,休暇希望!U37)) ->  | BJ42: =IF(休暇希望!V37="","",DATE($M$2,$P$2,休暇希望!V37)) ->  | BK42: =IF(休暇希望!W37="","",DATE($M$2,$P$2,休暇希望!W37)) ->  | BL42: =IF(休暇希望!X37="","",DATE($M$2,$P$2,休暇希望!X37)) ->  | BM42: =IF(休暇希望!Y37="","",DATE($M$2,$P$2,休暇希望!Y37)) ->  | BN42: =IF(休暇希望!Z37="","",DATE($M$2,$P$2,休暇希望!Z37)) ->  | BO42: =IF(休暇希望!AA37="","",DATE($M$2,$P$2,休暇希望!AA37)) ->  | BP42: =IF(休暇希望!AB37="","",DATE($M$2,$P$2,休暇希望!AB37)) ->  | BQ42: =IF(休暇希望!AC37="","",DATE($M$2,$P$2,休暇希望!AC37)) ->  | BR42: =IF(休暇希望!AD37="","",DATE($M$2,$P$2,休暇希望!AD37)) ->  | BS42: =IF(休暇希望!AE37="","",DATE($M$2,$P$2,休暇希望!AE37)) ->  | BT42: =IF(休暇希望!AF37="","",DATE($M$2,$P$2,休暇希望!AF37)) ->  | BU42: =IF(休暇希望!AG37="","",DATE($M$2,$P$2,休暇希望!AG37)) ->  | BV42: =IF(休暇希望!AH37="","",DATE($M$2,$P$2,休暇希望!AH37)) ->  | BW42: =IF(休暇希望!AI37="","",DATE($M$2,$P$2,休暇希望!AI37)) -> 
A43: 4 | B43: 21 | C43: 84 | I43: E | J43: 4 | K43: 35 | L43: =NETWORKDAYS($O$3,$O$4,各種設定!$A$4:$A$22)-COUNTIF(M43:AQ43,">0") -> 1900-01-21 | AS43: =IF(休暇希望!E38="","",DATE($M$2,$P$2,休暇希望!E38)) ->  | AT43: =IF(休暇希望!F38="","",DATE($M$2,$P$2,休暇希望!F38)) ->  | AU43: =IF(休暇希望!G38="","",DATE($M$2,$P$2,休暇希望!G38)) ->  | AV43: =IF(休暇希望!H38="","",DATE($M$2,$P$2,休暇希望!H38)) ->  | AW43: =IF(休暇希望!I38="","",DATE($M$2,$P$2,休暇希望!I38)) ->  | AX43: =IF(休暇希望!J38="","",DATE($M$2,$P$2,休暇希望!J38)) ->  | AY43: =IF(休暇希望!K38="","",DATE($M$2,$P$2,休暇希望!K38)) ->  | AZ43: =IF(休暇希望!L38="","",DATE($M$2,$P$2,休暇希望!L38)) ->  | BA43: =IF(休暇希望!M38="","",DATE($M$2,$P$2,休暇希望!M38)) ->  | BB43: =IF(休暇希望!N38="","",DATE($M$2,$P$2,休暇希望!N38)) ->  | BC43: =IF(休暇希望!O38="","",DATE($M$2,$P$2,休暇希望!O38)) ->  | BD43: =IF(休暇希望!P38="","",DATE($M$2,$P$2,休暇希望!P38)) ->  | BE43: =IF(休暇希望!Q38="","",DATE($M$2,$P$2,休暇希望!Q38)) ->  | BF43: =IF(休暇希望!R38="","",DATE($M$2,$P$2,休暇希望!R38)) ->  | BG43: =IF(休暇希望!S38="","",DATE($M$2,$P$2,休暇希望!S38)) ->  | BH43: =IF(休暇希望!T38="","",DATE($M$2,$P$2,休暇希望!T38)) ->  | BI43: =IF(休暇希望!U38="","",DATE($M$2,$P$2,休暇希望!U38)) ->  | BJ43: =IF(休暇希望!V38="","",DATE($M$2,$P$2,休暇希望!V38)) ->  | BK43: =IF(休暇希望!W38="","",DATE($M$2,$P$2,休暇希望!W38)) ->  | BL43: =IF(休暇希望!X38="","",DATE($M$2,$P$2,休暇希望!X38)) ->  | BM43: =IF(休暇希望!Y38="","",DATE($M$2,$P$2,休暇希望!Y38)) ->  | BN43: =IF(休暇希望!Z38="","",DATE($M$2,$P$2,休暇希望!Z38)) ->  | BO43: =IF(休暇希望!AA38="","",DATE($M$2,$P$2,休暇希望!AA38)) ->  | BP43: =IF(休暇希望!AB38="","",DATE($M$2,$P$2,休暇希望!AB38)) ->  | BQ43: =IF(休暇希望!AC38="","",DATE($M$2,$P$2,休暇希望!AC38)) ->  | BR43: =IF(休暇希望!AD38="","",DATE($M$2,$P$2,休暇希望!AD38)) ->  | BS43: =IF(休暇希望!AE38="","",DATE($M$2,$P$2,休暇希望!AE38)) ->  | BT43: =IF(休暇希望!AF38="","",DATE($M$2,$P$2,休暇希望!AF38)) ->  | BU43: =IF(休暇希望!AG38="","",DATE($M$2,$P$2,休暇希望!AG38)) ->  | BV43: =IF(休暇希望!AH38="","",DATE($M$2,$P$2,休暇希望!AH38)) ->  | BW43: =IF(休暇希望!AI38="","",DATE($M$2,$P$2,休暇希望!AI38)) -> 
A44: 4 | B44: 21 | C44: 84 | I44: E | J44: 4 | K44: 36 | L44: =NETWORKDAYS($O$3,$O$4,各種設定!$A$4:$A$22)-COUNTIF(M44:AQ44,">0") -> 1900-01-21 | AS44: =IF(休暇希望!E39="","",DATE($M$2,$P$2,休暇希望!E39)) ->  | AT44: =IF(休暇希望!F39="","",DATE($M$2,$P$2,休暇希望!F39)) ->  | AU44: =IF(休暇希望!G39="","",DATE($M$2,$P$2,休暇希望!G39)) ->  | AV44: =IF(休暇希望!H39="","",DATE($M$2,$P$2,休暇希望!H39)) ->  | AW44: =IF(休暇希望!I39="","",DATE($M$2,$P$2,休暇希望!I39)) ->  | AX44: =IF(休暇希望!J39="","",DATE($M$2,$P$2,休暇希望!J39)) ->  | AY44: =IF(休暇希望!K39="","",DATE($M$2,$P$2,休暇希望!K39)) ->  | AZ44: =IF(休暇希望!L39="","",DATE($M$2,$P$2,休暇希望!L39)) ->  | BA44: =IF(休暇希望!M39="","",DATE($M$2,$P$2,休暇希望!M39)) ->  | BB44: =IF(休暇希望!N39="","",DATE($M$2,$P$2,休暇希望!N39)) ->  | BC44: =IF(休暇希望!O39="","",DATE($M$2,$P$2,休暇希望!O39)) ->  | BD44: =IF(休暇希望!P39="","",DATE($M$2,$P$2,休暇希望!P39)) ->  | BE44: =IF(休暇希望!Q39="","",DATE($M$2,$P$2,休暇希望!Q39)) ->  | BF44: =IF(休暇希望!R39="","",DATE($M$2,$P$2,休暇希望!R39)) ->  | BG44: =IF(休暇希望!S39="","",DATE($M$2,$P$2,休暇希望!S39)) ->  | BH44: =IF(休暇希望!T39="","",DATE($M$2,$P$2,休暇希望!T39)) ->  | BI44: =IF(休暇希望!U39="","",DATE($M$2,$P$2,休暇希望!U39)) ->  | BJ44: =IF(休暇希望!V39="","",DATE($M$2,$P$2,休暇希望!V39)) ->  | BK44: =IF(休暇希望!W39="","",DATE($M$2,$P$2,休暇希望!W39)) ->  | BL44: =IF(休暇希望!X39="","",DATE($M$2,$P$2,休暇希望!X39)) ->  | BM44: =IF(休暇希望!Y39="","",DATE($M$2,$P$2,休暇希望!Y39)) ->  | BN44: =IF(休暇希望!Z39="","",DATE($M$2,$P$2,休暇希望!Z39)) ->  | BO44: =IF(休暇希望!AA39="","",DATE($M$2,$P$2,休暇希望!AA39)) ->  | BP44: =IF(休暇希望!AB39="","",DATE($M$2,$P$2,休暇希望!AB39)) ->  | BQ44: =IF(休暇希望!AC39="","",DATE($M$2,$P$2,休暇希望!AC39)) ->  | BR44: =IF(休暇希望!AD39="","",DATE($M$2,$P$2,休暇希望!AD39)) ->  | BS44: =IF(休暇希望!AE39="","",DATE($M$2,$P$2,休暇希望!AE39)) ->  | BT44: =IF(休暇希望!AF39="","",DATE($M$2,$P$2,休暇希望!AF39)) ->  | BU44: =IF(休暇希望!AG39="","",DATE($M$2,$P$2,休暇希望!AG39)) ->  | BV44: =IF(休暇希望!AH39="","",DATE($M$2,$P$2,休暇希望!AH39)) ->  | BW44: =IF(休暇希望!AI39="","",DATE($M$2,$P$2,休暇希望!AI39)) -> 
A45: 4 | B45: 21 | C45: 84 | I45: E | J45: 4 | K45: 37 | L45: =NETWORKDAYS($O$3,$O$4,各種設定!$A$4:$A$22)-COUNTIF(M45:AQ45,">0") -> 1900-01-21 | AS45: =IF(休暇希望!E40="","",DATE($M$2,$P$2,休暇希望!E40)) ->  | AT45: =IF(休暇希望!F40="","",DATE($M$2,$P$2,休暇希望!F40)) ->  | AU45: =IF(休暇希望!G40="","",DATE($M$2,$P$2,休暇希望!G40)) ->  | AV45: =IF(休暇希望!H40="","",DATE($M$2,$P$2,休暇希望!H40)) ->  | AW45: =IF(休暇希望!I40="","",DATE($M$2,$P$2,休暇希望!I40)) ->  | AX45: =IF(休暇希望!J40="","",DATE($M$2,$P$2,休暇希望!J40)) ->  | AY45: =IF(休暇希望!K40="","",DATE($M$2,$P$2,休暇希望!K40)) ->  | AZ45: =IF(休暇希望!L40="","",DATE($M$2,$P$2,休暇希望!L40)) ->  | BA45: =IF(休暇希望!M40="","",DATE($M$2,$P$2,休暇希望!M40)) ->  | BB45: =IF(休暇希望!N40="","",DATE($M$2,$P$2,休暇希望!N40)) ->  | BC45: =IF(休暇希望!O40="","",DATE($M$2,$P$2,休暇希望!O40)) ->  | BD45: =IF(休暇希望!P40="","",DATE($M$2,$P$2,休暇希望!P40)) ->  | BE45: =IF(休暇希望!Q40="","",DATE($M$2,$P$2,休暇希望!Q40)) ->  | BF45: =IF(休暇希望!R40="","",DATE($M$2,$P$2,休暇希望!R40)) ->  | BG45: =IF(休暇希望!S40="","",DATE($M$2,$P$2,休暇希望!S40)) ->  | BH45: =IF(休暇希望!T40="","",DATE($M$2,$P$2,休暇希望!T40)) ->  | BI45: =IF(休暇希望!U40="","",DATE($M$2,$P$2,休暇希望!U40)) ->  | BJ45: =IF(休暇希望!V40="","",DATE($M$2,$P$2,休暇希望!V40)) ->  | BK45: =IF(休暇希望!W40="","",DATE($M$2,$P$2,休暇希望!W40)) ->  | BL45: =IF(休暇希望!X40="","",DATE($M$2,$P$2,休暇希望!X40)) ->  | BM45: =IF(休暇希望!Y40="","",DATE($M$2,$P$2,休暇希望!Y40)) ->  | BN45: =IF(休暇希望!Z40="","",DATE($M$2,$P$2,休暇希望!Z40)) ->  | BO45: =IF(休暇希望!AA40="","",DATE($M$2,$P$2,休暇希望!AA40)) ->  | BP45: =IF(休暇希望!AB40="","",DATE($M$2,$P$2,休暇希望!AB40)) ->  | BQ45: =IF(休暇希望!AC40="","",DATE($M$2,$P$2,休暇希望!AC40)) ->  | BR45: =IF(休暇希望!AD40="","",DATE($M$2,$P$2,休暇希望!AD40)) ->  | BS45: =IF(休暇希望!AE40="","",DATE($M$2,$P$2,休暇希望!AE40)) ->  | BT45: =IF(休暇希望!AF40="","",DATE($M$2,$P$2,休暇希望!AF40)) ->  | BU45: =IF(休暇希望!AG40="","",DATE($M$2,$P$2,休暇希望!AG40)) ->  | BV45: =IF(休暇希望!AH40="","",DATE($M$2,$P$2,休暇希望!AH40)) ->  | BW45: =IF(休暇希望!AI40="","",DATE($M$2,$P$2,休暇希望!AI40)) -> 
A46: 4 | B46: 21 | C46: 84 | I46: E | J46: 4 | K46: 38 | L46: =NETWORKDAYS($O$3,$O$4,各種設定!$A$4:$A$22)-COUNTIF(M46:AQ46,">0") -> 1900-01-21 | AS46: =IF(休暇希望!E41="","",DATE($M$2,$P$2,休暇希望!E41)) ->  | AT46: =IF(休暇希望!F41="","",DATE($M$2,$P$2,休暇希望!F41)) ->  | AU46: =IF(休暇希望!G41="","",DATE($M$2,$P$2,休暇希望!G41)) ->  | AV46: =IF(休暇希望!H41="","",DATE($M$2,$P$2,休暇希望!H41)) ->  | AW46: =IF(休暇希望!I41="","",DATE($M$2,$P$2,休暇希望!I41)) ->  | AX46: =IF(休暇希望!J41="","",DATE($M$2,$P$2,休暇希望!J41)) ->  | AY46: =IF(休暇希望!K41="","",DATE($M$2,$P$2,休暇希望!K41)) ->  | AZ46: =IF(休暇希望!L41="","",DATE($M$2,$P$2,休暇希望!L41)) ->  | BA46: =IF(休暇希望!M41="","",DATE($M$2,$P$2,休暇希望!M41)) ->  | BB46: =IF(休暇希望!N41="","",DATE($M$2,$P$2,休暇希望!N41)) ->  | BC46: =IF(休暇希望!O41="","",DATE($M$2,$P$2,休暇希望!O41)) ->  | BD46: =IF(休暇希望!P41="","",DATE($M$2,$P$2,休暇希望!P41)) ->  | BE46: =IF(休暇希望!Q41="","",DATE($M$2,$P$2,休暇希望!Q41)) ->  | BF46: =IF(休暇希望!R41="","",DATE($M$2,$P$2,休暇希望!R41)) ->  | BG46: =IF(休暇希望!S41="","",DATE($M$2,$P$2,休暇希望!S41)) ->  | BH46: =IF(休暇希望!T41="","",DATE($M$2,$P$2,休暇希望!T41)) ->  | BI46: =IF(休暇希望!U41="","",DATE($M$2,$P$2,休暇希望!U41)) ->  | BJ46: =IF(休暇希望!V41="","",DATE($M$2,$P$2,休暇希望!V41)) ->  | BK46: =IF(休暇希望!W41="","",DATE($M$2,$P$2,休暇希望!W41)) ->  | BL46: =IF(休暇希望!X41="","",DATE($M$2,$P$2,休暇希望!X41)) ->  | BM46: =IF(休暇希望!Y41="","",DATE($M$2,$P$2,休暇希望!Y41)) ->  | BN46: =IF(休暇希望!Z41="","",DATE($M$2,$P$2,休暇希望!Z41)) ->  | BO46: =IF(休暇希望!AA41="","",DATE($M$2,$P$2,休暇希望!AA41)) ->  | BP46: =IF(休暇希望!AB41="","",DATE($M$2,$P$2,休暇希望!AB41)) ->  | BQ46: =IF(休暇希望!AC41="","",DATE($M$2,$P$2,休暇希望!AC41)) ->  | BR46: =IF(休暇希望!AD41="","",DATE($M$2,$P$2,休暇希望!AD41)) ->  | BS46: =IF(休暇希望!AE41="","",DATE($M$2,$P$2,休暇希望!AE41)) ->  | BT46: =IF(休暇希望!AF41="","",DATE($M$2,$P$2,休暇希望!AF41)) ->  | BU46: =IF(休暇希望!AG41="","",DATE($M$2,$P$2,休暇希望!AG41)) ->  | BV46: =IF(休暇希望!AH41="","",DATE($M$2,$P$2,休暇希望!AH41)) ->  | BW46: =IF(休暇希望!AI41="","",DATE($M$2,$P$2,休暇希望!AI41)) -> 
A47: 4 | B47: 21 | C47: 84 | I47: E | J47: 4 | K47: 39 | L47: =NETWORKDAYS($O$3,$O$4,各種設定!$A$4:$A$22)-COUNTIF(M47:AQ47,">0") -> 1900-01-21 | AS47: =IF(休暇希望!E42="","",DATE($M$2,$P$2,休暇希望!E42)) ->  | AT47: =IF(休暇希望!F42="","",DATE($M$2,$P$2,休暇希望!F42)) ->  | AU47: =IF(休暇希望!G42="","",DATE($M$2,$P$2,休暇希望!G42)) ->  | AV47: =IF(休暇希望!H42="","",DATE($M$2,$P$2,休暇希望!H42)) ->  | AW47: =IF(休暇希望!I42="","",DATE($M$2,$P$2,休暇希望!I42)) ->  | AX47: =IF(休暇希望!J42="","",DATE($M$2,$P$2,休暇希望!J42)) ->  | AY47: =IF(休暇希望!K42="","",DATE($M$2,$P$2,休暇希望!K42)) ->  | AZ47: =IF(休暇希望!L42="","",DATE($M$2,$P$2,休暇希望!L42)) ->  | BA47: =IF(休暇希望!M42="","",DATE($M$2,$P$2,休暇希望!M42)) ->  | BB47: =IF(休暇希望!N42="","",DATE($M$2,$P$2,休暇希望!N42)) ->  | BC47: =IF(休暇希望!O42="","",DATE($M$2,$P$2,休暇希望!O42)) ->  | BD47: =IF(休暇希望!P42="","",DATE($M$2,$P$2,休暇希望!P42)) ->  | BE47: =IF(休暇希望!Q42="","",DATE($M$2,$P$2,休暇希望!Q42)) ->  | BF47: =IF(休暇希望!R42="","",DATE($M$2,$P$2,休暇希望!R42)) ->  | BG47: =IF(休暇希望!S42="","",DATE($M$2,$P$2,休暇希望!S42)) ->  | BH47: =IF(休暇希望!T42="","",DATE($M$2,$P$2,休暇希望!T42)) ->  | BI47: =IF(休暇希望!U42="","",DATE($M$2,$P$2,休暇希望!U42)) ->  | BJ47: =IF(休暇希望!V42="","",DATE($M$2,$P$2,休暇希望!V42)) ->  | BK47: =IF(休暇希望!W42="","",DATE($M$2,$P$2,休暇希望!W42)) ->  | BL47: =IF(休暇希望!X42="","",DATE($M$2,$P$2,休暇希望!X42)) ->  | BM47: =IF(休暇希望!Y42="","",DATE($M$2,$P$2,休暇希望!Y42)) ->  | BN47: =IF(休暇希望!Z42="","",DATE($M$2,$P$2,休暇希望!Z42)) ->  | BO47: =IF(休暇希望!AA42="","",DATE($M$2,$P$2,休暇希望!AA42)) ->  | BP47: =IF(休暇希望!AB42="","",DATE($M$2,$P$2,休暇希望!AB42)) ->  | BQ47: =IF(休暇希望!AC42="","",DATE($M$2,$P$2,休暇希望!AC42)) ->  | BR47: =IF(休暇希望!AD42="","",DATE($M$2,$P$2,休暇希望!AD42)) ->  | BS47: =IF(休暇希望!AE42="","",DATE($M$2,$P$2,休暇希望!AE42)) ->  | BT47: =IF(休暇希望!AF42="","",DATE($M$2,$P$2,休暇希望!AF42)) ->  | BU47: =IF(休暇希望!AG42="","",DATE($M$2,$P$2,休暇希望!AG42)) ->  | BV47: =IF(休暇希望!AH42="","",DATE($M$2,$P$2,休暇希望!AH42)) ->  | BW47: =IF(休暇希望!AI42="","",DATE($M$2,$P$2,休暇希望!AI42)) -> 
A48: 4 | B48: 21 | C48: 84 | I48: E | J48: 4 | K48: 40 | L48: =NETWORKDAYS($O$3,$O$4,各種設定!$A$4:$A$22)-COUNTIF(M48:AQ48,">0") -> 1900-01-21 | AS48: =IF(休暇希望!E43="","",DATE($M$2,$P$2,休暇希望!E43)) ->  | AT48: =IF(休暇希望!F43="","",DATE($M$2,$P$2,休暇希望!F43)) ->  | AU48: =IF(休暇希望!G43="","",DATE($M$2,$P$2,休暇希望!G43)) ->  | AV48: =IF(休暇希望!H43="","",DATE($M$2,$P$2,休暇希望!H43)) ->  | AW48: =IF(休暇希望!I43="","",DATE($M$2,$P$2,休暇希望!I43)) ->  | AX48: =IF(休暇希望!J43="","",DATE($M$2,$P$2,休暇希望!J43)) ->  | AY48: =IF(休暇希望!K43="","",DATE($M$2,$P$2,休暇希望!K43)) ->  | AZ48: =IF(休暇希望!L43="","",DATE($M$2,$P$2,休暇希望!L43)) ->  | BA48: =IF(休暇希望!M43="","",DATE($M$2,$P$2,休暇希望!M43)) ->  | BB48: =IF(休暇希望!N43="","",DATE($M$2,$P$2,休暇希望!N43)) ->  | BC48: =IF(休暇希望!O43="","",DATE($M$2,$P$2,休暇希望!O43)) ->  | BD48: =IF(休暇希望!P43="","",DATE($M$2,$P$2,休暇希望!P43)) ->  | BE48: =IF(休暇希望!Q43="","",DATE($M$2,$P$2,休暇希望!Q43)) ->  | BF48: =IF(休暇希望!R43="","",DATE($M$2,$P$2,休暇希望!R43)) ->  | BG48: =IF(休暇希望!S43="","",DATE($M$2,$P$2,休暇希望!S43)) ->  | BH48: =IF(休暇希望!T43="","",DATE($M$2,$P$2,休暇希望!T43)) ->  | BI48: =IF(休暇希望!U43="","",DATE($M$2,$P$2,休暇希望!U43)) ->  | BJ48: =IF(休暇希望!V43="","",DATE($M$2,$P$2,休暇希望!V43)) ->  | BK48: =IF(休暇希望!W43="","",DATE($M$2,$P$2,休暇希望!W43)) ->  | BL48: =IF(休暇希望!X43="","",DATE($M$2,$P$2,休暇希望!X43)) ->  | BM48: =IF(休暇希望!Y43="","",DATE($M$2,$P$2,休暇希望!Y43)) ->  | BN48: =IF(休暇希望!Z43="","",DATE($M$2,$P$2,休暇希望!Z43)) ->  | BO48: =IF(休暇希望!AA43="","",DATE($M$2,$P$2,休暇希望!AA43)) ->  | BP48: =IF(休暇希望!AB43="","",DATE($M$2,$P$2,休暇希望!AB43)) ->  | BQ48: =IF(休暇希望!AC43="","",DATE($M$2,$P$2,休暇希望!AC43)) ->  | BR48: =IF(休暇希望!AD43="","",DATE($M$2,$P$2,休暇希望!AD43)) ->  | BS48: =IF(休暇希望!AE43="","",DATE($M$2,$P$2,休暇希望!AE43)) ->  | BT48: =IF(休暇希望!AF43="","",DATE($M$2,$P$2,休暇希望!AF43)) ->  | BU48: =IF(休暇希望!AG43="","",DATE($M$2,$P$2,休暇希望!AG43)) ->  | BV48: =IF(休暇希望!AH43="","",DATE($M$2,$P$2,休暇希望!AH43)) ->  | BW48: =IF(休暇希望!AI43="","",DATE($M$2,$P$2,休暇希望!AI43)) -> 
A49: 4 | B49: 21 | C49: 84 | I49: E | J49: 4 | K49: 41 | L49: =NETWORKDAYS($O$3,$O$4,各種設定!$A$4:$A$22)-COUNTIF(M49:AQ49,">0") -> 1900-01-21 | AS49: =IF(休暇希望!E44="","",DATE($M$2,$P$2,休暇希望!E44)) ->  | AT49: =IF(休暇希望!F44="","",DATE($M$2,$P$2,休暇希望!F44)) ->  | AU49: =IF(休暇希望!G44="","",DATE($M$2,$P$2,休暇希望!G44)) ->  | AV49: =IF(休暇希望!H44="","",DATE($M$2,$P$2,休暇希望!H44)) ->  | AW49: =IF(休暇希望!I44="","",DATE($M$2,$P$2,休暇希望!I44)) ->  | AX49: =IF(休暇希望!J44="","",DATE($M$2,$P$2,休暇希望!J44)) ->  | AY49: =IF(休暇希望!K44="","",DATE($M$2,$P$2,休暇希望!K44)) ->  | AZ49: =IF(休暇希望!L44="","",DATE($M$2,$P$2,休暇希望!L44)) ->  | BA49: =IF(休暇希望!M44="","",DATE($M$2,$P$2,休暇希望!M44)) ->  | BB49: =IF(休暇希望!N44="","",DATE($M$2,$P$2,休暇希望!N44)) ->  | BC49: =IF(休暇希望!O44="","",DATE($M$2,$P$2,休暇希望!O44)) ->  | BD49: =IF(休暇希望!P44="","",DATE($M$2,$P$2,休暇希望!P44)) ->  | BE49: =IF(休暇希望!Q44="","",DATE($M$2,$P$2,休暇希望!Q44)) ->  | BF49: =IF(休暇希望!R44="","",DATE($M$2,$P$2,休暇希望!R44)) ->  | BG49: =IF(休暇希望!S44="","",DATE($M$2,$P$2,休暇希望!S44)) ->  | BH49: =IF(休暇希望!T44="","",DATE($M$2,$P$2,休暇希望!T44)) ->  | BI49: =IF(休暇希望!U44="","",DATE($M$2,$P$2,休暇希望!U44)) ->  | BJ49: =IF(休暇希望!V44="","",DATE($M$2,$P$2,休暇希望!V44)) ->  | BK49: =IF(休暇希望!W44="","",DATE($M$2,$P$2,休暇希望!W44)) ->  | BL49: =IF(休暇希望!X44="","",DATE($M$2,$P$2,休暇希望!X44)) ->  | BM49: =IF(休暇希望!Y44="","",DATE($M$2,$P$2,休暇希望!Y44)) ->  | BN49: =IF(休暇希望!Z44="","",DATE($M$2,$P$2,休暇希望!Z44)) ->  | BO49: =IF(休暇希望!AA44="","",DATE($M$2,$P$2,休暇希望!AA44)) ->  | BP49: =IF(休暇希望!AB44="","",DATE($M$2,$P$2,休暇希望!AB44)) ->  | BQ49: =IF(休暇希望!AC44="","",DATE($M$2,$P$2,休暇希望!AC44)) ->  | BR49: =IF(休暇希望!AD44="","",DATE($M$2,$P$2,休暇希望!AD44)) ->  | BS49: =IF(休暇希望!AE44="","",DATE($M$2,$P$2,休暇希望!AE44)) ->  | BT49: =IF(休暇希望!AF44="","",DATE($M$2,$P$2,休暇希望!AF44)) ->  | BU49: =IF(休暇希望!AG44="","",DATE($M$2,$P$2,休暇希望!AG44)) ->  | BV49: =IF(休暇希望!AH44="","",DATE($M$2,$P$2,休暇希望!AH44)) ->  | BW49: =IF(休暇希望!AI44="","",DATE($M$2,$P$2,休暇希望!AI44)) -> 
A50: 4 | B50: 21 | C50: 84 | I50: E | J50: 4 | K50: 42 | L50: =NETWORKDAYS($O$3,$O$4,各種設定!$A$4:$A$22)-COUNTIF(M50:AQ50,">0") -> 1900-01-21 | AI50: =IF(AI$7="","",IF(COUNTIF($AS50:$BW50,AI$7)>0,$J50,"")) ->  | AS50: =IF(休暇希望!E45="","",DATE($M$2,$P$2,休暇希望!E45)) ->  | AT50: =IF(休暇希望!F45="","",DATE($M$2,$P$2,休暇希望!F45)) ->  | AU50: =IF(休暇希望!G45="","",DATE($M$2,$P$2,休暇希望!G45)) ->  | AV50: =IF(休暇希望!H45="","",DATE($M$2,$P$2,休暇希望!H45)) ->  | AW50: =IF(休暇希望!I45="","",DATE($M$2,$P$2,休暇希望!I45)) ->  | AX50: =IF(休暇希望!J45="","",DATE($M$2,$P$2,休暇希望!J45)) ->  | AY50: =IF(休暇希望!K45="","",DATE($M$2,$P$2,休暇希望!K45)) ->  | AZ50: =IF(休暇希望!L45="","",DATE($M$2,$P$2,休暇希望!L45)) ->  | BA50: =IF(休暇希望!M45="","",DATE($M$2,$P$2,休暇希望!M45)) ->  | BB50: =IF(休暇希望!N45="","",DATE($M$2,$P$2,休暇希望!N45)) ->  | BC50: =IF(休暇希望!O45="","",DATE($M$2,$P$2,休暇希望!O45)) ->  | BD50: =IF(休暇希望!P45="","",DATE($M$2,$P$2,休暇希望!P45)) ->  | BE50: =IF(休暇希望!Q45="","",DATE($M$2,$P$2,休暇希望!Q45)) ->  | BF50: =IF(休暇希望!R45="","",DATE($M$2,$P$2,休暇希望!R45)) ->  | BG50: =IF(休暇希望!S45="","",DATE($M$2,$P$2,休暇希望!S45)) ->  | BH50: =IF(休暇希望!T45="","",DATE($M$2,$P$2,休暇希望!T45)) ->  | BI50: =IF(休暇希望!U45="","",DATE($M$2,$P$2,休暇希望!U45)) ->  | BJ50: =IF(休暇希望!V45="","",DATE($M$2,$P$2,休暇希望!V45)) ->  | BK50: =IF(休暇希望!W45="","",DATE($M$2,$P$2,休暇希望!W45)) ->  | BL50: =IF(休暇希望!X45="","",DATE($M$2,$P$2,休暇希望!X45)) ->  | BM50: =IF(休暇希望!Y45="","",DATE($M$2,$P$2,休暇希望!Y45)) ->  | BN50: =IF(休暇希望!Z45="","",DATE($M$2,$P$2,休暇希望!Z45)) ->  | BO50: =IF(休暇希望!AA45="","",DATE($M$2,$P$2,休暇希望!AA45)) ->  | BP50: =IF(休暇希望!AB45="","",DATE($M$2,$P$2,休暇希望!AB45)) ->  | BQ50: =IF(休暇希望!AC45="","",DATE($M$2,$P$2,休暇希望!AC45)) ->  | BR50: =IF(休暇希望!AD45="","",DATE($M$2,$P$2,休暇希望!AD45)) ->  | BS50: =IF(休暇希望!AE45="","",DATE($M$2,$P$2,休暇希望!AE45)) ->  | BT50: =IF(休暇希望!AF45="","",DATE($M$2,$P$2,休暇希望!AF45)) ->  | BU50: =IF(休暇希望!AG45="","",DATE($M$2,$P$2,休暇希望!AG45)) ->  | BV50: =IF(休暇希望!AH45="","",DATE($M$2,$P$2,休暇希望!AH45)) ->  | BW50: =IF(休暇希望!AI45="","",DATE($M$2,$P$2,休暇希望!AI45)) -> 
A51: 4 | B51: 21 | C51: 84 | I51: E | J51: 4 | K51: 43 | L51: =NETWORKDAYS($O$3,$O$4,各種設定!$A$4:$A$22)-COUNTIF(M51:AQ51,">0") -> 1900-01-21 | AS51: =IF(休暇希望!E46="","",DATE($M$2,$P$2,休暇希望!E46)) ->  | AT51: =IF(休暇希望!F46="","",DATE($M$2,$P$2,休暇希望!F46)) ->  | AU51: =IF(休暇希望!G46="","",DATE($M$2,$P$2,休暇希望!G46)) ->  | AV51: =IF(休暇希望!H46="","",DATE($M$2,$P$2,休暇希望!H46)) ->  | AW51: =IF(休暇希望!I46="","",DATE($M$2,$P$2,休暇希望!I46)) ->  | AX51: =IF(休暇希望!J46="","",DATE($M$2,$P$2,休暇希望!J46)) ->  | AY51: =IF(休暇希望!K46="","",DATE($M$2,$P$2,休暇希望!K46)) ->  | AZ51: =IF(休暇希望!L46="","",DATE($M$2,$P$2,休暇希望!L46)) ->  | BA51: =IF(休暇希望!M46="","",DATE($M$2,$P$2,休暇希望!M46)) ->  | BB51: =IF(休暇希望!N46="","",DATE($M$2,$P$2,休暇希望!N46)) ->  | BC51: =IF(休暇希望!O46="","",DATE($M$2,$P$2,休暇希望!O46)) ->  | BD51: =IF(休暇希望!P46="","",DATE($M$2,$P$2,休暇希望!P46)) ->  | BE51: =IF(休暇希望!Q46="","",DATE($M$2,$P$2,休暇希望!Q46)) ->  | BF51: =IF(休暇希望!R46="","",DATE($M$2,$P$2,休暇希望!R46)) ->  | BG51: =IF(休暇希望!S46="","",DATE($M$2,$P$2,休暇希望!S46)) ->  | BH51: =IF(休暇希望!T46="","",DATE($M$2,$P$2,休暇希望!T46)) ->  | BI51: =IF(休暇希望!U46="","",DATE($M$2,$P$2,休暇希望!U46)) ->  | BJ51: =IF(休暇希望!V46="","",DATE($M$2,$P$2,休暇希望!V46)) ->  | BK51: =IF(休暇希望!W46="","",DATE($M$2,$P$2,休暇希望!W46)) ->  | BL51: =IF(休暇希望!X46="","",DATE($M$2,$P$2,休暇希望!X46)) ->  | BM51: =IF(休暇希望!Y46="","",DATE($M$2,$P$2,休暇希望!Y46)) ->  | BN51: =IF(休暇希望!Z46="","",DATE($M$2,$P$2,休暇希望!Z46)) ->  | BO51: =IF(休暇希望!AA46="","",DATE($M$2,$P$2,休暇希望!AA46)) ->  | BP51: =IF(休暇希望!AB46="","",DATE($M$2,$P$2,休暇希望!AB46)) ->  | BQ51: =IF(休暇希望!AC46="","",DATE($M$2,$P$2,休暇希望!AC46)) ->  | BR51: =IF(休暇希望!AD46="","",DATE($M$2,$P$2,休暇希望!AD46)) ->  | BS51: =IF(休暇希望!AE46="","",DATE($M$2,$P$2,休暇希望!AE46)) ->  | BT51: =IF(休暇希望!AF46="","",DATE($M$2,$P$2,休暇希望!AF46)) ->  | BU51: =IF(休暇希望!AG46="","",DATE($M$2,$P$2,休暇希望!AG46)) ->  | BV51: =IF(休暇希望!AH46="","",DATE($M$2,$P$2,休暇希望!AH46)) ->  | BW51: =IF(休暇希望!AI46="","",DATE($M$2,$P$2,休暇希望!AI46)) -> 
A52: 4 | B52: 21 | C52: 84 | I52: E | J52: 4 | K52: 44 | L52: =NETWORKDAYS($O$3,$O$4,各種設定!$A$4:$A$22)-COUNTIF(M52:AQ52,">0") -> 1900-01-21 | R52: =IF(R$7="","",IF(COUNTIF($AS52:$BW52,R$7)>0,$J52,"")) ->  | AB52: =IF(AB$7="","",IF(COUNTIF($AS52:$BW52,AB$7)>0,$J52,"")) ->  | AS52: =IF(休暇希望!E47="","",DATE($M$2,$P$2,休暇希望!E47)) ->  | AT52: =IF(休暇希望!F47="","",DATE($M$2,$P$2,休暇希望!F47)) ->  | AU52: =IF(休暇希望!G47="","",DATE($M$2,$P$2,休暇希望!G47)) ->  | AV52: =IF(休暇希望!H47="","",DATE($M$2,$P$2,休暇希望!H47)) ->  | AW52: =IF(休暇希望!I47="","",DATE($M$2,$P$2,休暇希望!I47)) ->  | AX52: =IF(休暇希望!J47="","",DATE($M$2,$P$2,休暇希望!J47)) ->  | AY52: =IF(休暇希望!K47="","",DATE($M$2,$P$2,休暇希望!K47)) ->  | AZ52: =IF(休暇希望!L47="","",DATE($M$2,$P$2,休暇希望!L47)) ->  | BA52: =IF(休暇希望!M47="","",DATE($M$2,$P$2,休暇希望!M47)) ->  | BB52: =IF(休暇希望!N47="","",DATE($M$2,$P$2,休暇希望!N47)) ->  | BC52: =IF(休暇希望!O47="","",DATE($M$2,$P$2,休暇希望!O47)) ->  | BD52: =IF(休暇希望!P47="","",DATE($M$2,$P$2,休暇希望!P47)) ->  | BE52: =IF(休暇希望!Q47="","",DATE($M$2,$P$2,休暇希望!Q47)) ->  | BF52: =IF(休暇希望!R47="","",DATE($M$2,$P$2,休暇希望!R47)) ->  | BG52: =IF(休暇希望!S47="","",DATE($M$2,$P$2,休暇希望!S47)) ->  | BH52: =IF(休暇希望!T47="","",DATE($M$2,$P$2,休暇希望!T47)) ->  | BI52: =IF(休暇希望!U47="","",DATE($M$2,$P$2,休暇希望!U47)) ->  | BJ52: =IF(休暇希望!V47="","",DATE($M$2,$P$2,休暇希望!V47)) ->  | BK52: =IF(休暇希望!W47="","",DATE($M$2,$P$2,休暇希望!W47)) ->  | BL52: =IF(休暇希望!X47="","",DATE($M$2,$P$2,休暇希望!X47)) ->  | BM52: =IF(休暇希望!Y47="","",DATE($M$2,$P$2,休暇希望!Y47)) ->  | BN52: =IF(休暇希望!Z47="","",DATE($M$2,$P$2,休暇希望!Z47)) ->  | BO52: =IF(休暇希望!AA47="","",DATE($M$2,$P$2,休暇希望!AA47)) ->  | BP52: =IF(休暇希望!AB47="","",DATE($M$2,$P$2,休暇希望!AB47)) ->  | BQ52: =IF(休暇希望!AC47="","",DATE($M$2,$P$2,休暇希望!AC47)) ->  | BR52: =IF(休暇希望!AD47="","",DATE($M$2,$P$2,休暇希望!AD47)) ->  | BS52: =IF(休暇希望!AE47="","",DATE($M$2,$P$2,休暇希望!AE47)) ->  | BT52: =IF(休暇希望!AF47="","",DATE($M$2,$P$2,休暇希望!AF47)) ->  | BU52: =IF(休暇希望!AG47="","",DATE($M$2,$P$2,休暇希望!AG47)) ->  | BV52: =IF(休暇希望!AH47="","",DATE($M$2,$P$2,休暇希望!AH47)) ->  | BW52: =IF(休暇希望!AI47="","",DATE($M$2,$P$2,休暇希望!AI47)) -> 
A53: 4 | B53: 21 | C53: 84 | I53: E | J53: 4 | K53: 45 | L53: =NETWORKDAYS($O$3,$O$4,各種設定!$A$4:$A$22)-COUNTIF(M53:AQ53,">0") -> 1900-01-21 | AS53: =IF(休暇希望!E48="","",DATE($M$2,$P$2,休暇希望!E48)) ->  | AT53: =IF(休暇希望!F48="","",DATE($M$2,$P$2,休暇希望!F48)) ->  | AU53: =IF(休暇希望!G48="","",DATE($M$2,$P$2,休暇希望!G48)) ->  | AV53: =IF(休暇希望!H48="","",DATE($M$2,$P$2,休暇希望!H48)) ->  | AW53: =IF(休暇希望!I48="","",DATE($M$2,$P$2,休暇希望!I48)) ->  | AX53: =IF(休暇希望!J48="","",DATE($M$2,$P$2,休暇希望!J48)) ->  | AY53: =IF(休暇希望!K48="","",DATE($M$2,$P$2,休暇希望!K48)) ->  | AZ53: =IF(休暇希望!L48="","",DATE($M$2,$P$2,休暇希望!L48)) ->  | BA53: =IF(休暇希望!M48="","",DATE($M$2,$P$2,休暇希望!M48)) ->  | BB53: =IF(休暇希望!N48="","",DATE($M$2,$P$2,休暇希望!N48)) ->  | BC53: =IF(休暇希望!O48="","",DATE($M$2,$P$2,休暇希望!O48)) ->  | BD53: =IF(休暇希望!P48="","",DATE($M$2,$P$2,休暇希望!P48)) ->  | BE53: =IF(休暇希望!Q48="","",DATE($M$2,$P$2,休暇希望!Q48)) ->  | BF53: =IF(休暇希望!R48="","",DATE($M$2,$P$2,休暇希望!R48)) ->  | BG53: =IF(休暇希望!S48="","",DATE($M$2,$P$2,休暇希望!S48)) ->  | BH53: =IF(休暇希望!T48="","",DATE($M$2,$P$2,休暇希望!T48)) ->  | BI53: =IF(休暇希望!U48="","",DATE($M$2,$P$2,休暇希望!U48)) ->  | BJ53: =IF(休暇希望!V48="","",DATE($M$2,$P$2,休暇希望!V48)) ->  | BK53: =IF(休暇希望!W48="","",DATE($M$2,$P$2,休暇希望!W48)) ->  | BL53: =IF(休暇希望!X48="","",DATE($M$2,$P$2,休暇希望!X48)) ->  | BM53: =IF(休暇希望!Y48="","",DATE($M$2,$P$2,休暇希望!Y48)) ->  | BN53: =IF(休暇希望!Z48="","",DATE($M$2,$P$2,休暇希望!Z48)) ->  | BO53: =IF(休暇希望!AA48="","",DATE($M$2,$P$2,休暇希望!AA48)) ->  | BP53: =IF(休暇希望!AB48="","",DATE($M$2,$P$2,休暇希望!AB48)) ->  | BQ53: =IF(休暇希望!AC48="","",DATE($M$2,$P$2,休暇希望!AC48)) ->  | BR53: =IF(休暇希望!AD48="","",DATE($M$2,$P$2,休暇希望!AD48)) ->  | BS53: =IF(休暇希望!AE48="","",DATE($M$2,$P$2,休暇希望!AE48)) ->  | BT53: =IF(休暇希望!AF48="","",DATE($M$2,$P$2,休暇希望!AF48)) ->  | BU53: =IF(休暇希望!AG48="","",DATE($M$2,$P$2,休暇希望!AG48)) ->  | BV53: =IF(休暇希望!AH48="","",DATE($M$2,$P$2,休暇希望!AH48)) ->  | BW53: =IF(休暇希望!AI48="","",DATE($M$2,$P$2,休暇希望!AI48)) -> 
A54: 4 | B54: 21 | C54: 84 | I54: E | J54: 4 | K54: 46 | L54: =NETWORKDAYS($O$3,$O$4,各種設定!$A$4:$A$22)-COUNTIF(M54:AQ54,">0") -> 1900-01-21 | M54: =IF(M$7="","",IF(COUNTIF($AS54:$BW54,M$7)>0,$J54,"")) ->  | W54: =IF(W$7="","",IF(COUNTIF($AS54:$BW54,W$7)>0,$J54,"")) ->  | AG54: =IF(AG$7="","",IF(COUNTIF($AS54:$BW54,AG$7)>0,$J54,"")) ->  | AS54: =IF(休暇希望!E49="","",DATE($M$2,$P$2,休暇希望!E49)) ->  | AT54: =IF(休暇希望!F49="","",DATE($M$2,$P$2,休暇希望!F49)) ->  | AU54: =IF(休暇希望!G49="","",DATE($M$2,$P$2,休暇希望!G49)) ->  | AV54: =IF(休暇希望!H49="","",DATE($M$2,$P$2,休暇希望!H49)) ->  | AW54: =IF(休暇希望!I49="","",DATE($M$2,$P$2,休暇希望!I49)) ->  | AX54: =IF(休暇希望!J49="","",DATE($M$2,$P$2,休暇希望!J49)) ->  | AY54: =IF(休暇希望!K49="","",DATE($M$2,$P$2,休暇希望!K49)) ->  | AZ54: =IF(休暇希望!L49="","",DATE($M$2,$P$2,休暇希望!L49)) ->  | BA54: =IF(休暇希望!M49="","",DATE($M$2,$P$2,休暇希望!M49)) ->  | BB54: =IF(休暇希望!N49="","",DATE($M$2,$P$2,休暇希望!N49)) ->  | BC54: =IF(休暇希望!O49="","",DATE($M$2,$P$2,休暇希望!O49)) ->  | BD54: =IF(休暇希望!P49="","",DATE($M$2,$P$2,休暇希望!P49)) ->  | BE54: =IF(休暇希望!Q49="","",DATE($M$2,$P$2,休暇希望!Q49)) ->  | BF54: =IF(休暇希望!R49="","",DATE($M$2,$P$2,休暇希望!R49)) ->  | BG54: =IF(休暇希望!S49="","",DATE($M$2,$P$2,休暇希望!S49)) ->  | BH54: =IF(休暇希望!T49="","",DATE($M$2,$P$2,休暇希望!T49)) ->  | BI54: =IF(休暇希望!U49="","",DATE($M$2,$P$2,休暇希望!U49)) ->  | BJ54: =IF(休暇希望!V49="","",DATE($M$2,$P$2,休暇希望!V49)) ->  | BK54: =IF(休暇希望!W49="","",DATE($M$2,$P$2,休暇希望!W49)) ->  | BL54: =IF(休暇希望!X49="","",DATE($M$2,$P$2,休暇希望!X49)) ->  | BM54: =IF(休暇希望!Y49="","",DATE($M$2,$P$2,休暇希望!Y49)) ->  | BN54: =IF(休暇希望!Z49="","",DATE($M$2,$P$2,休暇希望!Z49)) ->  | BO54: =IF(休暇希望!AA49="","",DATE($M$2,$P$2,休暇希望!AA49)) ->  | BP54: =IF(休暇希望!AB49="","",DATE($M$2,$P$2,休暇希望!AB49)) ->  | BQ54: =IF(休暇希望!AC49="","",DATE($M$2,$P$2,休暇希望!AC49)) ->  | BR54: =IF(休暇希望!AD49="","",DATE($M$2,$P$2,休暇希望!AD49)) ->  | BS54: =IF(休暇希望!AE49="","",DATE($M$2,$P$2,休暇希望!AE49)) ->  | BT54: =IF(休暇希望!AF49="","",DATE($M$2,$P$2,休暇希望!AF49)) ->  | BU54: =IF(休暇希望!AG49="","",DATE($M$2,$P$2,休暇希望!AG49)) ->  | BV54: =IF(休暇希望!AH49="","",DATE($M$2,$P$2,休暇希望!AH49)) ->  | BW54: =IF(休暇希望!AI49="","",DATE($M$2,$P$2,休暇希望!AI49)) -> 
A55: 4 | B55: 21 | C55: 84 | I55: E | J55: 4 | K55: 47 | L55: =NETWORKDAYS($O$3,$O$4,各種設定!$A$4:$A$22)-COUNTIF(M55:AQ55,">0") -> 1900-01-21 | AS55: =IF(休暇希望!E50="","",DATE($M$2,$P$2,休暇希望!E50)) ->  | AT55: =IF(休暇希望!F50="","",DATE($M$2,$P$2,休暇希望!F50)) ->  | AU55: =IF(休暇希望!G50="","",DATE($M$2,$P$2,休暇希望!G50)) ->  | AV55: =IF(休暇希望!H50="","",DATE($M$2,$P$2,休暇希望!H50)) ->  | AW55: =IF(休暇希望!I50="","",DATE($M$2,$P$2,休暇希望!I50)) ->  | AX55: =IF(休暇希望!J50="","",DATE($M$2,$P$2,休暇希望!J50)) ->  | AY55: =IF(休暇希望!K50="","",DATE($M$2,$P$2,休暇希望!K50)) ->  | AZ55: =IF(休暇希望!L50="","",DATE($M$2,$P$2,休暇希望!L50)) ->  | BA55: =IF(休暇希望!M50="","",DATE($M$2,$P$2,休暇希望!M50)) ->  | BB55: =IF(休暇希望!N50="","",DATE($M$2,$P$2,休暇希望!N50)) ->  | BC55: =IF(休暇希望!O50="","",DATE($M$2,$P$2,休暇希望!O50)) ->  | BD55: =IF(休暇希望!P50="","",DATE($M$2,$P$2,休暇希望!P50)) ->  | BE55: =IF(休暇希望!Q50="","",DATE($M$2,$P$2,休暇希望!Q50)) ->  | BF55: =IF(休暇希望!R50="","",DATE($M$2,$P$2,休暇希望!R50)) ->  | BG55: =IF(休暇希望!S50="","",DATE($M$2,$P$2,休暇希望!S50)) ->  | BH55: =IF(休暇希望!T50="","",DATE($M$2,$P$2,休暇希望!T50)) ->  | BI55: =IF(休暇希望!U50="","",DATE($M$2,$P$2,休暇希望!U50)) ->  | BJ55: =IF(休暇希望!V50="","",DATE($M$2,$P$2,休暇希望!V50)) ->  | BK55: =IF(休暇希望!W50="","",DATE($M$2,$P$2,休暇希望!W50)) ->  | BL55: =IF(休暇希望!X50="","",DATE($M$2,$P$2,休暇希望!X50)) ->  | BM55: =IF(休暇希望!Y50="","",DATE($M$2,$P$2,休暇希望!Y50)) ->  | BN55: =IF(休暇希望!Z50="","",DATE($M$2,$P$2,休暇希望!Z50)) ->  | BO55: =IF(休暇希望!AA50="","",DATE($M$2,$P$2,休暇希望!AA50)) ->  | BP55: =IF(休暇希望!AB50="","",DATE($M$2,$P$2,休暇希望!AB50)) ->  | BQ55: =IF(休暇希望!AC50="","",DATE($M$2,$P$2,休暇希望!AC50)) ->  | BR55: =IF(休暇希望!AD50="","",DATE($M$2,$P$2,休暇希望!AD50)) ->  | BS55: =IF(休暇希望!AE50="","",DATE($M$2,$P$2,休暇希望!AE50)) ->  | BT55: =IF(休暇希望!AF50="","",DATE($M$2,$P$2,休暇希望!AF50)) ->  | BU55: =IF(休暇希望!AG50="","",DATE($M$2,$P$2,休暇希望!AG50)) ->  | BV55: =IF(休暇希望!AH50="","",DATE($M$2,$P$2,休暇希望!AH50)) ->  | BW55: =IF(休暇希望!AI50="","",DATE($M$2,$P$2,休暇希望!AI50)) -> 
A56: 4 | B56: 21 | C56: 84 | I56: E | J56: 4 | K56: 48 | L56: =NETWORKDAYS($O$3,$O$4,各種設定!$A$4:$A$22)-COUNTIF(M56:AQ56,">0") -> 1900-01-21 | AS56: =IF(休暇希望!E51="","",DATE($M$2,$P$2,休暇希望!E51)) ->  | AT56: =IF(休暇希望!F51="","",DATE($M$2,$P$2,休暇希望!F51)) ->  | AU56: =IF(休暇希望!G51="","",DATE($M$2,$P$2,休暇希望!G51)) ->  | AV56: =IF(休暇希望!H51="","",DATE($M$2,$P$2,休暇希望!H51)) ->  | AW56: =IF(休暇希望!I51="","",DATE($M$2,$P$2,休暇希望!I51)) ->  | AX56: =IF(休暇希望!J51="","",DATE($M$2,$P$2,休暇希望!J51)) ->  | AY56: =IF(休暇希望!K51="","",DATE($M$2,$P$2,休暇希望!K51)) ->  | AZ56: =IF(休暇希望!L51="","",DATE($M$2,$P$2,休暇希望!L51)) ->  | BA56: =IF(休暇希望!M51="","",DATE($M$2,$P$2,休暇希望!M51)) ->  | BB56: =IF(休暇希望!N51="","",DATE($M$2,$P$2,休暇希望!N51)) ->  | BC56: =IF(休暇希望!O51="","",DATE($M$2,$P$2,休暇希望!O51)) ->  | BD56: =IF(休暇希望!P51="","",DATE($M$2,$P$2,休暇希望!P51)) ->  | BE56: =IF(休暇希望!Q51="","",DATE($M$2,$P$2,休暇希望!Q51)) ->  | BF56: =IF(休暇希望!R51="","",DATE($M$2,$P$2,休暇希望!R51)) ->  | BG56: =IF(休暇希望!S51="","",DATE($M$2,$P$2,休暇希望!S51)) ->  | BH56: =IF(休暇希望!T51="","",DATE($M$2,$P$2,休暇希望!T51)) ->  | BI56: =IF(休暇希望!U51="","",DATE($M$2,$P$2,休暇希望!U51)) ->  | BJ56: =IF(休暇希望!V51="","",DATE($M$2,$P$2,休暇希望!V51)) ->  | BK56: =IF(休暇希望!W51="","",DATE($M$2,$P$2,休暇希望!W51)) ->  | BL56: =IF(休暇希望!X51="","",DATE($M$2,$P$2,休暇希望!X51)) ->  | BM56: =IF(休暇希望!Y51="","",DATE($M$2,$P$2,休暇希望!Y51)) ->  | BN56: =IF(休暇希望!Z51="","",DATE($M$2,$P$2,休暇希望!Z51)) ->  | BO56: =IF(休暇希望!AA51="","",DATE($M$2,$P$2,休暇希望!AA51)) ->  | BP56: =IF(休暇希望!AB51="","",DATE($M$2,$P$2,休暇希望!AB51)) ->  | BQ56: =IF(休暇希望!AC51="","",DATE($M$2,$P$2,休暇希望!AC51)) ->  | BR56: =IF(休暇希望!AD51="","",DATE($M$2,$P$2,休暇希望!AD51)) ->  | BS56: =IF(休暇希望!AE51="","",DATE($M$2,$P$2,休暇希望!AE51)) ->  | BT56: =IF(休暇希望!AF51="","",DATE($M$2,$P$2,休暇希望!AF51)) ->  | BU56: =IF(休暇希望!AG51="","",DATE($M$2,$P$2,休暇希望!AG51)) ->  | BV56: =IF(休暇希望!AH51="","",DATE($M$2,$P$2,休暇希望!AH51)) ->  | BW56: =IF(休暇希望!AI51="","",DATE($M$2,$P$2,休暇希望!AI51)) -> 
A57: 4 | B57: 21 | C57: 84 | I57: E | J57: 4 | K57: 49 | L57: =NETWORKDAYS($O$3,$O$4,各種設定!$A$4:$A$22)-COUNTIF(M57:AQ57,">0") -> 1900-01-21 | AS57: =IF(休暇希望!E52="","",DATE($M$2,$P$2,休暇希望!E52)) ->  | AT57: =IF(休暇希望!F52="","",DATE($M$2,$P$2,休暇希望!F52)) ->  | AU57: =IF(休暇希望!G52="","",DATE($M$2,$P$2,休暇希望!G52)) ->  | AV57: =IF(休暇希望!H52="","",DATE($M$2,$P$2,休暇希望!H52)) ->  | AW57: =IF(休暇希望!I52="","",DATE($M$2,$P$2,休暇希望!I52)) ->  | AX57: =IF(休暇希望!J52="","",DATE($M$2,$P$2,休暇希望!J52)) ->  | AY57: =IF(休暇希望!K52="","",DATE($M$2,$P$2,休暇希望!K52)) ->  | AZ57: =IF(休暇希望!L52="","",DATE($M$2,$P$2,休暇希望!L52)) ->  | BA57: =IF(休暇希望!M52="","",DATE($M$2,$P$2,休暇希望!M52)) ->  | BB57: =IF(休暇希望!N52="","",DATE($M$2,$P$2,休暇希望!N52)) ->  | BC57: =IF(休暇希望!O52="","",DATE($M$2,$P$2,休暇希望!O52)) ->  | BD57: =IF(休暇希望!P52="","",DATE($M$2,$P$2,休暇希望!P52)) ->  | BE57: =IF(休暇希望!Q52="","",DATE($M$2,$P$2,休暇希望!Q52)) ->  | BF57: =IF(休暇希望!R52="","",DATE($M$2,$P$2,休暇希望!R52)) ->  | BG57: =IF(休暇希望!S52="","",DATE($M$2,$P$2,休暇希望!S52)) ->  | BH57: =IF(休暇希望!T52="","",DATE($M$2,$P$2,休暇希望!T52)) ->  | BI57: =IF(休暇希望!U52="","",DATE($M$2,$P$2,休暇希望!U52)) ->  | BJ57: =IF(休暇希望!V52="","",DATE($M$2,$P$2,休暇希望!V52)) ->  | BK57: =IF(休暇希望!W52="","",DATE($M$2,$P$2,休暇希望!W52)) ->  | BL57: =IF(休暇希望!X52="","",DATE($M$2,$P$2,休暇希望!X52)) ->  | BM57: =IF(休暇希望!Y52="","",DATE($M$2,$P$2,休暇希望!Y52)) ->  | BN57: =IF(休暇希望!Z52="","",DATE($M$2,$P$2,休暇希望!Z52)) ->  | BO57: =IF(休暇希望!AA52="","",DATE($M$2,$P$2,休暇希望!AA52)) ->  | BP57: =IF(休暇希望!AB52="","",DATE($M$2,$P$2,休暇希望!AB52)) ->  | BQ57: =IF(休暇希望!AC52="","",DATE($M$2,$P$2,休暇希望!AC52)) ->  | BR57: =IF(休暇希望!AD52="","",DATE($M$2,$P$2,休暇希望!AD52)) ->  | BS57: =IF(休暇希望!AE52="","",DATE($M$2,$P$2,休暇希望!AE52)) ->  | BT57: =IF(休暇希望!AF52="","",DATE($M$2,$P$2,休暇希望!AF52)) ->  | BU57: =IF(休暇希望!AG52="","",DATE($M$2,$P$2,休暇希望!AG52)) ->  | BV57: =IF(休暇希望!AH52="","",DATE($M$2,$P$2,休暇希望!AH52)) ->  | BW57: =IF(休暇希望!AI52="","",DATE($M$2,$P$2,休暇希望!AI52)) -> 
A58: 4 | B58: 21 | C58: 84 | I58: E | J58: 4 | K58: 50 | L58: =NETWORKDAYS($O$3,$O$4,各種設定!$A$4:$A$22)-COUNTIF(M58:AQ58,">0") -> 1900-01-21 | AS58: =IF(休暇希望!E53="","",DATE($M$2,$P$2,休暇希望!E53)) ->  | AT58: =IF(休暇希望!F53="","",DATE($M$2,$P$2,休暇希望!F53)) ->  | AU58: =IF(休暇希望!G53="","",DATE($M$2,$P$2,休暇希望!G53)) ->  | AV58: =IF(休暇希望!H53="","",DATE($M$2,$P$2,休暇希望!H53)) ->  | AW58: =IF(休暇希望!I53="","",DATE($M$2,$P$2,休暇希望!I53)) ->  | AX58: =IF(休暇希望!J53="","",DATE($M$2,$P$2,休暇希望!J53)) ->  | AY58: =IF(休暇希望!K53="","",DATE($M$2,$P$2,休暇希望!K53)) ->  | AZ58: =IF(休暇希望!L53="","",DATE($M$2,$P$2,休暇希望!L53)) ->  | BA58: =IF(休暇希望!M53="","",DATE($M$2,$P$2,休暇希望!M53)) ->  | BB58: =IF(休暇希望!N53="","",DATE($M$2,$P$2,休暇希望!N53)) ->  | BC58: =IF(休暇希望!O53="","",DATE($M$2,$P$2,休暇希望!O53)) ->  | BD58: =IF(休暇希望!P53="","",DATE($M$2,$P$2,休暇希望!P53)) ->  | BE58: =IF(休暇希望!Q53="","",DATE($M$2,$P$2,休暇希望!Q53)) ->  | BF58: =IF(休暇希望!R53="","",DATE($M$2,$P$2,休暇希望!R53)) ->  | BG58: =IF(休暇希望!S53="","",DATE($M$2,$P$2,休暇希望!S53)) ->  | BH58: =IF(休暇希望!T53="","",DATE($M$2,$P$2,休暇希望!T53)) ->  | BI58: =IF(休暇希望!U53="","",DATE($M$2,$P$2,休暇希望!U53)) ->  | BJ58: =IF(休暇希望!V53="","",DATE($M$2,$P$2,休暇希望!V53)) ->  | BK58: =IF(休暇希望!W53="","",DATE($M$2,$P$2,休暇希望!W53)) ->  | BL58: =IF(休暇希望!X53="","",DATE($M$2,$P$2,休暇希望!X53)) ->  | BM58: =IF(休暇希望!Y53="","",DATE($M$2,$P$2,休暇希望!Y53)) ->  | BN58: =IF(休暇希望!Z53="","",DATE($M$2,$P$2,休暇希望!Z53)) ->  | BO58: =IF(休暇希望!AA53="","",DATE($M$2,$P$2,休暇希望!AA53)) ->  | BP58: =IF(休暇希望!AB53="","",DATE($M$2,$P$2,休暇希望!AB53)) ->  | BQ58: =IF(休暇希望!AC53="","",DATE($M$2,$P$2,休暇希望!AC53)) ->  | BR58: =IF(休暇希望!AD53="","",DATE($M$2,$P$2,休暇希望!AD53)) ->  | BS58: =IF(休暇希望!AE53="","",DATE($M$2,$P$2,休暇希望!AE53)) ->  | BT58: =IF(休暇希望!AF53="","",DATE($M$2,$P$2,休暇希望!AF53)) ->  | BU58: =IF(休暇希望!AG53="","",DATE($M$2,$P$2,休暇希望!AG53)) ->  | BV58: =IF(休暇希望!AH53="","",DATE($M$2,$P$2,休暇希望!AH53)) ->  | BW58: =IF(休暇希望!AI53="","",DATE($M$2,$P$2,休暇希望!AI53)) -> 
I59: A | L59: =$X$3 -> 6 | M59: =IF(COUNTA(M$9:M$58)=0,"",COUNTIF(M$9:M$58,$L59)) -> 0 | N59: 2 | O59: 2 | P59: 0 | Q59: 0 | R59: 2 | S59: 2 | T59: 2 | U59: 2 | V59: 2 | W59: =IF(COUNTA(W$9:W$58)=0,"",COUNTIF(W$9:W$58,$L59)) -> 0 | X59: 0 | Y59: 0 | Z59: 2 | AA59: 2 | AB59: 2 | AC59: 2 | AD59: 0 | AE59: 0 | AF59: 2 | AG59: =IF(COUNTA(AG$9:AG$58)=0,"",COUNTIF(AG$9:AG$58,$L59)) -> 2 | AH59: 2 | AI59: 2 | AJ59: 2 | AK59: 0 | AL59: 0 | AM59: 2 | AN59: 2 | AO59: 2 | AP59: 2 | AQ59: 2
I60: B | L60: =$Y$3 -> 7 | M60: 0 | N60: 0 | O60: 0 | P60: 0 | Q60: 0 | R60: 0 | S60: 0 | T60: 0 | U60: 0 | V60: 0 | W60: 0 | X60: 0 | Y60: 0 | Z60: 0 | AA60: 0 | AB60: 0 | AC60: 0 | AD60: 0 | AE60: 0 | AF60: 0 | AG60: 0 | AH60: 0 | AI60: 0 | AJ60: 0 | AK60: 0 | AL60: 0 | AM60: 0 | AN60: 0 | AO60: 0 | AP60: 0 | AQ60: 0
I61: C | L61: =$Z$3 -> 7.5 | M61: 0 | N61: 0 | O61: 0 | P61: 0 | Q61: 0 | R61: 0 | S61: 0 | T61: 0 | U61: 0 | V61: 0 | W61: 0 | X61: 0 | Y61: 0 | Z61: 0 | AA61: 0 | AB61: 0 | AC61: 0 | AD61: 0 | AE61: 0 | AF61: 0 | AG61: 0 | AH61: 0 | AI61: 0 | AJ61: 0 | AK61: 0 | AL61: 0 | AM61: 0 | AN61: 0 | AO61: 0 | AP61: 0 | AQ61: 0
I62: D | L62: =$AA$3 -> 5.25 | M62: 0 | N62: 0 | O62: 0 | P62: 0 | Q62: 0 | R62: 0 | S62: 0 | T62: 0 | U62: 0 | V62: 0 | W62: 0 | X62: 0 | Y62: 0 | Z62: 0 | AA62: 0 | AB62: 0 | AC62: 0 | AD62: 0 | AE62: 0 | AF62: 0 | AG62: 0 | AH62: 0 | AI62: 0 | AJ62: 0 | AK62: 0 | AL62: 0 | AM62: 0 | AN62: 0 | AO62: 0 | AP62: 0 | AQ62: 0
I63: E | L63: =$AB$3 -> 4 | M63: 0 | N63: 0 | O63: 0 | P63: 0 | Q63: 0 | R63: 0 | S63: 0 | T63: 0 | U63: 0 | V63: 0 | W63: 0 | X63: 0 | Y63: 0 | Z63: 0 | AA63: 0 | AB63: 0 | AC63: 0 | AD63: 0 | AE63: 0 | AF63: 0 | AG63: 0 | AH63: 0 | AI63: 0 | AJ63: 0 | AK63: 0 | AL63: 0 | AM63: 0 | AN63: 0 | AO63: 0 | AP63: 0 | AQ63: 0
I64: 早退・遅刻等
I65: 人数 | K65: 総人時 | L65: 休暇人時 | M65: =($L$59*M59)+($L$60*M60)+($L$61*M61)+($L$62*M62)+($L$63*M63) -> 0 | N65: =($L$59*N59)+($L$60*N60)+($L$61*N61)+($L$62*N62)+($L$63*N63) -> 12 | O65: =($L$59*O59)+($L$60*O60)+($L$61*O61)+($L$62*O62)+($L$63*O63) -> 12 | P65: 0 | Q65: =($L$59*Q59)+($L$60*Q60)+($L$61*Q61)+($L$62*Q62)+($L$63*Q63) -> 0 | R65: 12 | S65: 12 | T65: 12 | U65: 12 | V65: 12 | W65: 0 | X65: 0 | Y65: 0 | Z65: 12 | AA65: 12 | AB65: 12 | AC65: 12 | AD65: 0 | AE65: 0 | AF65: 12 | AG65: 12 | AH65: 12 | AI65: 12 | AJ65: 12 | AK65: 0 | AL65: 0 | AM65: 12 | AN65: 12 | AO65: 12 | AP65: 12 | AQ65: 12
I66: =COUNTA(K9:K58) -> 50 | K66: =SUM(J9:J58) -> 248.75 | L66: 労働人時 | M66: =$K$66-M65-M64 -> 248.75 | N66: =$K$66-N65-N64 -> 236.75 | O66: =$K$66-O65-O64 -> 236.75 | P66: 248.75 | Q66: 248.75 | R66: 236.75 | S66: 236.75 | T66: 236.75 | U66: 236.75 | V66: 236.75 | W66: 248.75 | X66: 248.75 | Y66: 248.75 | Z66: 236.75 | AA66: 236.75 | AB66: 236.75 | AC66: 236.75 | AD66: 248.75 | AE66: 248.75 | AF66: 236.75 | AG66: 236.75 | AH66: 236.75 | AI66: 236.75 | AJ66: 236.75 | AK66: 248.75 | AL66: 248.75 | AM66: 236.75 | AN66: 236.75 | AO66: 236.75 | AP66: 236.75 | AQ66: 236.75
L67: 休暇人数 | M67: =SUM(M59:M63) -> 0 | N67: =SUM(N59:N63) -> 2 | O67: 2 | P67: =SUM(P59:P63) -> 0 | Q67: 0 | R67: 2 | S67: 2 | T67: 2 | U67: 2 | V67: 2 | W67: 0 | X67: 0 | Y67: 0 | Z67: 2 | AA67: 2 | AB67: 2 | AC67: 2 | AD67: 0 | AE67: 0 | AF67: 2 | AG67: 2 | AH67: 2 | AI67: 2 | AJ67: 2 | AK67: 0 | AL67: 0 | AM67: 2 | AN67: 2 | AO67: 2 | AP67: 2 | AQ67: 2

Sheet 作業計画
D1: 2025 | F1: 年 | G1: 1 | H1: 月 | AP1: 月 | AQ1: 100 | AR1: 月 | AS1: 200
E2: 月初 | F2: =DATE(D1,G1,1) -> 2025-01-01 | AP2: 火 | AQ2: 150 | AR2: 火 | AS2: 300
E3: 月末 | F3: =EOMONTH(F2,0) -> 2025-01-31 | AP3: 水 | AQ3: 200 | AR3: 水 | AS3: 400
AP4: 木 | AQ4: 250 | AR4: 木 | AS4: 500
A5: 日付 | D5: 出勤人時 | E5: 必要人時 | F5: 過不足人時 | G5: ★ | I5: ★★ | K5: ★★★ | M5: ★★★★ | O5: その他 | AP5: 金 | AQ5: 300 | AR5: 金 | AS5: 600
A6: 日 | B6: 曜日 | G6: 数量 | H6: 人時 | I6: 数量 | J6: 人時 | K6: 数量 | L6: 人時 | M6: 数量 | N6: 人時 | O6: ① | P6: 人時 | Q6: ② | R6: 人時 | S6: ③ | T6: 人時 | U6: ④ | V6: 人時 | W6: ⑤ | X6: 人時 | Y6: ⑥ | Z6: 人時 | AA6: ⑦ | AB6: 人時 | AC6: ⑧ | AD6: 人時 | AE6: ⑨ | AF6: 人時 | AG6: ⑩ | AH6: 人時 | AI6: 特別業務
A7: =F2 -> 2025-01-01 | B7: =A7 -> 45658 | C7: =TEXT($A7,"aaa") -> 水 | L7: =K7/50 -> 0 | N7: =M7/40 -> 0 | AM7: カテゴリ | AN7: 内容 | AO7: 合計
A8: =IF(A7=$F$3,"",IF(A7="","",IF(A7<>$F$3,A7+1,""))) -> 2025-01-02 | B8: =A8 -> 45659 | C8: =TEXT($A8,"aaa") -> 木 | D8: 236.75 | E8: =IFERROR(H8+J8+L8+N8+P8+R8+T8+V8+X8+Z8+AB8+AD8+AF8+AH8, "") -> 25 | F8: =IFERROR(D8-E8, "") -> 211.75 | G8: =_xlfn.SWITCH($C8, "月", $AQ$1, "火", $AQ$2, "水", $AQ$3, "木", $AQ$4, "金", $AQ$5, "土", "", "日", "") -> 250 | H8: =IFERROR(G8/30, "") -> 8.333333333 | I8: =_xlfn.SWITCH($C8, "月", $AS$1, "火", $AS$2, "水", $AS$3, "木", $AS$4, "金", $AS$5, "土", "", "日", "") -> 500 | J8: =IFERROR(I8/30, "") -> 16.66666667 | L8: =K8/50 -> 0 | N8: 0 | AM8: ★ | AO8: =$H$38 -> 148.3333333
A9: 2025-01-03 | B9: 45660 | C9: 金 | D9: 236.75 | E9: 30 | F9: 206.75 | G9: 300 | H9: 10 | I9: 600 | J9: 20 | L9: 0 | N9: =M9/40 -> 0 | AM9: ★★ | AO9: =$J$38 -> 296.6666667
A10: 2025-01-04 | B10: 45661 | C10: 土 | L10: 0 | N10: =M10/40 -> 0 | AM10: ★★★ | AO10: =L38 -> 0
A11: 2025-01-05 | B11: 45662 | C11: 日 | L11: 0 | N11: 0 | AM11: ★★★★ | AO11: =$N$38 -> 0
A12: 2025-01-06 | B12: 45663 | C12: 月 | D12: 236.75 | E12: 10 | F12: 226.75 | G12: 100 | H12: 3.333333333 | I12: 200 | J12: 6.666666667 | L12: 0 | N12: 0
A13: 2025-01-07 | B13: 45664 | C13: 火 | D13: 236.75 | E13: 15 | F13: 221.75 | G13: 150 | H13: 5 | I13: 300 | J13: 10 | L13: 0 | N13: 0 | AM13: カテゴリ | AN13: 内容 | AO13: 合計
A14: 2025-01-08 | B14: 45665 | C14: 水 | D14: 236.75 | E14: 20 | F14: 216.75 | G14: 200 | H14: 6.666666667 | I14: 400 | J14: 13.33333333 | L14: 0 | N14: 0 | AM14: その他 ① | AO14: =$P$38 -> 0
A15: 2025-01-09 | B15: 45666 | C15: 木 | D15: 236.75 | E15: 25 | F15: 211.75 | G15: 250 | H15: 8.333333333 | I15: 500 | J15: 16.66666667 | L15: 0 | N15: 0 | AM15: その他 ② | AO15: =$R$38 -> 0
A16: 2025-01-10 | B16: 45667 | C16: 金 | D16: 236.75 | E16: 30 | F16: 206.75 | G16: 300 | H16: 10 | I16: 600 | J16: 20 | L16: 0 | N16: 0 | AM16: その他 ③ | AO16: =$T$38 -> 0
A17: 2025-01-11 | B17: 45668 | C17: 土 | L17: 0 | N17: 0 | AM17: その他 ④ | AO17: =$V$38 -> 0
A18: 2025-01-12 | B18: 45669 | C18: 日 | L18: 0 | N18: 0 | AM18: その他 ⑤ | AO18: =$X$38 -> 0
A19: 2025-01-13 | B19: 45670 | C19: 月 | L19: 0 | N19: 0 | AM19: その他 ⑥ | AO19: =$Z$38 -> 0
A20: 2025-01-14 | B20: 45671 | C20: 火 | D20: 236.75 | E20: =IFERROR(H20+J20+L20+N20+P20+R20+T20+V20+X20+Z20+AB20+AD20+AF20+AH20, "") -> 15 | F20: =IFERROR(D20-E20, "") -> 221.75 | G20: =_xlfn.SWITCH($C20, "月", $AQ$1, "火", $AQ$2, "水", $AQ$3, "木", $AQ$4, "金", $AQ$5, "土", "", "日", "") -> 150 | H20: =IFERROR(G20/30, "") -> 5 | I20: =_xlfn.SWITCH($C20, "月", $AS$1, "火", $AS$2, "水", $AS$3, "木", $AS$4, "金", $AS$5, "土", "", "日", "") -> 300 | J20: =IFERROR(I20/30, "") -> 10 | L20: 0 | N20: 0 | AM20: その他 ⑦ | AO20: =$AB$38 -> 0
A21: 2025-01-15 | B21: 45672 | C21: 水 | D21: 236.75 | E21: 20 | F21: 216.75 | G21: 200 | H21: 6.666666667 | I21: 400 | J21: 13.33333333 | L21: 0 | N21: 0 | AM21: その他 ⑧ | AO21: =$AD$38 -> 0
A22: 2025-01-16 | B22: 45673 | C22: 木 | D22: 236.75 | E22: 25 | F22: 211.75 | G22: 250 | H22: 8.333333333 | I22: 500 | J22: 16.66666667 | L22: 0 | N22: 0 | AM22: その他 ⑨ | AO22: =$AF$38 -> 0
A23: 2025-01-17 | B23: 45674 | C23: 金 | D23: 236.75 | E23: 30 | F23: 206.75 | G23: 300 | H23: 10 | I23: 600 | J23: 20 | L23: 0 | N23: 0 | AM23: その他 ⑩ | AO23: =$AH$38 -> 0
A24: 2025-01-18 | B24: 45675 | C24: 土 | L24: 0 | N24: 0 | AN24: 総計 | AO24: =SUM(AO14:AO23,AO8:AO11) -> 445
A25: 2025-01-19 | B25: 45676 | C25: 日 | L25: 0 | N25: 0
A26: 2025-01-20 | B26: 45677 | C26: 月 | D26: 236.75 | E26: 10 | F26: 226.75 | G26: 100 | H26: 3.333333333 | I26: 200 | J26: 6.666666667 | L26: 0 | N26: 0
A27: 2025-01-21 | B27: 45678 | C27: 火 | D27: 236.75 | E27: 15 | F27: 221.75 | G27: 150 | H27: 5 | I27: 300 | J27: 10 | L27: 0 | N27: 0 | AM27: チェック項目一覧
A28: 2025-01-22 | B28: 45679 | C28: 水 | D28: 236.75 | E28: 20 | F28: 216.75 | G28: 200 | H28: 6.666666667 | I28: 400 | J28: 13.33333333 | L28: 0 | N28: 0
A29: 2025-01-23 | B29: 45680 | C29: 木 | D29: 236.75 | E29: 25 | F29: 211.75 | G29: 250 | H29: 8.333333333 | I29: 500 | J29: 16.66666667 | L29: 0 | N29: 0
A30: 2025-01-24 | B30: 45681 | C30: 金 | D30: 236.75 | E30: 30 | F30: 206.75 | G30: 300 | H30: 10 | I30: 600 | J30: 20 | L30: 0 | N30: 0
A31: 2025-01-25 | B31: 45682 | C31: 土 | L31: 0 | N31: 0
A32: 2025-01-26 | B32: 45683 | C32: 日 | L32: 0 | N32: 0
A33: 2025-01-27 | B33: 45684 | C33: 月 | D33: 236.75 | E33: 10 | F33: 226.75 | G33: 100 | H33: 3.333333333 | I33: 200 | J33: 6.666666667 | L33: 0 | N33: 0
A34: 2025-01-28 | B34: 45685 | C34: 火 | D34: 236.75 | E34: 15 | F34: 221.75 | G34: 150 | H34: 5 | I34: 300 | J34: 10 | L34: 0 | N34: 0
A35: 2025-01-29 | B35: 45686 | C35: 水 | D35: 236.75 | E35: 20 | F35: 216.75 | G35: 200 | H35: 6.666666667 | I35: 400 | J35: 13.33333333 | L35: 0 | N35: 0
A36: 2025-01-30 | B36: 45687 | C36: 木 | D36: 236.75 | E36: 25 | F36: 211.75 | G36: 250 | H36: 8.333333333 | I36: 500 | J36: 16.66666667 | L36: 0 | N36: 0
A37: 2025-01-31 | B37: 45688 | C37: 金 | D37: 236.75 | E37: 30 | F37: 206.75 | G37: 300 | H37: 10 | I37: 600 | J37: 20 | L37: 0 | N37: 0
D38: =SUM(D7:D37) -> 4971.75 | E38: =SUM(E7:E37) -> 445 | F38: =SUM(F7:F37) -> 4526.75 | H38: =SUM(H7:H37) -> 148.3333333 | J38: =SUM(J7:J37) -> 296.6666667 | L38: =SUM(L7:L37) -> 0 | M38: =SUM(M7:M37) -> 0 | N38: =SUM(N7:N37) -> 0 | P38: =SUM(P7:P37) -> 0 | R38: =SUM(R7:R37) -> 0 | T38: =SUM(T7:T37) -> 0 | V38: =SUM(V7:V37) -> 0 | X38: =SUM(X7:X37) -> 0 | Z38: =SUM(Z7:Z37) -> 0 | AB38: =SUM(AB7:AB37) -> 0 | AD38: =SUM(AD7:AD37) -> 0 | AF38: =SUM(AF7:AF37) -> 0 | AH38: =SUM(AH7:AH37) -> 0
